Ref No,Fund Type,Dept,Cost Centre Description    ,Description    ,Creditor Name    ,GL Code Net Amount,Payment date        
2,Revenue,CAHD,Central - Commissioned Services,Permanent Residential,1 St Georges House,13333.52, 13-Dec-2022
3,Revenue,CAHD,Central - Commissioned Services,Fees & Charges Income - General,1 St Georges House,-438.8, 13-Dec-2022
4,Revenue,CAHD,CSC - Care Leavers Support Costs,Independent Living,1625 Independent People,3124.8, 09-Dec-2022
5,Revenue,CAHD,CSC - LAC Housing Support Grants,Grants to Voluntary Bodies,1625 Independent People,3343, 16-Dec-2022
6,Revenue,CAHD,Supporting People Programme,Grants to Voluntary Bodies,1625 Independent People,15622, 01-Dec-2022
7,Revenue,CAHD,Supporting People Programme,Grants to Voluntary Bodies,1625 Independent People,15629.08, 01-Dec-2022
8,Revenue,CAHD,CSC - Asylum Seekers - Unaccompanied,Independent Living,16Pluscare Support Solutions,18274.2, 19-Dec-2022
9,Revenue,CAHD,CSC - Care Leavers Independent Living,Independent Living,16Pluscare Support Solutions,9994.2, 19-Dec-2022
10,Revenue,CAHD,South - Commissioned Services,Permanent Residential,2Nd Floor Building,11261.52, 13-Dec-2022
11,Revenue,CAHD,South - Commissioned Services,Fees & Charges Income - General,2Nd Floor Building,-877.6, 13-Dec-2022
12,Revenue,CAHD,Central - Commissioned Services,Supported Living,3 Trees Community Support Limited,3024, 28-Dec-2022
13,Revenue,CAHD,Central - Commissioned Services,Other Small Contracts,3 Trees Community Support Limited,151.2, 15-Dec-2022
14,Revenue,CAHD,Central - Commissioned Services,Supported Living,3 Trees Community Support Limited,3024, 15-Dec-2022
15,Revenue,CAHD,Central - Commissioned Services,Supported Living,3 Trees Community Support Limited,3024, 15-Dec-2022
16,Revenue,CAHD,Central - Commissioned Services,Supported Living,3 Trees Community Support Limited,3024, 15-Dec-2022
17,Revenue,CAHD,South - Commissioned Services,Supported Living,3 Trees Community Support Limited,3086.72, 15-Dec-2022
18,Revenue,CAHD,Central - Commissioned Services,Other Small Contracts,3 Trees Community Support Limited,151.2, 28-Dec-2022
19,Revenue,CAHD,Central - Commissioned Services,Supported Living,3 Trees Community Support Limited,3024, 28-Dec-2022
20,Revenue,CAHD,Central - Commissioned Services,Supported Living,3 Trees Community Support Limited,3024, 28-Dec-2022
21,Revenue,CAHD,South - Commissioned Services,Supported Living,3 Trees Community Support Limited,3086.72, 28-Dec-2022
22,Revenue,CAHD,Central - Commissioned Services,Supported Living,3 Trees Community Support Limited,3024, 05-Dec-2022
23,Revenue,CAHD,Central - Commissioned Services,Supported Living,3 Trees Community Support Limited,3024, 05-Dec-2022
24,Revenue,CAHD,Central - Commissioned Services,Supported Living,3 Trees Community Support Limited,3024, 05-Dec-2022
25,Revenue,CAHD,South - Commissioned Services,Supported Living,3 Trees Community Support Limited,3086.72, 05-Dec-2022
26,Revenue,CAHD,Central - Commissioned Services,Supported Living,3 Trees Community Support Limited,3024, 22-Dec-2022
27,Revenue,CAHD,Central - Commissioned Services,Supported Living,3 Trees Community Support Limited,3024, 22-Dec-2022
28,Revenue,CAHD,Central - Commissioned Services,Supported Living,3 Trees Community Support Limited,3024, 22-Dec-2022
29,Revenue,CAHD,South - Commissioned Services,Supported Living,3 Trees Community Support Limited,3086.72, 22-Dec-2022
30,Revenue,CAHD,South - Commissioned Services,Permanent Residential,5Th Floor Harlech Court,-15364.25, 13-Dec-2022
31,Revenue,CAHD,South - Commissioned Services,Permanent Residential,5Th Floor Harlech Court,17913.24, 13-Dec-2022
32,Revenue,CAHD,South - Commissioned Services,Permanent Residential,5Th Floor Harlech Court,18839.56, 13-Dec-2022
33,Revenue,CAHD,South - Commissioned Services,Fees & Charges Income - General,5Th Floor Harlech Court,728.6, 13-Dec-2022
34,Revenue,CAHD,South - Commissioned Services,Fees & Charges Income - General,5Th Floor Harlech Court,-438.8, 13-Dec-2022
35,Revenue,CAHD,South - Commissioned Services,Fees & Charges Income - General,5Th Floor Harlech Court,-418.8, 13-Dec-2022
36,Revenue,CAHD,S28A cases,Permanent Residential,5Th Floor Harlech Court,11719.96, 13-Dec-2022
37,Revenue,CAHD,S28A cases,Fees & Charges Income - General,5Th Floor Harlech Court,-399.8, 13-Dec-2022
38,Revenue,CAHD,North - Community based support,Permanent Residential,5Th Floor Harlech Court,12498.56, 13-Dec-2022
39,Revenue,CAHD,North - Community based support,Fees & Charges Income - General,5Th Floor Harlech Court,-450.8, 13-Dec-2022
40,Revenue,CAHD,Central - Commissioned Services,Permanent Residential,5Th Floor Harlech Court,15338.12, 13-Dec-2022
41,Revenue,CAHD,Central - Commissioned Services,Fees & Charges Income - General,5Th Floor Harlech Court,-438.8, 13-Dec-2022
42,Revenue,CAHD,North - Community based support,Permanent Residential,5Th Floor Harlech Court,9615.4, 13-Dec-2022
43,Revenue,CAHD,North - Community based support,Permanent Residential,5Th Floor Harlech Court,10853.36, 13-Dec-2022
44,Revenue,CAHD,North - Community based support,Fees & Charges Income - General,5Th Floor Harlech Court,-438.8, 13-Dec-2022
45,Revenue,CAHD,North - Community based support,Fees & Charges Income - General,5Th Floor Harlech Court,-438.8, 13-Dec-2022
46,Revenue,CAHD,CSC - Section 17 0-25,Preventative Assistance,A+bility Ltd,600, 16-Dec-2022
47,Revenue,CAHD,CSC - Section 17 0-25,Preventative Assistance,A+bility Ltd,600, 15-Dec-2022
48,Revenue,CAHD,Central - Commissioned Services,Non Residential Care Income,A4E Management Ltd,-112.74, 09-Dec-2022
49,Revenue,CAHD,Central - Commissioned Services,Non Residential Care Income,A4E Management Ltd,-112.74, 23-Dec-2022
50,Revenue,CAHD,Social Lettings Agency,Rent,Individual,850, 20-Dec-2022
51,Revenue,CAHD,Social Lettings Agency,Fees & Charges Income - General,Individual,-106.25, 20-Dec-2022
52,Revenue,CAHD,Central - Commissioned Services,Permanent Nursing,ABI Development Limited,12959.4, 13-Dec-2022
53,Revenue,CAHD,Central - Commissioned Services,Fees & Charges Income - General,ABI Development Limited,-511.8, 13-Dec-2022
54,Revenue,CAHD,CSC - Asylum Seekers - Unaccompanied,Independent Living,Ability Supported Living Limited,6484.28, 08-Dec-2022
55,Revenue,CAHD,CSC - Asylum Seekers - Unaccompanied,Leaving Care,Ability Supported Living Limited,572.13, 12-Dec-2022
56,Revenue,CAHD,South - Commissioned Services,Permanent Nursing,Acacia House,3085.88, 13-Dec-2022
57,Revenue,CAHD,South - Commissioned Services,Fees & Charges Income - General,Acacia House,-1074.6, 13-Dec-2022
58,Revenue,CAHD,Central - Commissioned Services,Permanent Nursing,Acacia House,3777.92, 13-Dec-2022
59,Revenue,CAHD,Personnel Costs,Other Supplies & Services,ACAS,860, 28-Dec-2022
60,Revenue,CAHD,Post 16 High Needs Placements,Other Private Contractors,Access To Music Ltd,3563.2, 22-Dec-2022
61,Revenue,CAHD,Post 16 High Needs Placements,Other Private Contractors,Access To Music Ltd,1894.24, 22-Dec-2022
62,Revenue,CAHD,Post 16 High Needs Placements,Other Private Contractors,Access To Music Ltd,688.36, 22-Dec-2022
63,Revenue,CAHD,Central - Commissioned Services,Permanent Residential,Acer House Care Home.,4028, 13-Dec-2022
64,Revenue,CAHD,Central - Commissioned Services,Fees & Charges Income - General,Acer House Care Home.,-1093.68, 13-Dec-2022
65,Revenue,CAHD,MH Purchasing - Younger,Permanent Residential,Acorn Care Providers,6920.56, 13-Dec-2022
66,Revenue,CAHD,MH Purchasing - Younger,Permanent Residential,Acorn Care Providers,6795.68, 13-Dec-2022
67,Revenue,CAHD,North - S117,Permanent Residential,Acorn Care Providers,4311.4, 13-Dec-2022
68,Revenue,CAHD,Section 117 Placements MH Younger,Permanent Residential,Acorn Care Providers,5941.4, 13-Dec-2022
69,Revenue,CAHD,Jointly Funded H&SC Packages,Permanent Residential,Acorn Care Providers,3515.52, 13-Dec-2022
70,Revenue,CAHD,Jointly Funded H&SC Packages,Permanent Residential,Acorn Care Providers,2366.36, 13-Dec-2022
71,Revenue,CAHD,Jointly Funded H&SC Packages,Permanent Residential,Acorn Care Providers,2193.4, 13-Dec-2022
72,Revenue,CAHD,CSC - Fostering Carer Support,Training Expenses,Acorn Health & Safety Limited,479, 01-Dec-2022
73,Revenue,CAHD,Training - Adult Services,Training Expenses,Acorn Health & Safety Limited,760, 23-Dec-2022
74,Revenue,CAHD,CSC - Agency Fostering,Foster Parent Allowances,Action for Children,3788.2, 29-Dec-2022
75,Revenue,CAHD,CSC - Agency Fostering,Foster Parent Allowances,Action for Children,3788.2, 13-Dec-2022
76,Revenue,CAHD,CSC - Agency Fostering,Foster Parent Allowances,Action for Children,1257.1, 13-Dec-2022
77,Revenue,CAHD,CSC - Age Related Allowances,Foster Parent Allowances,Individual,126.43, 23-Dec-2022
78,Revenue,CAHD,CSC - Professional Fees Foster Carers,Band 3 Foster Care,Individual,416.57, 23-Dec-2022
79,Revenue,CAHD,CSC - Asylum Seekers - Unaccompanied,Independent Living,Adolescent Support Home Services Ltd,6689.18, 22-Dec-2022
80,Revenue,CAHD,CSC - Asylum Seekers - Unaccompanied,Independent Living,Adolescent Support Home Services Ltd,6473.4, 20-Dec-2022
81,Revenue,CAHD,CSC - Asylum Seekers - Unaccompanied,Independent Living,Adolescent Support Home Services Ltd,6689.18, 19-Dec-2022
82,Revenue,CAHD,CSC - Asylum Seekers - Unaccompanied,Independent Living,Adolescent Support Home Services Ltd,6473.4, 21-Dec-2022
83,Revenue,CAHD,South - Commissioned Services,Other Small Contracts,Advantedge Commercial Finance Limited,1565.19, 28-Dec-2022
84,Revenue,CAHD,South - Commissioned Services,Other Small Contracts,Advantedge Commercial Finance Limited,3799.67, 28-Dec-2022
85,Revenue,CAHD,South - Commissioned Services,Other Small Contracts,Advantedge Commercial Finance Limited,295.12, 28-Dec-2022
86,Revenue,CAHD,South - Commissioned Services,Other Small Contracts,Advantedge Commercial Finance Limited,553.35, 28-Dec-2022
87,Revenue,CAHD,South - Commissioned Services,Other Small Contracts,Advantedge Commercial Finance Limited,737.8, 28-Dec-2022
88,Revenue,CAHD,South - Commissioned Services,Other Small Contracts,Advantedge Commercial Finance Limited,1675.86, 28-Dec-2022
89,Revenue,CAHD,South - Commissioned Services,Other Small Contracts,Advantedge Commercial Finance Limited,969.68, 28-Dec-2022
90,Revenue,CAHD,South - Commissioned Services,Other Small Contracts,Advantedge Commercial Finance Limited,1180.48, 28-Dec-2022
91,Revenue,CAHD,South - Commissioned Services,Other Small Contracts,Advantedge Commercial Finance Limited,2666.62, 22-Dec-2022
92,Revenue,CAHD,Central - Commissioned Services,Day Care / Social Activities,Age Concern,576.16, 13-Dec-2022
93,Revenue,CAHD,Central - Commissioned Services,Day Care / Social Activities,Age Concern,288.08, 13-Dec-2022
94,Revenue,CAHD,South - Commissioned Services,Day Care / Social Activities,Age Concern,288.08, 13-Dec-2022
95,Revenue,CAHD,North - Community based support,Day Care / Social Activities,Age Concern,681.6, 13-Dec-2022
96,Revenue,CAHD,North - Community based support,Day Care / Social Activities,Age Concern,340.8, 13-Dec-2022
97,Revenue,CAHD,North - Community based support,Day Care / Social Activities,Age Concern,288.08, 13-Dec-2022
98,Revenue,CAHD,North - Community based support,Day Care / Social Activities,Age Concern,432.12, 13-Dec-2022
99,Revenue,CAHD,South - Commissioned Services,Day Care / Social Activities,Age UK - Grace Court,226.48, 13-Dec-2022
100,Revenue,CAHD,South - Commissioned Services,Day Care / Social Activities,Age UK - Grace Court,288.08, 13-Dec-2022
101,Revenue,CAHD,South - Commissioned Services,Day Care / Social Activities,Age UK - Grace Court,288.08, 13-Dec-2022
102,Revenue,CAHD,South - Commissioned Services,Day Care / Social Activities,Age UK - Grace Court,288.08, 13-Dec-2022
103,Revenue,CAHD,South - Commissioned Services,Day Care / Social Activities,Age UK - Grace Court,288.08, 13-Dec-2022
104,Revenue,CAHD,South - Commissioned Services,Day Care / Social Activities,Age UK - Grace Court,226.48, 13-Dec-2022
105,Revenue,CAHD,South - Commissioned Services,Day Care / Social Activities,Age UK - Grace Court,327.8, 13-Dec-2022
106,Revenue,CAHD,South - Commissioned Services,Day Care / Social Activities,Age UK - Grace Court,288.08, 13-Dec-2022
107,Revenue,CAHD,North - Community based support,Day Care / Social Activities,Age UK - Grace Court,288.08, 13-Dec-2022
108,Revenue,CAHD,North - Community based support,Day Care / Social Activities,Age UK - Grace Court,340.8, 13-Dec-2022
109,Revenue,CAHD,North - Community based support,Day Care / Social Activities,Age UK - Grace Court,288.08, 13-Dec-2022
110,Revenue,CAHD,Mental Health and Community Engagement,Grants to Voluntary Bodies,Age UK South Gloucestershire,13725, 20-Dec-2022
111,Revenue,CAHD,Extra Care Housing,Private & Voluntary Home Care,Agincare UK Limited,25937.78, 01-Dec-2022
112,Revenue,CAHD,Extra Care Housing,Private & Voluntary Home Care,Agincare UK Limited,25937.78, 29-Dec-2022
113,Revenue,CAHD,Extra Care Housing,Private & Voluntary Home Care,Agincare UK Limited,12479.78, 01-Dec-2022
114,Revenue,CAHD,Extra Care Housing,Private & Voluntary Home Care,Agincare UK Limited,12479.78, 29-Dec-2022
115,Revenue,CAHD,Extra Care Housing,Private & Voluntary Home Care,Agincare UK Limited,32712.59, 02-Dec-2022
116,Revenue,CAHD,Extra Care Housing,Private & Voluntary Home Care,Agincare UK Limited,26182, 09-Dec-2022
117,Revenue,CAHD,Ukranian Refugees,Other Small Contracts,Individual,937.67, 15-Dec-2022
118,Revenue,CAHD,South - Commissioned Services,Other Small Contracts,AliMo Care Ltd,539.76, 19-Dec-2022
119,Revenue,CAHD,South - Commissioned Services,Other Small Contracts,AliMo Care Ltd,903.06, 19-Dec-2022
120,Revenue,CAHD,North - Community based support,Other Small Contracts,AliMo Care Ltd,430.77, 19-Dec-2022
121,Revenue,CAHD,South - Commissioned Services,Other Small Contracts,AliMo Care Ltd,555.33, 19-Dec-2022
122,Revenue,CAHD,South - Commissioned Services,Other Small Contracts,AliMo Care Ltd,908.25, 19-Dec-2022
123,Revenue,CAHD,North - Community based support,Other Small Contracts,AliMo Care Ltd,435.96, 19-Dec-2022
124,Revenue,CAHD,South - Commissioned Services,Other Small Contracts,AliMo Care Ltd,389.25, 28-Dec-2022
125,Revenue,CAHD,South - Commissioned Services,Other Small Contracts,AliMo Care Ltd,622.8, 28-Dec-2022
126,Revenue,CAHD,North - Community based support,Other Small Contracts,AliMo Care Ltd,316.59, 28-Dec-2022
127,Revenue,CAHD,CSC - Age Related Allowances,Foster Parent Allowances,Individual,363, 02-Dec-2022
128,Revenue,CAHD,CSC - Professional Fees Foster Carers,Band 3 Foster Care,Individual,486, 02-Dec-2022
129,Revenue,CAHD,CSC - Age Related Allowances,Foster Parent Allowances,Individual,363, 09-Dec-2022
130,Revenue,CAHD,CSC - Age Related Allowances,Xmas / Birthday Allowances,Individual,363, 09-Dec-2022
131,Revenue,CAHD,CSC - Professional Fees Foster Carers,Band 3 Foster Care,Individual,486, 09-Dec-2022
132,Revenue,CAHD,CSC - Age Related Allowances,Foster Parent Allowances,Individual,363, 16-Dec-2022
133,Revenue,CAHD,CSC - Professional Fees Foster Carers,Band 3 Foster Care,Individual,486, 16-Dec-2022
134,Revenue,CAHD,CSC - Age Related Allowances,Foster Parent Allowances,Individual,363, 23-Dec-2022
135,Revenue,CAHD,CSC - Professional Fees Foster Carers,Band 3 Foster Care,Individual,486, 23-Dec-2022
136,Revenue,CAHD,CSC - Age Related Allowances,Foster Parent Allowances,Individual,363, 28-Dec-2022
137,Revenue,CAHD,CSC - Professional Fees Foster Carers,Band 3 Foster Care,Individual,486, 28-Dec-2022
138,Revenue,CAHD,South - Commissioned Services,Permanent Nursing,Allambie Court,2734.44, 13-Dec-2022
139,Revenue,CAHD,South - Commissioned Services,Fees & Charges Income - General,Allambie Court,-823.52, 13-Dec-2022
140,Revenue,CAHD,Mental Health and Community Engagement,Grants to Voluntary Bodies,Alzheimers Society,11143, 20-Dec-2022
141,Revenue,CAHD,CSC - Vinney Green Secure Unit,R & M by Departments,Amari Plastics PLC,605.42, 07-Dec-2022
142,Revenue,CAHD,CSC - Age Related Allowances,Xmas / Birthday Allowances,Individual,177, 02-Dec-2022
143,Revenue,CAHD,CSC - Age Related Allowances,Children - Family Support,Individual,177, 02-Dec-2022
144,Revenue,CAHD,CSC - Professional Fees Foster Carers,Children - Family Support,Individual,170, 02-Dec-2022
145,Revenue,CAHD,CSC - Age Related Allowances,Xmas / Birthday Allowances,Individual,177, 09-Dec-2022
146,Revenue,CAHD,CSC - Age Related Allowances,Children - Family Support,Individual,177, 09-Dec-2022
147,Revenue,CAHD,CSC - Professional Fees Foster Carers,Children - Family Support,Individual,170, 09-Dec-2022
148,Revenue,CAHD,CSC - Residential Placements,Permanent Residential,Ambito Care and Education,19920.87, 01-Dec-2022
149,Revenue,CAHD,CSC - Residential Placements,Permanent Residential,Ambito Care and Education,19930.88, 01-Dec-2022
150,Revenue,CAHD,Early Years High Needs Support,Other Private Contractors,Ambourne House Day Nursery,932.57, 23-Dec-2022
151,Revenue,CAHD,Early Years High Needs Support,Other Private Contractors,Ambourne House Day Nursery,932.57, 23-Dec-2022
152,Revenue,CAHD,Preparing for Adulthood Team,Interpreting & Translation,Individual,504, 12-Dec-2022
153,Revenue,CAHD,Supporting People Programme,Grants to Voluntary Bodies,Anchor Hanover Group,1070.5, 01-Dec-2022
154,Revenue,CAHD,Supporting People Programme,Grants to Voluntary Bodies,Anchor Hanover Group,873.08, 01-Dec-2022
155,Revenue,CAHD,CSC - Legal Fees,Legal Fees,Individual,1130, 16-Dec-2022
156,Revenue,CAHD,CSC - Asylum Seekers - Unaccompanied,Independent Living,Anglo Support and Housing Ltd,4400, 15-Dec-2022
157,Revenue,CAHD,Ukranian Refugees,Rent,Individual,1000, 14-Dec-2022
158,Revenue,CAHD,Social Lettings Agency,Rent,Individual,822.73, 20-Dec-2022
159,Revenue,CAHD,Social Lettings Agency,Fees & Charges Income - General,Individual,-65.82, 20-Dec-2022
160,Revenue,CAHD,Social Lettings Agency,Rent,Individual,822.73, 02-Dec-2022
161,Revenue,CAHD,Social Lettings Agency,Fees & Charges Income - General,Individual,-65.82, 02-Dec-2022
162,Revenue,CAHD,Social Lettings Agency,Rent,Individual,822.73, 29-Dec-2022
163,Revenue,CAHD,Social Lettings Agency,Fees & Charges Income - General,Individual,-65.82, 29-Dec-2022
164,Revenue,CAHD,North - Community based support,Permanent Nursing,Arbour Walk,3947.24, 13-Dec-2022
165,Revenue,CAHD,North - Community based support,Fees & Charges Income - General,Arbour Walk,-1276.96, 13-Dec-2022
166,Revenue,CAHD,North - S117,Permanent Nursing,Arbour Walk,5400, 13-Dec-2022
167,Revenue,CAHD,CSC - Residential Placements,Permanent Residential,ARC HD Services Ltd,21936.23, 07-Dec-2022
168,Revenue,CAHD,CSC - Residential Placements,Permanent Residential,ARC HD Services Ltd,22667.34, 14-Dec-2022
169,Revenue,CAHD,South - S117,Supported Living,Archcare Rehab Limited,2062.52, 13-Dec-2022
170,Revenue,CAHD,Younger MH non-res purchasing,Respite Care,Archcare Rehab Limited,0, 13-Dec-2022
171,Revenue,CAHD,South - Commissioned Services,Permanent Residential,Ash Lea House,5885.04, 13-Dec-2022
172,Revenue,CAHD,South - Commissioned Services,Fees & Charges Income - General,Ash Lea House,-438.8, 13-Dec-2022
173,Revenue,CAHD,North - Community based support,Permanent Residential,Ash View House,7525.48, 13-Dec-2022
174,Revenue,CAHD,North - Community based support,Permanent Residential,Ash View House,7547.2, 13-Dec-2022
175,Revenue,CAHD,North - Community based support,Fees & Charges Income - General,Ash View House,-438.8, 13-Dec-2022
176,Revenue,CAHD,North - Community based support,Fees & Charges Income - General,Ash View House,-438.8, 13-Dec-2022
177,Revenue,CAHD,South - Commissioned Services,Permanent Residential,Ash View House,7317.24, 13-Dec-2022
178,Revenue,CAHD,South - Commissioned Services,Permanent Residential,Ash View House,5994.8, 13-Dec-2022
179,Revenue,CAHD,South - Commissioned Services,Fees & Charges Income - General,Ash View House,-438.8, 13-Dec-2022
180,Revenue,CAHD,South - Commissioned Services,Fees & Charges Income - General,Ash View House,-387.8, 13-Dec-2022
181,Revenue,CAHD,South - S117,Permanent Residential,Ash View House,7402.64, 13-Dec-2022
182,Revenue,CAHD,Section 117 Placements MH Younger,Permanent Residential,Ash View House,5444.12, 13-Dec-2022
183,Revenue,CAHD,Jointly Funded H&SC Packages,Permanent Residential,Ash View House,1160.84, 13-Dec-2022
184,Revenue,CAHD,Jointly Funded H&SC Packages,Permanent Residential,Ash View House,2204.28, 13-Dec-2022
185,Revenue,CAHD,S117 Placements PCT,Permanent Residential,Ash View House,8357.8, 13-Dec-2022
186,Revenue,CAHD,CSC - Legal Fees,Legal Fees,Individual,1000, 02-Dec-2022
187,Revenue,CAHD,Drugs Alcohol and Sexual Health,Rent,Ashville Asset Management Limited,1431.08, 23-Dec-2022
188,Revenue,CAHD,Drugs Alcohol and Sexual Health,Electricity,Ashville Asset Management Limited,858.59, 16-Dec-2022
189,Revenue,CAHD,Drugs Alcohol and Sexual Health,Rent,Ashville Asset Management Limited,4550, 23-Dec-2022
190,Revenue,CAHD,Supporting People Programme,Grants to Voluntary Bodies,Aspects and Milestones Trust,3544.83, 01-Dec-2022
191,Revenue,CAHD,Supporting People Programme,Grants to Voluntary Bodies,Aspects and Milestones Trust,1777.17, 01-Dec-2022
192,Revenue,CAHD,18-25 Year Olds,Other Small Contracts,Aspirations,124.56, 05-Dec-2022
193,Revenue,CAHD,18-25 Year Olds,Other Small Contracts,Aspirations,124.56, 05-Dec-2022
194,Revenue,CAHD,18-25 Year Olds,Other Small Contracts,Aspirations,83.04, 05-Dec-2022
195,Revenue,CAHD,18-25 Year Olds,Other Small Contracts,Aspirations,124.56, 05-Dec-2022
196,Revenue,CAHD,18-25 Year Olds,Other Small Contracts,Aspirations,145.32, 05-Dec-2022
197,Revenue,CAHD,18-25 Year Olds,Supported Living,Aspirations,736.98, 05-Dec-2022
198,Revenue,CAHD,18-25 Year Olds,Supported Living,Aspirations,871.92, 05-Dec-2022
199,Revenue,CAHD,Central - Commissioned Services,Other Small Contracts,Aspirations,50.88, 05-Dec-2022
200,Revenue,CAHD,Central - Commissioned Services,Other Small Contracts,Aspirations,581.28, 05-Dec-2022
201,Revenue,CAHD,Central - Commissioned Services,Other Small Contracts,Aspirations,228.36, 05-Dec-2022
202,Revenue,CAHD,South - Commissioned Services,Other Small Contracts,Aspirations,1833.39, 05-Dec-2022
203,Revenue,CAHD,South - Commissioned Services,Other Small Contracts,Aspirations,166.08, 05-Dec-2022
204,Revenue,CAHD,South - Commissioned Services,Other Small Contracts,Aspirations,89.04, 05-Dec-2022
205,Revenue,CAHD,South - Commissioned Services,Supported Living,Aspirations,373.68, 05-Dec-2022
206,Revenue,CAHD,South - Commissioned Services,Supported Living,Aspirations,584.64, 05-Dec-2022
207,Revenue,CAHD,South - Commissioned Services,Supported Living,Aspirations,332.16, 05-Dec-2022
208,Revenue,CAHD,South - Commissioned Services,Supported Living,Aspirations,1577.76, 05-Dec-2022
209,Revenue,CAHD,South - Commissioned Services,Supported Living,Aspirations,238.74, 05-Dec-2022
210,Revenue,CAHD,South - Commissioned Services,Supported Living,Aspirations,228.36, 05-Dec-2022
211,Revenue,CAHD,South - Commissioned Services,Supported Living,Aspirations,766.8, 05-Dec-2022
212,Revenue,CAHD,South - Commissioned Services,Supported Living,Aspirations,972, 05-Dec-2022
213,Revenue,CAHD,South - Commissioned Services,Supported Living,Aspirations,259.5, 05-Dec-2022
214,Revenue,CAHD,South - Commissioned Services,Supported Living,Aspirations,114.18, 05-Dec-2022
215,Revenue,CAHD,South - Commissioned Services,Supported Living,Aspirations,2795.58, 05-Dec-2022
216,Revenue,CAHD,South - Commissioned Services,Supported Living,Aspirations,134.94, 05-Dec-2022
217,Revenue,CAHD,South - Commissioned Services,Supported Living,Aspirations,124.56, 05-Dec-2022
218,Revenue,CAHD,South - Commissioned Services,Supported Living,Aspirations,1307.88, 05-Dec-2022
219,Revenue,CAHD,South - Commissioned Services,Supported Living,Aspirations,477.48, 05-Dec-2022
220,Revenue,CAHD,South - Commissioned Services,Supported Living,Aspirations,2878.62, 05-Dec-2022
221,Revenue,CAHD,South - Commissioned Services,Supported Living,Aspirations,3212.47, 05-Dec-2022
222,Revenue,CAHD,South - Commissioned Services,Supported Living,Aspirations,1816.5, 05-Dec-2022
223,Revenue,CAHD,South - Commissioned Services,Supported Living,Aspirations,498.24, 05-Dec-2022
224,Revenue,CAHD,South - Commissioned Services,Mentoring,Aspirations,101.76, 05-Dec-2022
225,Revenue,CAHD,South - Commissioned Services,Mentoring,Aspirations,50.88, 05-Dec-2022
226,Revenue,CAHD,North - Community based support,Other Small Contracts,Aspirations,584.64, 05-Dec-2022
227,Revenue,CAHD,North - Community based support,Other Small Contracts,Aspirations,332.16, 05-Dec-2022
228,Revenue,CAHD,North - Community based support,Supported Living,Aspirations,2304.36, 05-Dec-2022
229,Revenue,CAHD,18-25 Year Olds,Other Small Contracts,Aspirations,207.6, 19-Dec-2022
230,Revenue,CAHD,18-25 Year Olds,Other Small Contracts,Aspirations,207.6, 19-Dec-2022
231,Revenue,CAHD,18-25 Year Olds,Other Small Contracts,Aspirations,166.08, 19-Dec-2022
232,Revenue,CAHD,18-25 Year Olds,Other Small Contracts,Aspirations,249.12, 19-Dec-2022
233,Revenue,CAHD,18-25 Year Olds,Other Small Contracts,Aspirations,290.64, 19-Dec-2022
234,Revenue,CAHD,18-25 Year Olds,Supported Living,Aspirations,633.18, 19-Dec-2022
235,Revenue,CAHD,18-25 Year Olds,Supported Living,Aspirations,1619.28, 19-Dec-2022
236,Revenue,CAHD,Central - Commissioned Services,Other Small Contracts,Aspirations,101.76, 19-Dec-2022
237,Revenue,CAHD,Central - Commissioned Services,Other Small Contracts,Aspirations,1162.56, 19-Dec-2022
238,Revenue,CAHD,Central - Commissioned Services,Other Small Contracts,Aspirations,404.82, 19-Dec-2022
239,Revenue,CAHD,South - Commissioned Services,Other Small Contracts,Aspirations,3655.98, 19-Dec-2022
240,Revenue,CAHD,South - Commissioned Services,Other Small Contracts,Aspirations,332.16, 19-Dec-2022
241,Revenue,CAHD,South - Commissioned Services,Other Small Contracts,Aspirations,178.08, 19-Dec-2022
242,Revenue,CAHD,South - Commissioned Services,Supported Living,Aspirations,498.24, 19-Dec-2022
243,Revenue,CAHD,South - Commissioned Services,Supported Living,Aspirations,1169.28, 19-Dec-2022
244,Revenue,CAHD,South - Commissioned Services,Supported Living,Aspirations,726.6, 19-Dec-2022
245,Revenue,CAHD,South - Commissioned Services,Supported Living,Aspirations,3093.24, 19-Dec-2022
246,Revenue,CAHD,South - Commissioned Services,Supported Living,Aspirations,363.3, 19-Dec-2022
247,Revenue,CAHD,South - Commissioned Services,Supported Living,Aspirations,705.84, 19-Dec-2022
248,Revenue,CAHD,South - Commissioned Services,Supported Living,Aspirations,1522.8, 19-Dec-2022
249,Revenue,CAHD,South - Commissioned Services,Supported Living,Aspirations,1441.8, 19-Dec-2022
250,Revenue,CAHD,South - Commissioned Services,Supported Living,Aspirations,519, 19-Dec-2022
251,Revenue,CAHD,South - Commissioned Services,Supported Living,Aspirations,228.36, 19-Dec-2022
252,Revenue,CAHD,South - Commissioned Services,Supported Living,Aspirations,5705.34, 19-Dec-2022
253,Revenue,CAHD,South - Commissioned Services,Supported Living,Aspirations,228.36, 19-Dec-2022
254,Revenue,CAHD,South - Commissioned Services,Supported Living,Aspirations,166.08, 19-Dec-2022
255,Revenue,CAHD,South - Commissioned Services,Supported Living,Aspirations,259.5, 19-Dec-2022
256,Revenue,CAHD,South - Commissioned Services,Supported Living,Aspirations,2636.52, 19-Dec-2022
257,Revenue,CAHD,South - Commissioned Services,Supported Living,Aspirations,892.68, 19-Dec-2022
258,Revenue,CAHD,South - Commissioned Services,Supported Living,Aspirations,5811.72, 19-Dec-2022
259,Revenue,CAHD,South - Commissioned Services,Supported Living,Aspirations,6378.56, 19-Dec-2022
260,Revenue,CAHD,South - Commissioned Services,Supported Living,Aspirations,3850.98, 19-Dec-2022
261,Revenue,CAHD,South - Commissioned Services,Supported Living,Aspirations,622.8, 19-Dec-2022
262,Revenue,CAHD,South - Commissioned Services,Mentoring,Aspirations,203.52, 19-Dec-2022
263,Revenue,CAHD,South - Commissioned Services,Mentoring,Aspirations,76.32, 19-Dec-2022
264,Revenue,CAHD,North - Community based support,Other Small Contracts,Aspirations,1169.28, 19-Dec-2022
265,Revenue,CAHD,North - Community based support,Other Small Contracts,Aspirations,560.52, 19-Dec-2022
266,Revenue,CAHD,North - Community based support,Supported Living,Aspirations,4650.24, 19-Dec-2022
267,Revenue,CAHD,18-25 Year Olds,Other Small Contracts,Aspirations,124.56, 22-Dec-2022
268,Revenue,CAHD,18-25 Year Olds,Other Small Contracts,Aspirations,124.56, 22-Dec-2022
269,Revenue,CAHD,18-25 Year Olds,Other Small Contracts,Aspirations,83.04, 22-Dec-2022
270,Revenue,CAHD,18-25 Year Olds,Other Small Contracts,Aspirations,124.56, 22-Dec-2022
271,Revenue,CAHD,18-25 Year Olds,Other Small Contracts,Aspirations,145.32, 22-Dec-2022
272,Revenue,CAHD,18-25 Year Olds,Supported Living,Aspirations,716.22, 22-Dec-2022
273,Revenue,CAHD,18-25 Year Olds,Supported Living,Aspirations,871.92, 22-Dec-2022
274,Revenue,CAHD,Central - Commissioned Services,Other Small Contracts,Aspirations,50.88, 22-Dec-2022
275,Revenue,CAHD,Central - Commissioned Services,Other Small Contracts,Aspirations,581.28, 22-Dec-2022
276,Revenue,CAHD,Central - Commissioned Services,Other Small Contracts,Aspirations,228.36, 22-Dec-2022
277,Revenue,CAHD,South - Commissioned Services,Other Small Contracts,Aspirations,1825.38, 22-Dec-2022
278,Revenue,CAHD,South - Commissioned Services,Other Small Contracts,Aspirations,166.08, 22-Dec-2022
279,Revenue,CAHD,South - Commissioned Services,Other Small Contracts,Aspirations,89.04, 22-Dec-2022
280,Revenue,CAHD,South - Commissioned Services,Supported Living,Aspirations,249.12, 22-Dec-2022
281,Revenue,CAHD,South - Commissioned Services,Supported Living,Aspirations,584.64, 22-Dec-2022
282,Revenue,CAHD,South - Commissioned Services,Supported Living,Aspirations,332.16, 22-Dec-2022
283,Revenue,CAHD,South - Commissioned Services,Supported Living,Aspirations,1598.52, 22-Dec-2022
284,Revenue,CAHD,South - Commissioned Services,Supported Living,Aspirations,238.74, 22-Dec-2022
285,Revenue,CAHD,South - Commissioned Services,Supported Living,Aspirations,352.92, 22-Dec-2022
286,Revenue,CAHD,South - Commissioned Services,Supported Living,Aspirations,756, 22-Dec-2022
287,Revenue,CAHD,South - Commissioned Services,Supported Living,Aspirations,972, 22-Dec-2022
288,Revenue,CAHD,South - Commissioned Services,Supported Living,Aspirations,259.5, 22-Dec-2022
289,Revenue,CAHD,South - Commissioned Services,Supported Living,Aspirations,114.18, 22-Dec-2022
290,Revenue,CAHD,South - Commissioned Services,Supported Living,Aspirations,2671.02, 22-Dec-2022
291,Revenue,CAHD,South - Commissioned Services,Supported Living,Aspirations,93.42, 22-Dec-2022
292,Revenue,CAHD,South - Commissioned Services,Supported Living,Aspirations,145.32, 22-Dec-2022
293,Revenue,CAHD,South - Commissioned Services,Supported Living,Aspirations,124.56, 22-Dec-2022
294,Revenue,CAHD,South - Commissioned Services,Supported Living,Aspirations,1442.82, 22-Dec-2022
295,Revenue,CAHD,South - Commissioned Services,Supported Living,Aspirations,477.48, 22-Dec-2022
296,Revenue,CAHD,South - Commissioned Services,Supported Living,Aspirations,2904.57, 22-Dec-2022
297,Revenue,CAHD,South - Commissioned Services,Supported Living,Aspirations,3119.08, 22-Dec-2022
298,Revenue,CAHD,South - Commissioned Services,Supported Living,Aspirations,1930.68, 22-Dec-2022
299,Revenue,CAHD,South - Commissioned Services,Supported Living,Aspirations,498.24, 22-Dec-2022
300,Revenue,CAHD,South - Commissioned Services,Mentoring,Aspirations,101.76, 22-Dec-2022
301,Revenue,CAHD,South - Commissioned Services,Mentoring,Aspirations,50.88, 22-Dec-2022
302,Revenue,CAHD,North - Community based support,Other Small Contracts,Aspirations,584.64, 22-Dec-2022
303,Revenue,CAHD,North - Community based support,Other Small Contracts,Aspirations,332.16, 22-Dec-2022
304,Revenue,CAHD,North - Community based support,Supported Living,Aspirations,2325.12, 22-Dec-2022
305,Revenue,CAHD,18-25 Year Olds,Adults - Family Support,Aspirations Support Bristol Limited,13759.68, 15-Dec-2022
306,Revenue,CAHD,18-25 Year Olds,Adults - Family Support,Ategi Limited,2806.24, 13-Dec-2022
307,Revenue,CAHD,18-25 Year Olds,Adults - Family Support,Ategi Limited,1695.36, 13-Dec-2022
308,Revenue,CAHD,18-25 Year Olds,Respite Care,Ategi Limited,0, 13-Dec-2022
309,Revenue,CAHD,18-25 Year Olds,Respite Care,Ategi Limited,0, 13-Dec-2022
310,Revenue,CAHD,18-25 Year Olds,Respite Care,Ategi Limited,0, 13-Dec-2022
311,Revenue,CAHD,South - Commissioned Services,Adults - Family Support,Ategi Limited,1695.36, 13-Dec-2022
312,Revenue,CAHD,South - Commissioned Services,Adults - Family Support,Ategi Limited,2424.64, 13-Dec-2022
313,Revenue,CAHD,South - Commissioned Services,Adults - Family Support,Ategi Limited,2424.64, 13-Dec-2022
314,Revenue,CAHD,South - Commissioned Services,Adults - Family Support,Ategi Limited,1695.36, 13-Dec-2022
315,Revenue,CAHD,South - Commissioned Services,Respite Care,Ategi Limited,0, 13-Dec-2022
316,Revenue,CAHD,South - Commissioned Services,Respite Care,Ategi Limited,0, 13-Dec-2022
317,Revenue,CAHD,South - Commissioned Services,Respite Care,Ategi Limited,0, 13-Dec-2022
318,Revenue,CAHD,North - Community based support,Adults - Family Support,Ategi Limited,1695.36, 13-Dec-2022
319,Revenue,CAHD,North - Community based support,Adults - Family Support,Ategi Limited,1695.36, 13-Dec-2022
320,Revenue,CAHD,North - Community based support,Respite Care,Ategi Limited,0, 13-Dec-2022
321,Revenue,CAHD,North - Community based support,Respite Care,Ategi Limited,0, 13-Dec-2022
322,Revenue,CAHD,Independent Special Placements - Pre 16,Other Private Contractors,Aurora Hedgeway School,25064.28, 16-Dec-2022
323,Revenue,CAHD,Independent Special Placements - Post 16,Other Private Contractors,Aurora Hedgeway School,27730, 16-Dec-2022
324,Revenue,CAHD,Independent Special Placements - Post 16,Other Private Contractors,Aurora Hedgeway School,16081.9, 16-Dec-2022
325,Revenue,CAHD,Independent Special Placements - Pre 16,Other Private Contractors,Aurora Hedgeway School,30916.67, 16-Dec-2022
326,Revenue,CAHD,Independent Special Placements - Pre 16,Other Private Contractors,Aurora Hedgeway School,27178, 16-Dec-2022
327,Revenue,CAHD,Independent Special Placements - Post 16,Other Private Contractors,Aurora Hedgeway School,16081.9, 16-Dec-2022
328,Revenue,CAHD,Independent Special Placements - Pre 16,Other Private Contractors,Aurora Hedgeway School,17830.45, 16-Dec-2022
329,Revenue,CAHD,Independent Special Placements - Pre 16,Other Private Contractors,Aurora Hedgeway School,26317, 16-Dec-2022
330,Revenue,CAHD,Independent Special Placements - Pre 16,Other Private Contractors,Aurora Hedgeway School,19469.76, 16-Dec-2022
331,Revenue,CAHD,Independent Special Placements - Pre 16,Other Private Contractors,Aurora Hedgeway School,19469.76, 16-Dec-2022
332,Revenue,CAHD,Independent Special Placements - Post 16,Other Private Contractors,Aurora Hedgeway School,27730, 16-Dec-2022
333,Revenue,CAHD,Independent Special Placements - Pre 16,Other Private Contractors,Aurora Hedgeway School,21946.32, 16-Dec-2022
334,Revenue,CAHD,Independent Special Placements - Pre 16,Other Private Contractors,Aurora Hedgeway School,17830.45, 16-Dec-2022
335,Revenue,CAHD,Independent Special Placements - Pre 16,Other Private Contractors,Aurora Hedgeway School,28692.67, 15-Dec-2022
336,Revenue,CAHD,Independent Special Placements - Post 16,Other Private Contractors,Aurora Hedgeway School,24364, 16-Dec-2022
337,Revenue,CAHD,Independent Special Placements - Pre 16,Other Private Contractors,Aurora Hedgeway School,28199.94, 16-Dec-2022
338,Revenue,CAHD,Independent Special Placements - Pre 16,Other Private Contractors,Aurora Hedgeway School,17830.45, 16-Dec-2022
339,Revenue,CAHD,Independent Special Placements - Pre 16,Other Private Contractors,Aurora Severnside School,8580.38, 15-Dec-2022
340,Revenue,CAHD,Independent Special Placements - Pre 16,Other Private Contractors,Aurora Severnside School,8296.33, 13-Dec-2022
341,Revenue,CAHD,Independent Special Placements - Pre 16,Other Private Contractors,Aurora Severnside School,16989.12, 20-Dec-2022
342,Revenue,CAHD,Independent Special Placements - Pre 16,Other Private Contractors,Aurora Severnside School,25473, 20-Dec-2022
343,Revenue,CAHD,Independent Special Placements - Pre 16,Other Private Contractors,Aurora Severnside School,25473, 21-Dec-2022
344,Revenue,CAHD,Independent Special Placements - Pre 16,Other Private Contractors,Aurora Severnside School,17322, 21-Dec-2022
345,Revenue,CAHD,Independent Special Placements - Post 16,Other Private Contractors,Aurora Severnside School,16989.12, 28-Dec-2022
346,Revenue,CAHD,Independent Special Placements - Pre 16,Other Private Contractors,Aurora Severnside School,25473, 21-Dec-2022
347,Revenue,CAHD,Independent Special Placements - Pre 16,Other Private Contractors,Aurora Severnside School,6746.46, 28-Dec-2022
348,Revenue,CAHD,Independent Special Placements - Pre 16,Other Private Contractors,Aurora Severnside School,17322, 19-Dec-2022
349,Revenue,CAHD,South - Commissioned Services,Permanent Residential,Autism Specialised Care Homes,6506.88, 13-Dec-2022
350,Revenue,CAHD,South - Commissioned Services,Fees & Charges Income - General,Autism Specialised Care Homes,-438.8, 13-Dec-2022
351,Revenue,CAHD,CSC - Adoption Support Fund,Post Adoption,Individual,595, 09-Dec-2022
352,Revenue,CAHD,CSC - LAC - Counselling & Therapy,Other Supplies & Services,Avon & Wiltshire Mental Health,15000, 06-Dec-2022
353,Revenue,CAHD,Younger Adult Mental Health,Health Services (Third Party Payments),Avon & Wiltshire Mental Health,6857, 16-Dec-2022
354,Revenue,CAHD,Younger Adult Mental Health,Health Services (Third Party Payments),Avon & Wiltshire Mental Health,1700, 20-Dec-2022
355,Revenue,CAHD,Leadership and Business Support,Drugs & Medical Supplies,Avon Local Pharmaceutical Committee,3672, 09-Dec-2022
356,Revenue,CAHD,South Glos Users in South Glos Homes,Permanent Nursing,Avon Lodge Care Centre,836.76, 13-Dec-2022
357,Revenue,CAHD,South Glos Users in South Glos Homes,Permanent Nursing,Avon Lodge Care Centre,836.76, 13-Dec-2022
358,Revenue,CAHD,South Glos Users in South Glos Homes,Permanent Nursing,Avon Lodge Care Centre,836.76, 13-Dec-2022
359,Revenue,CAHD,South Glos Users in South Glos Homes,Permanent Nursing,Avon Lodge Care Centre,836.76, 13-Dec-2022
360,Revenue,CAHD,South Glos Users in South Glos Homes,Permanent Nursing,Avon Lodge Care Centre,836.76, 13-Dec-2022
361,Revenue,CAHD,South Glos Users in South Glos Homes,Permanent Nursing,Avon Lodge Care Centre,836.76, 13-Dec-2022
362,Revenue,CAHD,South Glos Users in South Glos Homes,Permanent Nursing,Avon Lodge Care Centre,836.76, 13-Dec-2022
363,Revenue,CAHD,South Glos Users in South Glos Homes,Permanent Nursing,Avon Lodge Care Centre,836.76, 13-Dec-2022
364,Revenue,CAHD,South Glos Users in South Glos Homes,Permanent Nursing,Avon Lodge Care Centre,836.76, 13-Dec-2022
365,Revenue,CAHD,South Glos Users in South Glos Homes,Permanent Nursing,Avon Lodge Care Centre,836.76, 13-Dec-2022
366,Revenue,CAHD,South Glos Users in South Glos Homes,Permanent Nursing,Avon Lodge Care Centre,836.76, 13-Dec-2022
367,Revenue,CAHD,South Glos Users in South Glos Homes,Permanent Nursing,Avon Lodge Care Centre,836.76, 13-Dec-2022
368,Revenue,CAHD,South Glos Users in South Glos Homes,Permanent Nursing,Avon Lodge Care Centre,836.76, 13-Dec-2022
369,Revenue,CAHD,South Glos Users in South Glos Homes,Permanent Nursing,Avon Lodge Care Centre,836.76, 13-Dec-2022
370,Revenue,CAHD,South Glos Users in South Glos Homes,Permanent Nursing,Avon Lodge Care Centre,836.76, 13-Dec-2022
371,Revenue,CAHD,South Glos Users in South Glos Homes,Permanent Nursing,Avon Lodge Care Centre,836.76, 13-Dec-2022
372,Revenue,CAHD,South Glos Users in South Glos Homes,Permanent Nursing,Avon Lodge Care Centre,836.76, 13-Dec-2022
373,Revenue,CAHD,South Glos Users in South Glos Homes,Permanent Nursing,Avon Lodge Care Centre,836.76, 13-Dec-2022
374,Revenue,CAHD,South Glos Users in South Glos Homes,Permanent Nursing,Avon Lodge Care Centre,836.76, 13-Dec-2022
375,Revenue,CAHD,South Glos Users in South Glos Homes,Permanent Nursing,Avon Lodge Care Centre,836.76, 13-Dec-2022
376,Revenue,CAHD,South Glos Users in South Glos Homes,Permanent Nursing,Avon Lodge Care Centre,836.76, 13-Dec-2022
377,Revenue,CAHD,South Glos Users in South Glos Homes,Permanent Nursing,Avon Lodge Care Centre,836.76, 13-Dec-2022
378,Revenue,CAHD,South Glos Users in South Glos Homes,Permanent Nursing,Avon Lodge Care Centre,836.76, 13-Dec-2022
379,Revenue,CAHD,South Glos Users in South Glos Homes,Permanent Nursing,Avon Lodge Care Centre,836.76, 13-Dec-2022
380,Revenue,CAHD,South Glos Users in South Glos Homes,Permanent Nursing,Avon Lodge Care Centre,836.76, 13-Dec-2022
381,Revenue,CAHD,Central - Commissioned Services,Respite Care,Avon Lodge Care Centre,0, 13-Dec-2022
382,Revenue,CAHD,Central - Commissioned Services,Respite Planned - Residential,Avon Lodge Care Centre,4296, 13-Dec-2022
383,Revenue,CAHD,Central - Commissioned Services,Permanent Nursing,Avon Lodge Care Centre,4296.48, 13-Dec-2022
384,Revenue,CAHD,Central - Commissioned Services,Permanent Nursing,Avon Lodge Care Centre,4120.64, 13-Dec-2022
385,Revenue,CAHD,Central - Commissioned Services,Respite Planned - Nursing,Avon Lodge Care Centre,3222.36, 13-Dec-2022
386,Revenue,CAHD,Central - Commissioned Services,Fees & Charges Income - General,Avon Lodge Care Centre,-1308.52, 13-Dec-2022
387,Revenue,CAHD,Central - Commissioned Services,Fees & Charges Income - General,Avon Lodge Care Centre,-956.96, 13-Dec-2022
388,Revenue,CAHD,South - Commissioned Services,Respite Care,Avon Lodge Care Centre,0, 13-Dec-2022
389,Revenue,CAHD,South - Commissioned Services,Respite Care,Avon Lodge Care Centre,0, 13-Dec-2022
390,Revenue,CAHD,South - Commissioned Services,Respite Care,Avon Lodge Care Centre,0, 13-Dec-2022
391,Revenue,CAHD,South - Commissioned Services,Respite Care,Avon Lodge Care Centre,0, 13-Dec-2022
392,Revenue,CAHD,South - Commissioned Services,Permanent Residential,Avon Lodge Care Centre,10741.2, 13-Dec-2022
393,Revenue,CAHD,South - Commissioned Services,Permanent Residential,Avon Lodge Care Centre,3318.24, 13-Dec-2022
394,Revenue,CAHD,South - Commissioned Services,Permanent Residential,Avon Lodge Care Centre,3800, 13-Dec-2022
395,Revenue,CAHD,South - Commissioned Services,Permanent Residential,Avon Lodge Care Centre,3816, 13-Dec-2022
396,Revenue,CAHD,South - Commissioned Services,Permanent Residential,Avon Lodge Care Centre,4296, 13-Dec-2022
397,Revenue,CAHD,South - Commissioned Services,Permanent Residential,Avon Lodge Care Centre,3667.6, 13-Dec-2022
398,Revenue,CAHD,South - Commissioned Services,Permanent Residential,Avon Lodge Care Centre,-8135.71, 13-Dec-2022
399,Revenue,CAHD,South - Commissioned Services,Respite Planned - Residential,Avon Lodge Care Centre,9711, 13-Dec-2022
400,Revenue,CAHD,South - Commissioned Services,Permanent Nursing,Avon Lodge Care Centre,4296.48, 13-Dec-2022
401,Revenue,CAHD,South - Commissioned Services,Permanent Nursing,Avon Lodge Care Centre,4028, 13-Dec-2022
402,Revenue,CAHD,South - Commissioned Services,Permanent Nursing,Avon Lodge Care Centre,4296.48, 13-Dec-2022
403,Revenue,CAHD,South - Commissioned Services,Permanent Nursing,Avon Lodge Care Centre,5349.68, 13-Dec-2022
404,Revenue,CAHD,South - Commissioned Services,Permanent Nursing,Avon Lodge Care Centre,3539.44, 13-Dec-2022
405,Revenue,CAHD,South - Commissioned Services,Permanent Nursing,Avon Lodge Care Centre,3751.96, 13-Dec-2022
406,Revenue,CAHD,South - Commissioned Services,Permanent Nursing,Avon Lodge Care Centre,4210.12, 13-Dec-2022
407,Revenue,CAHD,South - Commissioned Services,Permanent Nursing,Avon Lodge Care Centre,4714.76, 13-Dec-2022
408,Revenue,CAHD,South - Commissioned Services,Permanent Nursing,Avon Lodge Care Centre,4775.44, 13-Dec-2022
409,Revenue,CAHD,South - Commissioned Services,Permanent Nursing,Avon Lodge Care Centre,4674.92, 13-Dec-2022
410,Revenue,CAHD,South - Commissioned Services,Permanent Nursing,Avon Lodge Care Centre,4664, 13-Dec-2022
411,Revenue,CAHD,South - Commissioned Services,Permanent Nursing,Avon Lodge Care Centre,4554.28, 13-Dec-2022
412,Revenue,CAHD,South - Commissioned Services,Permanent Nursing,Avon Lodge Care Centre,4143.04, 13-Dec-2022
413,Revenue,CAHD,South - Commissioned Services,Permanent Nursing,Avon Lodge Care Centre,4296.48, 13-Dec-2022
414,Revenue,CAHD,South - Commissioned Services,Respite Planned - Nursing,Avon Lodge Care Centre,-5370, 13-Dec-2022
415,Revenue,CAHD,South - Commissioned Services,Respite Planned - Nursing,Avon Lodge Care Centre,8592.96, 13-Dec-2022
416,Revenue,CAHD,South - Commissioned Services,Respite Planned - Nursing,Avon Lodge Care Centre,4143.03, 13-Dec-2022
417,Revenue,CAHD,South - Commissioned Services,Respite Planned - Nursing,Avon Lodge Care Centre,6444.72, 13-Dec-2022
418,Revenue,CAHD,South - Commissioned Services,Fees & Charges Income - General,Avon Lodge Care Centre,-3671.3, 13-Dec-2022
419,Revenue,CAHD,South - Commissioned Services,Fees & Charges Income - General,Avon Lodge Care Centre,-679.8, 13-Dec-2022
420,Revenue,CAHD,South - Commissioned Services,Fees & Charges Income - General,Avon Lodge Care Centre,-1332.24, 13-Dec-2022
421,Revenue,CAHD,South - Commissioned Services,Fees & Charges Income - General,Avon Lodge Care Centre,-725.24, 13-Dec-2022
422,Revenue,CAHD,South - Commissioned Services,Fees & Charges Income - General,Avon Lodge Care Centre,-1066.12, 13-Dec-2022
423,Revenue,CAHD,South - Commissioned Services,Fees & Charges Income - General,Avon Lodge Care Centre,-1393.76, 13-Dec-2022
424,Revenue,CAHD,South - Commissioned Services,Fees & Charges Income - General,Avon Lodge Care Centre,-1525, 13-Dec-2022
425,Revenue,CAHD,South - Commissioned Services,Fees & Charges Income - General,Avon Lodge Care Centre,-438.8, 13-Dec-2022
426,Revenue,CAHD,South - Commissioned Services,Fees & Charges Income - General,Avon Lodge Care Centre,-1280.2, 13-Dec-2022
427,Revenue,CAHD,South - Commissioned Services,Fees & Charges Income - General,Avon Lodge Care Centre,-811.68, 13-Dec-2022
428,Revenue,CAHD,South - Commissioned Services,Fees & Charges Income - General,Avon Lodge Care Centre,-1017.44, 13-Dec-2022
429,Revenue,CAHD,South - Commissioned Services,Fees & Charges Income - General,Avon Lodge Care Centre,-852.32, 13-Dec-2022
430,Revenue,CAHD,South - Commissioned Services,Fees & Charges Income - General,Avon Lodge Care Centre,-1056.84, 13-Dec-2022
431,Revenue,CAHD,South - Commissioned Services,Fees & Charges Income - General,Avon Lodge Care Centre,-1889.12, 13-Dec-2022
432,Revenue,CAHD,South - Commissioned Services,Fees & Charges Income - General,Avon Lodge Care Centre,-627.8, 13-Dec-2022
433,Revenue,CAHD,South - Commissioned Services,Fees & Charges Income - General,Avon Lodge Care Centre,-627.8, 13-Dec-2022
434,Revenue,CAHD,South - Commissioned Services,Fees & Charges Income - General,Avon Lodge Care Centre,-1421.42, 13-Dec-2022
435,Revenue,CAHD,North - Community based support,Respite Care,Avon Lodge Care Centre,0, 13-Dec-2022
436,Revenue,CAHD,North - Community based support,Permanent Residential,Avon Lodge Care Centre,4296, 13-Dec-2022
437,Revenue,CAHD,North - Community based support,Permanent Residential,Avon Lodge Care Centre,3751.96, 13-Dec-2022
438,Revenue,CAHD,North - Community based support,Permanent Nursing,Avon Lodge Care Centre,4553.76, 13-Dec-2022
439,Revenue,CAHD,North - Community based support,Permanent Nursing,Avon Lodge Care Centre,3989.59, 13-Dec-2022
440,Revenue,CAHD,North - Community based support,Permanent Nursing,Avon Lodge Care Centre,4120.64, 13-Dec-2022
441,Revenue,CAHD,North - Community based support,Fees & Charges Income - General,Avon Lodge Care Centre,-627.8, 13-Dec-2022
442,Revenue,CAHD,North - Community based support,Fees & Charges Income - General,Avon Lodge Care Centre,-1123.32, 13-Dec-2022
443,Revenue,CAHD,North - Community based support,Fees & Charges Income - General,Avon Lodge Care Centre,-1493.16, 13-Dec-2022
444,Revenue,CAHD,North - Community based support,Fees & Charges Income - General,Avon Lodge Care Centre,-794.36, 13-Dec-2022
445,Revenue,CAHD,South - Commissioned Services,Respite Care,Avon Valley Care Home,0, 13-Dec-2022
446,Revenue,CAHD,South - Commissioned Services,Permanent Residential,Avon Valley Care Home,-4027.7, 13-Dec-2022
447,Revenue,CAHD,South - Commissioned Services,Permanent Residential,Avon Valley Care Home,4526.2, 13-Dec-2022
448,Revenue,CAHD,South - Commissioned Services,Permanent Residential,Avon Valley Care Home,4294.16, 13-Dec-2022
449,Revenue,CAHD,South - Commissioned Services,Permanent Residential,Avon Valley Care Home,4483.8, 13-Dec-2022
450,Revenue,CAHD,South - Commissioned Services,Permanent Residential,Avon Valley Care Home,4294.16, 13-Dec-2022
451,Revenue,CAHD,South - Commissioned Services,Permanent Residential,Avon Valley Care Home,4526.2, 13-Dec-2022
452,Revenue,CAHD,South - Commissioned Services,Permanent Residential,Avon Valley Care Home,3214.08, 13-Dec-2022
453,Revenue,CAHD,South - Commissioned Services,Permanent Residential,Avon Valley Care Home,4483.8, 13-Dec-2022
454,Revenue,CAHD,South - Commissioned Services,Permanent Residential,Avon Valley Care Home,13531.07, 13-Dec-2022
455,Revenue,CAHD,South - Commissioned Services,Permanent Residential,Avon Valley Care Home,4570, 13-Dec-2022
456,Revenue,CAHD,South - Commissioned Services,Permanent Residential,Avon Valley Care Home,4728.28, 13-Dec-2022
457,Revenue,CAHD,South - Commissioned Services,Permanent Residential,Avon Valley Care Home,3860.4, 13-Dec-2022
458,Revenue,CAHD,South - Commissioned Services,Permanent Residential,Avon Valley Care Home,-13763.53, 13-Dec-2022
459,Revenue,CAHD,South - Commissioned Services,Permanent Residential,Avon Valley Care Home,3980, 13-Dec-2022
460,Revenue,CAHD,South - Commissioned Services,Permanent Residential,Avon Valley Care Home,4483.8, 13-Dec-2022
461,Revenue,CAHD,South - Commissioned Services,Permanent Residential,Avon Valley Care Home,3980, 13-Dec-2022
462,Revenue,CAHD,South - Commissioned Services,Permanent Residential,Avon Valley Care Home,4712, 13-Dec-2022
463,Revenue,CAHD,South - Commissioned Services,Permanent Residential,Avon Valley Care Home,7028.58, 13-Dec-2022
464,Revenue,CAHD,South - Commissioned Services,Respite Emergency - Residential,Avon Valley Care Home,1371.43, 13-Dec-2022
465,Revenue,CAHD,South - Commissioned Services,Fees & Charges Income - General,Avon Valley Care Home,583.29, 13-Dec-2022
466,Revenue,CAHD,South - Commissioned Services,Fees & Charges Income - General,Avon Valley Care Home,-1009.24, 13-Dec-2022
467,Revenue,CAHD,South - Commissioned Services,Fees & Charges Income - General,Avon Valley Care Home,-1285.52, 13-Dec-2022
468,Revenue,CAHD,South - Commissioned Services,Fees & Charges Income - General,Avon Valley Care Home,-1040.32, 13-Dec-2022
469,Revenue,CAHD,South - Commissioned Services,Fees & Charges Income - General,Avon Valley Care Home,0, 13-Dec-2022
470,Revenue,CAHD,South - Commissioned Services,Fees & Charges Income - General,Avon Valley Care Home,-4715.29, 13-Dec-2022
471,Revenue,CAHD,South - Commissioned Services,Fees & Charges Income - General,Avon Valley Care Home,-1972.56, 13-Dec-2022
472,Revenue,CAHD,South - Commissioned Services,Fees & Charges Income - General,Avon Valley Care Home,-663.8, 13-Dec-2022
473,Revenue,CAHD,South - Commissioned Services,Fees & Charges Income - General,Avon Valley Care Home,-1202.56, 13-Dec-2022
474,Revenue,CAHD,South - Commissioned Services,Fees & Charges Income - General,Avon Valley Care Home,3536.49, 13-Dec-2022
475,Revenue,CAHD,South - Commissioned Services,Fees & Charges Income - General,Avon Valley Care Home,-627.8, 13-Dec-2022
476,Revenue,CAHD,South - Commissioned Services,Fees & Charges Income - General,Avon Valley Care Home,-1175.92, 13-Dec-2022
477,Revenue,CAHD,South - Commissioned Services,Fees & Charges Income - General,Avon Valley Care Home,-793.84, 13-Dec-2022
478,Revenue,CAHD,South - Commissioned Services,Fees & Charges Income - General,Avon Valley Care Home,-1557.16, 13-Dec-2022
479,Revenue,CAHD,South - Commissioned Services,Fees & Charges Income - General,Avon Valley Care Home,-983.71, 13-Dec-2022
480,Revenue,CAHD,North - Community based support,Permanent Residential,Avon Valley Care Home,4400, 13-Dec-2022
481,Revenue,CAHD,North - Community based support,Fees & Charges Income - General,Avon Valley Care Home,-895.2, 13-Dec-2022
482,Revenue,CAHD,South - S117,Permanent Residential,Avon Valley Care Home,4337.52, 13-Dec-2022
483,Revenue,CAHD,Central - Commissioned Services,Permanent Residential,Avonmere Care Home,4140, 13-Dec-2022
484,Revenue,CAHD,Central - Commissioned Services,Fees & Charges Income - General,Avonmere Care Home,-627.8, 13-Dec-2022
485,Revenue,CAHD,South - Commissioned Services,Permanent Residential,Avonmere Care Home,3980, 13-Dec-2022
486,Revenue,CAHD,South - Commissioned Services,Fees & Charges Income - General,Avonmere Care Home,-992.44, 13-Dec-2022
487,Revenue,CAHD,North - Community based support,Permanent Residential,Avonmere Care Home,4140, 13-Dec-2022
488,Revenue,CAHD,North - Community based support,Permanent Residential,Avonmere Care Home,4960.8, 13-Dec-2022
489,Revenue,CAHD,North - Community based support,Permanent Residential,Avonmere Care Home,-5857.14, 13-Dec-2022
490,Revenue,CAHD,North - Community based support,Permanent Residential,Avonmere Care Home,4793, 13-Dec-2022
491,Revenue,CAHD,North - Community based support,Permanent Residential,Avonmere Care Home,4876, 13-Dec-2022
492,Revenue,CAHD,North - Community based support,Permanent Residential,Avonmere Care Home,4140, 13-Dec-2022
493,Revenue,CAHD,North - Community based support,Permanent Residential,Avonmere Care Home,4140, 13-Dec-2022
494,Revenue,CAHD,North - Community based support,Fees & Charges Income - General,Avonmere Care Home,-1053.51, 13-Dec-2022
495,Revenue,CAHD,North - Community based support,Fees & Charges Income - General,Avonmere Care Home,-1090.32, 13-Dec-2022
496,Revenue,CAHD,North - Community based support,Fees & Charges Income - General,Avonmere Care Home,0, 13-Dec-2022
497,Revenue,CAHD,North - Community based support,Fees & Charges Income - General,Avonmere Care Home,-1002.96, 13-Dec-2022
498,Revenue,CAHD,North - Community based support,Fees & Charges Income - General,Avonmere Care Home,-1111.72, 13-Dec-2022
499,Revenue,CAHD,North - Community based support,Fees & Charges Income - General,Avonmere Care Home,-1070.64, 13-Dec-2022
500,Revenue,CAHD,North - Community based support,Fees & Charges Income - General,Avonmere Care Home,-997.4, 13-Dec-2022
501,Revenue,CAHD,EARLY YEARS DISABILITY  ACCES FUND,Preventative Assistance,Baker Street Nursery & Preschool Yate,800, 12-Dec-2022
502,Revenue,CAHD,North - Community based support,Permanent Nursing,Bamfield Lodge,5200, 13-Dec-2022
503,Revenue,CAHD,North - Community based support,Fees & Charges Income - General,Bamfield Lodge,-1168.04, 13-Dec-2022
504,Revenue,CAHD,Hospital Team,Fees - General,Individual,4275, 15-Dec-2022
505,Revenue,CAHD,Pensions - Non DSG,Unfunded Annual Pension,Bath & North East Somerset Council,7196.64, 06-Dec-2022
506,Revenue,CAHD,Pensions - Non DSG,Unfunded Annual Pension,Bath & North East Somerset Council,7196.64, 08-Dec-2022
507,Revenue,CAHD,Support for Improving Educational Outcomes,Catering,Bawa Healthcare & Leisure,1189.58, 23-Dec-2022
508,Revenue,CAHD,CSC - Adoption Support Fund,Post Adoption,Individual,875, 12-Dec-2022
509,Revenue,CAHD,South Glos Users in South Glos Homes,Permanent Nursing,Beaufort Grange Care Home,836.76, 13-Dec-2022
510,Revenue,CAHD,South Glos Users in South Glos Homes,Permanent Nursing,Beaufort Grange Care Home,836.76, 13-Dec-2022
511,Revenue,CAHD,South Glos Users in South Glos Homes,Permanent Nursing,Beaufort Grange Care Home,836.76, 13-Dec-2022
512,Revenue,CAHD,South Glos Users in South Glos Homes,Permanent Nursing,Beaufort Grange Care Home,836.76, 13-Dec-2022
513,Revenue,CAHD,South Glos Users in South Glos Homes,Permanent Nursing,Beaufort Grange Care Home,836.76, 13-Dec-2022
514,Revenue,CAHD,South Glos Users in South Glos Homes,Permanent Nursing,Beaufort Grange Care Home,836.76, 13-Dec-2022
515,Revenue,CAHD,South Glos Users in South Glos Homes,Permanent Nursing,Beaufort Grange Care Home,836.76, 13-Dec-2022
516,Revenue,CAHD,South Glos Users in South Glos Homes,Permanent Nursing,Beaufort Grange Care Home,836.76, 13-Dec-2022
517,Revenue,CAHD,South Glos Users in South Glos Homes,Permanent Nursing,Beaufort Grange Care Home,836.76, 13-Dec-2022
518,Revenue,CAHD,South Glos Users in South Glos Homes,Permanent Nursing,Beaufort Grange Care Home,836.76, 13-Dec-2022
519,Revenue,CAHD,South Glos Users in South Glos Homes,Permanent Nursing,Beaufort Grange Care Home,836.76, 13-Dec-2022
520,Revenue,CAHD,South Glos Users in South Glos Homes,Permanent Nursing,Beaufort Grange Care Home,836.76, 13-Dec-2022
521,Revenue,CAHD,South Glos Users in South Glos Homes,Permanent Nursing,Beaufort Grange Care Home,836.76, 13-Dec-2022
522,Revenue,CAHD,South Glos Users in South Glos Homes,Permanent Nursing,Beaufort Grange Care Home,836.76, 13-Dec-2022
523,Revenue,CAHD,South Glos Users in South Glos Homes,Permanent Nursing,Beaufort Grange Care Home,836.76, 13-Dec-2022
524,Revenue,CAHD,South Glos Users in South Glos Homes,Permanent Nursing,Beaufort Grange Care Home,836.76, 13-Dec-2022
525,Revenue,CAHD,South Glos Users in South Glos Homes,Permanent Nursing,Beaufort Grange Care Home,836.76, 13-Dec-2022
526,Revenue,CAHD,South Glos Users in South Glos Homes,Permanent Nursing,Beaufort Grange Care Home,836.76, 13-Dec-2022
527,Revenue,CAHD,South Glos Users in South Glos Homes,Permanent Nursing,Beaufort Grange Care Home,836.76, 13-Dec-2022
528,Revenue,CAHD,South Glos Users in South Glos Homes,Permanent Nursing,Beaufort Grange Care Home,836.76, 13-Dec-2022
529,Revenue,CAHD,South Glos Users in South Glos Homes,Permanent Nursing,Beaufort Grange Care Home,836.76, 13-Dec-2022
530,Revenue,CAHD,South Glos Users in South Glos Homes,Permanent Nursing,Beaufort Grange Care Home,836.76, 13-Dec-2022
531,Revenue,CAHD,South Glos Users in South Glos Homes,Permanent Nursing,Beaufort Grange Care Home,836.76, 13-Dec-2022
532,Revenue,CAHD,South Glos Users in South Glos Homes,Permanent Nursing,Beaufort Grange Care Home,836.76, 13-Dec-2022
533,Revenue,CAHD,South Glos Users in South Glos Homes,Permanent Nursing,Beaufort Grange Care Home,836.76, 13-Dec-2022
534,Revenue,CAHD,South Glos Users in South Glos Homes,Permanent Nursing,Beaufort Grange Care Home,836.76, 13-Dec-2022
535,Revenue,CAHD,South Glos Users in South Glos Homes,Permanent Nursing,Beaufort Grange Care Home,836.76, 13-Dec-2022
536,Revenue,CAHD,South Glos Users in South Glos Homes,Permanent Nursing,Beaufort Grange Care Home,836.76, 13-Dec-2022
537,Revenue,CAHD,South Glos Users in South Glos Homes,Permanent Nursing,Beaufort Grange Care Home,836.76, 13-Dec-2022
538,Revenue,CAHD,South Glos Users in South Glos Homes,Permanent Nursing,Beaufort Grange Care Home,836.76, 13-Dec-2022
539,Revenue,CAHD,South Glos Users in South Glos Homes,Permanent Nursing,Beaufort Grange Care Home,836.76, 13-Dec-2022
540,Revenue,CAHD,South Glos Users in South Glos Homes,Permanent Nursing,Beaufort Grange Care Home,836.76, 13-Dec-2022
541,Revenue,CAHD,South Glos Users in South Glos Homes,Permanent Nursing,Beaufort Grange Care Home,836.76, 13-Dec-2022
542,Revenue,CAHD,South Glos Users in South Glos Homes,Permanent Nursing,Beaufort Grange Care Home,836.76, 13-Dec-2022
543,Revenue,CAHD,South Glos Users in South Glos Homes,Permanent Nursing,Beaufort Grange Care Home,836.76, 13-Dec-2022
544,Revenue,CAHD,South Glos Users in South Glos Homes,Permanent Nursing,Beaufort Grange Care Home,836.76, 13-Dec-2022
545,Revenue,CAHD,South Glos Users in South Glos Homes,Permanent Nursing,Beaufort Grange Care Home,836.76, 13-Dec-2022
546,Revenue,CAHD,Central - Commissioned Services,Permanent Residential,Beaufort Grange Care Home,7200, 13-Dec-2022
547,Revenue,CAHD,Central - Commissioned Services,Permanent Nursing,Beaufort Grange Care Home,5500, 13-Dec-2022
548,Revenue,CAHD,Central - Commissioned Services,Permanent Nursing,Beaufort Grange Care Home,2968.58, 13-Dec-2022
549,Revenue,CAHD,Central - Commissioned Services,Permanent Nursing,Beaufort Grange Care Home,5400, 13-Dec-2022
550,Revenue,CAHD,Central - Commissioned Services,Permanent Nursing,Beaufort Grange Care Home,5500, 13-Dec-2022
551,Revenue,CAHD,Central - Commissioned Services,Permanent Nursing,Beaufort Grange Care Home,5449.6, 13-Dec-2022
552,Revenue,CAHD,Central - Commissioned Services,Permanent Nursing,Beaufort Grange Care Home,7189.29, 13-Dec-2022
553,Revenue,CAHD,Central - Commissioned Services,Fees & Charges Income - General,Beaufort Grange Care Home,-607.8, 13-Dec-2022
554,Revenue,CAHD,Central - Commissioned Services,Fees & Charges Income - General,Beaufort Grange Care Home,-894.8, 13-Dec-2022
555,Revenue,CAHD,Central - Commissioned Services,Fees & Charges Income - General,Beaufort Grange Care Home,-1180.93, 13-Dec-2022
556,Revenue,CAHD,South - Commissioned Services,Permanent Nursing,Beaufort Grange Care Home,23400, 13-Dec-2022
557,Revenue,CAHD,South - Commissioned Services,Permanent Nursing,Beaufort Grange Care Home,6400, 13-Dec-2022
558,Revenue,CAHD,North - Community based support,Permanent Residential,Beaufort Grange Care Home,15600, 13-Dec-2022
559,Revenue,CAHD,North - Community based support,Permanent Nursing,Beaufort Grange Care Home,4369.6, 13-Dec-2022
560,Revenue,CAHD,North - Community based support,Permanent Nursing,Beaufort Grange Care Home,10620, 13-Dec-2022
561,Revenue,CAHD,North - Community based support,Fees & Charges Income - General,Beaufort Grange Care Home,-627.8, 13-Dec-2022
562,Revenue,CAHD,North - Community based support,Fees & Charges Income - General,Beaufort Grange Care Home,-438.8, 13-Dec-2022
563,Revenue,CAHD,Central Team - S117,Permanent Nursing,Beaufort Grange Care Home,5849.6, 13-Dec-2022
564,Revenue,CAHD,Central - Commissioned Services,Permanent Residential,Beaufort House,3171.36, 13-Dec-2022
565,Revenue,CAHD,Central - Commissioned Services,Permanent Residential,Beaufort House,4028, 13-Dec-2022
566,Revenue,CAHD,Central - Commissioned Services,Permanent Residential,Beaufort House,3582.8, 13-Dec-2022
567,Revenue,CAHD,Central - Commissioned Services,Permanent Residential,Beaufort House,4000, 13-Dec-2022
568,Revenue,CAHD,Central - Commissioned Services,Permanent Residential,Beaufort House,3392, 13-Dec-2022
569,Revenue,CAHD,Central - Commissioned Services,Permanent Residential,Beaufort House,4240, 13-Dec-2022
570,Revenue,CAHD,Central - Commissioned Services,Permanent Residential,Beaufort House,3816, 13-Dec-2022
571,Revenue,CAHD,Central - Commissioned Services,Permanent Residential,Beaufort House,3816, 13-Dec-2022
572,Revenue,CAHD,Central - Commissioned Services,Permanent Residential,Beaufort House,4000, 13-Dec-2022
573,Revenue,CAHD,Central - Commissioned Services,Respite Planned - Nursing,Beaufort House,-471.43, 13-Dec-2022
574,Revenue,CAHD,Central - Commissioned Services,Fees & Charges Income - General,Beaufort House,-821.12, 13-Dec-2022
575,Revenue,CAHD,Central - Commissioned Services,Fees & Charges Income - General,Beaufort House,-731.44, 13-Dec-2022
576,Revenue,CAHD,Central - Commissioned Services,Fees & Charges Income - General,Beaufort House,-1448.48, 13-Dec-2022
577,Revenue,CAHD,Central - Commissioned Services,Fees & Charges Income - General,Beaufort House,-1540.88, 13-Dec-2022
578,Revenue,CAHD,Central - Commissioned Services,Fees & Charges Income - General,Beaufort House,-751.32, 13-Dec-2022
579,Revenue,CAHD,Central - Commissioned Services,Fees & Charges Income - General,Beaufort House,-627.8, 13-Dec-2022
580,Revenue,CAHD,Central - Commissioned Services,Fees & Charges Income - General,Beaufort House,-1125.36, 13-Dec-2022
581,Revenue,CAHD,North - Community based support,Permanent Residential,Beaufort House,4240, 13-Dec-2022
582,Revenue,CAHD,North - Community based support,Permanent Residential,Beaufort House,2986.32, 13-Dec-2022
583,Revenue,CAHD,North - Community based support,Permanent Residential,Beaufort House,4240, 13-Dec-2022
584,Revenue,CAHD,North - Community based support,Fees & Charges Income - General,Beaufort House,-1166.52, 13-Dec-2022
585,Revenue,CAHD,North - Community based support,Fees & Charges Income - General,Beaufort House,-627.8, 13-Dec-2022
586,Revenue,CAHD,North - Community based support,Fees & Charges Income - General,Beaufort House,-663.8, 13-Dec-2022
587,Revenue,CAHD,South Glos Users in South Glos Homes,Permanent Nursing,Beech House,836.76, 13-Dec-2022
588,Revenue,CAHD,South Glos Users in South Glos Homes,Permanent Nursing,Beech House,836.76, 13-Dec-2022
589,Revenue,CAHD,South Glos Users in South Glos Homes,Permanent Nursing,Beech House,836.76, 13-Dec-2022
590,Revenue,CAHD,South Glos Users in South Glos Homes,Permanent Nursing,Beech House,836.76, 13-Dec-2022
591,Revenue,CAHD,South Glos Users in South Glos Homes,Permanent Nursing,Beech House,836.76, 13-Dec-2022
592,Revenue,CAHD,South Glos Users in South Glos Homes,Permanent Nursing,Beech House,836.76, 13-Dec-2022
593,Revenue,CAHD,South Glos Users in South Glos Homes,Permanent Nursing,Beech House,836.76, 13-Dec-2022
594,Revenue,CAHD,South Glos Users in South Glos Homes,Permanent Nursing,Beech House,836.76, 13-Dec-2022
595,Revenue,CAHD,South Glos Users in South Glos Homes,Permanent Nursing,Beech House,836.76, 13-Dec-2022
596,Revenue,CAHD,South Glos Users in South Glos Homes,Permanent Nursing,Beech House,836.76, 13-Dec-2022
597,Revenue,CAHD,South Glos Users in South Glos Homes,Permanent Nursing,Beech House,836.76, 13-Dec-2022
598,Revenue,CAHD,South Glos Users in South Glos Homes,Permanent Nursing,Beech House,836.76, 13-Dec-2022
599,Revenue,CAHD,South Glos Users in South Glos Homes,Permanent Nursing,Beech House,836.76, 13-Dec-2022
600,Revenue,CAHD,South Glos Users in South Glos Homes,Permanent Nursing,Beech House,836.76, 13-Dec-2022
601,Revenue,CAHD,South Glos Users in South Glos Homes,Permanent Nursing,Beech House,836.76, 13-Dec-2022
602,Revenue,CAHD,South Glos Users in South Glos Homes,Permanent Nursing,Beech House,836.76, 13-Dec-2022
603,Revenue,CAHD,South Glos Users in South Glos Homes,Permanent Nursing,Beech House,836.76, 13-Dec-2022
604,Revenue,CAHD,South Glos Users in South Glos Homes,Permanent Nursing,Beech House,836.76, 13-Dec-2022
605,Revenue,CAHD,South Glos Users in South Glos Homes,Permanent Nursing,Beech House,836.76, 13-Dec-2022
606,Revenue,CAHD,Central - Commissioned Services,Permanent Nursing,Beech House,836.76, 13-Dec-2022
607,Revenue,CAHD,South - Commissioned Services,Permanent Residential,Beech House,4748.8, 13-Dec-2022
608,Revenue,CAHD,South - Commissioned Services,Fees & Charges Income - General,Beech House,-789.36, 13-Dec-2022
609,Revenue,CAHD,North - Community based support,Permanent Residential,Beech House,4727.88, 13-Dec-2022
610,Revenue,CAHD,North - Community based support,Permanent Residential,Beech House,711.92, 13-Dec-2022
611,Revenue,CAHD,North - Community based support,Permanent Residential,Beech House,4748.8, 13-Dec-2022
612,Revenue,CAHD,North - Community based support,Permanent Residential,Beech House,4772.8, 13-Dec-2022
613,Revenue,CAHD,North - Community based support,Permanent Residential,Beech House,4748.8, 13-Dec-2022
614,Revenue,CAHD,North - Community based support,Permanent Residential,Beech House,4664, 13-Dec-2022
615,Revenue,CAHD,North - Community based support,Permanent Nursing,Beech House,4660, 13-Dec-2022
616,Revenue,CAHD,North - Community based support,Permanent Nursing,Beech House,4660, 13-Dec-2022
617,Revenue,CAHD,North - Community based support,Permanent Nursing,Beech House,836.76, 13-Dec-2022
618,Revenue,CAHD,North - Community based support,Permanent Nursing,Beech House,4760, 13-Dec-2022
619,Revenue,CAHD,North - Community based support,Permanent Nursing,Beech House,5887.02, 13-Dec-2022
620,Revenue,CAHD,North - Community based support,Permanent Nursing,Beech House,4671.56, 13-Dec-2022
621,Revenue,CAHD,North - Community based support,Permanent Nursing,Beech House,836.76, 13-Dec-2022
622,Revenue,CAHD,North - Community based support,Permanent Nursing,Beech House,3409.14, 13-Dec-2022
623,Revenue,CAHD,North - Community based support,Permanent Nursing,Beech House,5496, 13-Dec-2022
624,Revenue,CAHD,North - Community based support,Fees & Charges Income - General,Beech House,-627.8, 13-Dec-2022
625,Revenue,CAHD,North - Community based support,Fees & Charges Income - General,Beech House,-1904.6, 13-Dec-2022
626,Revenue,CAHD,North - Community based support,Fees & Charges Income - General,Beech House,-1372.6, 13-Dec-2022
627,Revenue,CAHD,North - Community based support,Fees & Charges Income - General,Beech House,-1356.72, 13-Dec-2022
628,Revenue,CAHD,North - Community based support,Fees & Charges Income - General,Beech House,-1822.16, 13-Dec-2022
629,Revenue,CAHD,North - Community based support,Fees & Charges Income - General,Beech House,-629, 13-Dec-2022
630,Revenue,CAHD,North - Community based support,Fees & Charges Income - General,Beech House,-1428.72, 13-Dec-2022
631,Revenue,CAHD,North - Community based support,Fees & Charges Income - General,Beech House,-861.57, 13-Dec-2022
632,Revenue,CAHD,North - Community based support,Fees & Charges Income - General,Beech House,-840.16, 13-Dec-2022
633,Revenue,CAHD,North - Community based support,Fees & Charges Income - General,Beech House,-1304.6, 13-Dec-2022
634,Revenue,CAHD,North - Community based support,Fees & Charges Income - General,Beech House,-2372.5, 13-Dec-2022
635,Revenue,CAHD,18-25 Year Olds,Permanent Residential,Beechwood Court Ltd,15505.7, 19-Dec-2022
636,Revenue,CAHD,18-25 Year Olds,Permanent Residential,Beechwood Court Ltd,22328.35, 19-Dec-2022
637,Revenue,CAHD,Schools Specific Grant Income,Other Public Bodies,Begbrook Primary Academy,550, 20-Dec-2022
638,Revenue,CAHD,Homeless - Private Sector Leasing,Legal Fees,Bevan Brittan LLP,1982, 22-Dec-2022
639,Revenue,CAHD,South - S117,Permanent Residential,Bidna House,3774.24, 13-Dec-2022
640,Revenue,CAHD,Placements OLA Special Schools and RB,Other L.A.s - General,Blaise High School,792.41, 23-Dec-2022
641,Revenue,CAHD,Placements OLA Special Schools and RB,Other L.A.s - General,Blaise High School,792.41, 23-Dec-2022
642,Revenue,CAHD,Statemented Support Payments to OLAs,Other L.A.s - General,Blaise High School,907.83, 23-Dec-2022
643,Revenue,CAHD,Placements OLA Special Schools and RB,Other L.A.s - General,Blaise High School,792.41, 23-Dec-2022
644,Revenue,CAHD,18-25 Year Olds,Other Small Contracts,Blakehill Healthcare Ltd,575.94, 22-Dec-2022
645,Revenue,CAHD,Central - Commissioned Services,Other Small Contracts,Blakehill Healthcare Ltd,423.68, 22-Dec-2022
646,Revenue,CAHD,Central - Commissioned Services,Other Small Contracts,Blakehill Healthcare Ltd,178.74, 22-Dec-2022
647,Revenue,CAHD,Central - Commissioned Services,Other Small Contracts,Blakehill Healthcare Ltd,529.6, 22-Dec-2022
648,Revenue,CAHD,Central - Commissioned Services,Other Small Contracts,Blakehill Healthcare Ltd,973.14, 22-Dec-2022
649,Revenue,CAHD,Central - Commissioned Services,Other Small Contracts,Blakehill Healthcare Ltd,397.2, 22-Dec-2022
650,Revenue,CAHD,Central - Commissioned Services,Other Small Contracts,Blakehill Healthcare Ltd,2098.54, 22-Dec-2022
651,Revenue,CAHD,Central - Commissioned Services,Other Small Contracts,Blakehill Healthcare Ltd,1211.46, 22-Dec-2022
652,Revenue,CAHD,Central - Commissioned Services,Other Small Contracts,Blakehill Healthcare Ltd,476.64, 22-Dec-2022
653,Revenue,CAHD,Central - Commissioned Services,Other Small Contracts,Blakehill Healthcare Ltd,383.96, 22-Dec-2022
654,Revenue,CAHD,Central - Commissioned Services,Other Small Contracts,Blakehill Healthcare Ltd,1701.34, 22-Dec-2022
655,Revenue,CAHD,Central - Commissioned Services,Other Small Contracts,Blakehill Healthcare Ltd,423.68, 22-Dec-2022
656,Revenue,CAHD,Central - Commissioned Services,Other Small Contracts,Blakehill Healthcare Ltd,383.96, 22-Dec-2022
657,Revenue,CAHD,Central - Commissioned Services,Other Small Contracts,Blakehill Healthcare Ltd,383.96, 22-Dec-2022
658,Revenue,CAHD,Central - Commissioned Services,Other Small Contracts,Blakehill Healthcare Ltd,648.76, 22-Dec-2022
659,Revenue,CAHD,Central - Commissioned Services,Other Small Contracts,Blakehill Healthcare Ltd,840.74, 22-Dec-2022
660,Revenue,CAHD,Central - Commissioned Services,Other Small Contracts,Blakehill Healthcare Ltd,1509.36, 22-Dec-2022
661,Revenue,CAHD,Central - Commissioned Services,Other Small Contracts,Blakehill Healthcare Ltd,364.1, 22-Dec-2022
662,Revenue,CAHD,South - Commissioned Services,Other Small Contracts,Blakehill Healthcare Ltd,662, 22-Dec-2022
663,Revenue,CAHD,South - Commissioned Services,Other Small Contracts,Blakehill Healthcare Ltd,377.34, 22-Dec-2022
664,Revenue,CAHD,South - Commissioned Services,Other Small Contracts,Blakehill Healthcare Ltd,1290.9, 22-Dec-2022
665,Revenue,CAHD,South - Commissioned Services,Other Small Contracts,Blakehill Healthcare Ltd,2516.42, 22-Dec-2022
666,Revenue,CAHD,South - Commissioned Services,Other Small Contracts,Blakehill Healthcare Ltd,397.2, 22-Dec-2022
667,Revenue,CAHD,South - Commissioned Services,Other Small Contracts,Blakehill Healthcare Ltd,1668.24, 22-Dec-2022
668,Revenue,CAHD,South - Commissioned Services,Other Small Contracts,Blakehill Healthcare Ltd,906.94, 22-Dec-2022
669,Revenue,CAHD,South - Commissioned Services,Other Small Contracts,Blakehill Healthcare Ltd,734.82, 22-Dec-2022
670,Revenue,CAHD,South - Commissioned Services,Other Small Contracts,Blakehill Healthcare Ltd,642.14, 22-Dec-2022
671,Revenue,CAHD,South - Commissioned Services,Mentoring,Blakehill Healthcare Ltd,59.58, 22-Dec-2022
672,Revenue,CAHD,North - Community based support,Other Small Contracts,Blakehill Healthcare Ltd,556.08, 22-Dec-2022
673,Revenue,CAHD,North - Community based support,Other Small Contracts,Blakehill Healthcare Ltd,589.18, 22-Dec-2022
674,Revenue,CAHD,North - Community based support,Other Small Contracts,Blakehill Healthcare Ltd,278.04, 22-Dec-2022
675,Revenue,CAHD,North - Community based support,Other Small Contracts,Blakehill Healthcare Ltd,4879.16, 22-Dec-2022
676,Revenue,CAHD,North - Community based support,Other Small Contracts,Blakehill Healthcare Ltd,1946.28, 22-Dec-2022
677,Revenue,CAHD,North - Community based support,Other Small Contracts,Blakehill Healthcare Ltd,708.34, 22-Dec-2022
678,Revenue,CAHD,18-25 Year Olds,Other Small Contracts,Blakehill Healthcare Ltd,2171.36, 28-Dec-2022
679,Revenue,CAHD,Central - Commissioned Services,Other Small Contracts,Blakehill Healthcare Ltd,1052.58, 28-Dec-2022
680,Revenue,CAHD,Central - Commissioned Services,Other Small Contracts,Blakehill Healthcare Ltd,443.54, 28-Dec-2022
681,Revenue,CAHD,Central - Commissioned Services,Other Small Contracts,Blakehill Healthcare Ltd,1304.14, 28-Dec-2022
682,Revenue,CAHD,Central - Commissioned Services,Other Small Contracts,Blakehill Healthcare Ltd,2475.88, 28-Dec-2022
683,Revenue,CAHD,Central - Commissioned Services,Other Small Contracts,Blakehill Healthcare Ltd,1085.68, 28-Dec-2022
684,Revenue,CAHD,Central - Commissioned Services,Other Small Contracts,Blakehill Healthcare Ltd,5037.82, 28-Dec-2022
685,Revenue,CAHD,Central - Commissioned Services,Other Small Contracts,Blakehill Healthcare Ltd,3031.96, 28-Dec-2022
686,Revenue,CAHD,Central - Commissioned Services,Other Small Contracts,Blakehill Healthcare Ltd,1079.06, 28-Dec-2022
687,Revenue,CAHD,Central - Commissioned Services,Other Small Contracts,Blakehill Healthcare Ltd,920.18, 28-Dec-2022
688,Revenue,CAHD,Central - Commissioned Services,Other Small Contracts,Blakehill Healthcare Ltd,4183.84, 28-Dec-2022
689,Revenue,CAHD,Central - Commissioned Services,Other Small Contracts,Blakehill Healthcare Ltd,1059.2, 28-Dec-2022
690,Revenue,CAHD,Central - Commissioned Services,Other Small Contracts,Blakehill Healthcare Ltd,959.9, 28-Dec-2022
691,Revenue,CAHD,Central - Commissioned Services,Other Small Contracts,Blakehill Healthcare Ltd,966.52, 28-Dec-2022
692,Revenue,CAHD,Central - Commissioned Services,Other Small Contracts,Blakehill Healthcare Ltd,1588.8, 28-Dec-2022
693,Revenue,CAHD,Central - Commissioned Services,Other Small Contracts,Blakehill Healthcare Ltd,2111.78, 28-Dec-2022
694,Revenue,CAHD,Central - Commissioned Services,Other Small Contracts,Blakehill Healthcare Ltd,3799.88, 28-Dec-2022
695,Revenue,CAHD,Central - Commissioned Services,Other Small Contracts,Blakehill Healthcare Ltd,920.18, 28-Dec-2022
696,Revenue,CAHD,South - Commissioned Services,Other Small Contracts,Blakehill Healthcare Ltd,1674.86, 28-Dec-2022
697,Revenue,CAHD,South - Commissioned Services,Other Small Contracts,Blakehill Healthcare Ltd,926.8, 28-Dec-2022
698,Revenue,CAHD,South - Commissioned Services,Other Small Contracts,Blakehill Healthcare Ltd,3210.7, 28-Dec-2022
699,Revenue,CAHD,South - Commissioned Services,Other Small Contracts,Blakehill Healthcare Ltd,6506.02, 28-Dec-2022
700,Revenue,CAHD,South - Commissioned Services,Other Small Contracts,Blakehill Healthcare Ltd,3647.62, 28-Dec-2022
701,Revenue,CAHD,South - Commissioned Services,Other Small Contracts,Blakehill Healthcare Ltd,2230.94, 28-Dec-2022
702,Revenue,CAHD,South - Commissioned Services,Other Small Contracts,Blakehill Healthcare Ltd,1846.98, 28-Dec-2022
703,Revenue,CAHD,South - Commissioned Services,Other Small Contracts,Blakehill Healthcare Ltd,1582.18, 28-Dec-2022
704,Revenue,CAHD,South - Commissioned Services,Mentoring,Blakehill Healthcare Ltd,370.72, 28-Dec-2022
705,Revenue,CAHD,North - Community based support,Other Small Contracts,Blakehill Healthcare Ltd,1575.56, 28-Dec-2022
706,Revenue,CAHD,North - Community based support,Other Small Contracts,Blakehill Healthcare Ltd,1264.42, 28-Dec-2022
707,Revenue,CAHD,North - Community based support,Other Small Contracts,Blakehill Healthcare Ltd,443.54, 28-Dec-2022
708,Revenue,CAHD,North - Community based support,Other Small Contracts,Blakehill Healthcare Ltd,10625.52, 28-Dec-2022
709,Revenue,CAHD,North - Community based support,Other Small Contracts,Blakehill Healthcare Ltd,3455.64, 28-Dec-2022
710,Revenue,CAHD,North - Community based support,Other Small Contracts,Blakehill Healthcare Ltd,1893.32, 28-Dec-2022
711,Revenue,CAHD,South Glos Users in South Glos Homes,Permanent Nursing,Blossom Fields Nursing Home,836.76, 13-Dec-2022
712,Revenue,CAHD,South Glos Users in South Glos Homes,Permanent Nursing,Blossom Fields Nursing Home,836.76, 13-Dec-2022
713,Revenue,CAHD,South Glos Users in South Glos Homes,Permanent Nursing,Blossom Fields Nursing Home,836.76, 13-Dec-2022
714,Revenue,CAHD,South Glos Users in South Glos Homes,Permanent Nursing,Blossom Fields Nursing Home,836.76, 13-Dec-2022
715,Revenue,CAHD,South Glos Users in South Glos Homes,Permanent Nursing,Blossom Fields Nursing Home,836.76, 13-Dec-2022
716,Revenue,CAHD,South Glos Users in South Glos Homes,Permanent Nursing,Blossom Fields Nursing Home,836.76, 13-Dec-2022
717,Revenue,CAHD,South Glos Users in South Glos Homes,Permanent Nursing,Blossom Fields Nursing Home,836.76, 13-Dec-2022
718,Revenue,CAHD,South Glos Users in South Glos Homes,Permanent Nursing,Blossom Fields Nursing Home,836.76, 13-Dec-2022
719,Revenue,CAHD,South Glos Users in South Glos Homes,Permanent Nursing,Blossom Fields Nursing Home,836.76, 13-Dec-2022
720,Revenue,CAHD,South Glos Users in South Glos Homes,Permanent Nursing,Blossom Fields Nursing Home,836.76, 13-Dec-2022
721,Revenue,CAHD,South Glos Users in South Glos Homes,Permanent Nursing,Blossom Fields Nursing Home,836.76, 13-Dec-2022
722,Revenue,CAHD,South Glos Users in South Glos Homes,Permanent Nursing,Blossom Fields Nursing Home,836.76, 13-Dec-2022
723,Revenue,CAHD,South Glos Users in South Glos Homes,Permanent Nursing,Blossom Fields Nursing Home,836.76, 13-Dec-2022
724,Revenue,CAHD,South Glos Users in South Glos Homes,Permanent Nursing,Blossom Fields Nursing Home,836.76, 13-Dec-2022
725,Revenue,CAHD,South Glos Users in South Glos Homes,Permanent Nursing,Blossom Fields Nursing Home,179.3, 13-Dec-2022
726,Revenue,CAHD,South Glos Users in South Glos Homes,Permanent Nursing,Blossom Fields Nursing Home,836.76, 13-Dec-2022
727,Revenue,CAHD,South Glos Users in South Glos Homes,Permanent Nursing,Blossom Fields Nursing Home,836.76, 13-Dec-2022
728,Revenue,CAHD,South Glos Users in South Glos Homes,Permanent Nursing,Blossom Fields Nursing Home,836.76, 13-Dec-2022
729,Revenue,CAHD,South Glos Users in South Glos Homes,Permanent Nursing,Blossom Fields Nursing Home,836.76, 13-Dec-2022
730,Revenue,CAHD,South Glos Users in South Glos Homes,Permanent Nursing,Blossom Fields Nursing Home,836.76, 13-Dec-2022
731,Revenue,CAHD,South Glos Users in South Glos Homes,Permanent Nursing,Blossom Fields Nursing Home,836.76, 13-Dec-2022
732,Revenue,CAHD,South Glos Users in South Glos Homes,Permanent Nursing,Blossom Fields Nursing Home,836.76, 13-Dec-2022
733,Revenue,CAHD,South Glos Users in South Glos Homes,Permanent Nursing,Blossom Fields Nursing Home,836.76, 13-Dec-2022
734,Revenue,CAHD,South Glos Users in South Glos Homes,Permanent Nursing,Blossom Fields Nursing Home,836.76, 13-Dec-2022
735,Revenue,CAHD,South Glos Users in South Glos Homes,Permanent Nursing,Blossom Fields Nursing Home,836.76, 13-Dec-2022
736,Revenue,CAHD,South Glos Users in South Glos Homes,Permanent Nursing,Blossom Fields Nursing Home,836.76, 13-Dec-2022
737,Revenue,CAHD,South Glos Users in South Glos Homes,Permanent Nursing,Blossom Fields Nursing Home,836.76, 13-Dec-2022
738,Revenue,CAHD,Central - Commissioned Services,Permanent Nursing,Blossom Fields Nursing Home,7028.57, 13-Dec-2022
739,Revenue,CAHD,Central - Commissioned Services,Fees & Charges Income - General,Blossom Fields Nursing Home,-919.28, 13-Dec-2022
740,Revenue,CAHD,South - Commissioned Services,Permanent Nursing,Blossom Fields Nursing Home,5088, 13-Dec-2022
741,Revenue,CAHD,South - Commissioned Services,Permanent Nursing,Blossom Fields Nursing Home,4664, 13-Dec-2022
742,Revenue,CAHD,South - Commissioned Services,Permanent Nursing,Blossom Fields Nursing Home,4337.08, 13-Dec-2022
743,Revenue,CAHD,South - Commissioned Services,Fees & Charges Income - General,Blossom Fields Nursing Home,-1482.92, 13-Dec-2022
744,Revenue,CAHD,South - Commissioned Services,Fees & Charges Income - General,Blossom Fields Nursing Home,-997.4, 13-Dec-2022
745,Revenue,CAHD,South - Commissioned Services,Fees & Charges Income - General,Blossom Fields Nursing Home,-750.52, 13-Dec-2022
746,Revenue,CAHD,North - Community based support,Permanent Nursing,Blossom Fields Nursing Home,5204.88, 13-Dec-2022
747,Revenue,CAHD,North - Community based support,Permanent Nursing,Blossom Fields Nursing Home,6548.76, 13-Dec-2022
748,Revenue,CAHD,North - Community based support,Permanent Nursing,Blossom Fields Nursing Home,4664, 13-Dec-2022
749,Revenue,CAHD,North - Community based support,Permanent Nursing,Blossom Fields Nursing Home,4380.04, 13-Dec-2022
750,Revenue,CAHD,North - Community based support,Permanent Nursing,Blossom Fields Nursing Home,4379.92, 13-Dec-2022
751,Revenue,CAHD,North - Community based support,Permanent Nursing,Blossom Fields Nursing Home,4380.04, 13-Dec-2022
752,Revenue,CAHD,North - Community based support,Permanent Nursing,Blossom Fields Nursing Home,4800, 13-Dec-2022
753,Revenue,CAHD,North - Community based support,Fees & Charges Income - General,Blossom Fields Nursing Home,-627.8, 13-Dec-2022
754,Revenue,CAHD,North - Community based support,Fees & Charges Income - General,Blossom Fields Nursing Home,-533.56, 13-Dec-2022
755,Revenue,CAHD,North - Community based support,Fees & Charges Income - General,Blossom Fields Nursing Home,-663.8, 13-Dec-2022
756,Revenue,CAHD,North - Community based support,Fees & Charges Income - General,Blossom Fields Nursing Home,-784.24, 13-Dec-2022
757,Revenue,CAHD,North - Community based support,Fees & Charges Income - General,Blossom Fields Nursing Home,-1742.72, 13-Dec-2022
758,Revenue,CAHD,South Glos Users in South Glos Homes,Permanent Nursing,Blossom Fields Nursing Home,836.76, 13-Dec-2022
759,Revenue,CAHD,South Glos Users in South Glos Homes,Permanent Nursing,Blossom Fields Nursing Home,3705.65, 13-Dec-2022
760,Revenue,CAHD,South Glos Users in South Glos Homes,Permanent Nursing,Blossom Fields Nursing Home,836.76, 13-Dec-2022
761,Revenue,CAHD,South Glos Users in South Glos Homes,Permanent Nursing,Blossom Fields Nursing Home,836.76, 13-Dec-2022
762,Revenue,CAHD,South Glos Users in South Glos Homes,Permanent Nursing,Blossom Fields Nursing Home,836.76, 13-Dec-2022
763,Revenue,CAHD,South Glos Users in South Glos Homes,Permanent Nursing,Blossom Fields Nursing Home,836.76, 13-Dec-2022
764,Revenue,CAHD,South Glos Users in South Glos Homes,Permanent Nursing,Blossom Fields Nursing Home,836.76, 13-Dec-2022
765,Revenue,CAHD,South Glos Users in South Glos Homes,Permanent Nursing,Blossom Fields Nursing Home,836.76, 13-Dec-2022
766,Revenue,CAHD,South Glos Users in South Glos Homes,Permanent Nursing,Blossom Fields Nursing Home,836.76, 13-Dec-2022
767,Revenue,CAHD,South Glos Users in South Glos Homes,Permanent Nursing,Blossom Fields Nursing Home,836.76, 13-Dec-2022
768,Revenue,CAHD,South Glos Users in South Glos Homes,Permanent Nursing,Blossom Fields Nursing Home,836.76, 13-Dec-2022
769,Revenue,CAHD,South Glos Users in South Glos Homes,Permanent Nursing,Blossom Fields Nursing Home,836.76, 13-Dec-2022
770,Revenue,CAHD,South Glos Users in South Glos Homes,Permanent Nursing,Blossom Fields Nursing Home,836.76, 13-Dec-2022
771,Revenue,CAHD,South Glos Users in South Glos Homes,Permanent Nursing,Blossom Fields Nursing Home,836.76, 13-Dec-2022
772,Revenue,CAHD,South Glos Users in South Glos Homes,Permanent Nursing,Blossom Fields Nursing Home,836.76, 13-Dec-2022
773,Revenue,CAHD,South Glos Users in South Glos Homes,Permanent Nursing,Blossom Fields Nursing Home,836.76, 13-Dec-2022
774,Revenue,CAHD,South Glos Users in South Glos Homes,Permanent Nursing,Blossom Fields Nursing Home,836.76, 13-Dec-2022
775,Revenue,CAHD,South Glos Users in South Glos Homes,Permanent Nursing,Blossom Fields Nursing Home,836.76, 13-Dec-2022
776,Revenue,CAHD,South Glos Users in South Glos Homes,Permanent Nursing,Blossom Fields Nursing Home,836.76, 13-Dec-2022
777,Revenue,CAHD,South Glos Users in South Glos Homes,Permanent Nursing,Blossom Fields Nursing Home,836.76, 13-Dec-2022
778,Revenue,CAHD,South Glos Users in South Glos Homes,Permanent Nursing,Blossom Fields Nursing Home,836.76, 13-Dec-2022
779,Revenue,CAHD,South Glos Users in South Glos Homes,Permanent Nursing,Blossom Fields Nursing Home,836.76, 13-Dec-2022
780,Revenue,CAHD,South Glos Users in South Glos Homes,Permanent Nursing,Blossom Fields Nursing Home,836.76, 13-Dec-2022
781,Revenue,CAHD,South Glos Users in South Glos Homes,Permanent Nursing,Blossom Fields Nursing Home,836.76, 13-Dec-2022
782,Revenue,CAHD,South Glos Users in South Glos Homes,Permanent Nursing,Blossom Fields Nursing Home,836.76, 13-Dec-2022
783,Revenue,CAHD,South Glos Users in South Glos Homes,Permanent Nursing,Blossom Fields Nursing Home,836.76, 13-Dec-2022
784,Revenue,CAHD,South Glos Users in South Glos Homes,Permanent Nursing,Blossom Fields Nursing Home,836.76, 13-Dec-2022
785,Revenue,CAHD,South Glos Users in South Glos Homes,Permanent Nursing,Blossom Fields Nursing Home,836.76, 13-Dec-2022
786,Revenue,CAHD,South Glos Users in South Glos Homes,Permanent Nursing,Blossom Fields Nursing Home,836.76, 13-Dec-2022
787,Revenue,CAHD,South Glos Users in South Glos Homes,Permanent Nursing,Blossom Fields Nursing Home,836.76, 13-Dec-2022
788,Revenue,CAHD,South Glos Users in South Glos Homes,Permanent Nursing,Blossom Fields Nursing Home,836.76, 13-Dec-2022
789,Revenue,CAHD,South Glos Users in South Glos Homes,Permanent Nursing,Blossom Fields Nursing Home,836.76, 13-Dec-2022
790,Revenue,CAHD,South Glos Users in South Glos Homes,Permanent Nursing,Blossom Fields Nursing Home,836.76, 13-Dec-2022
791,Revenue,CAHD,South Glos Users in South Glos Homes,Permanent Nursing,Blossom Fields Nursing Home,836.76, 13-Dec-2022
792,Revenue,CAHD,South Glos Users in South Glos Homes,Permanent Nursing,Blossom Fields Nursing Home,836.76, 13-Dec-2022
793,Revenue,CAHD,South Glos Users in South Glos Homes,Permanent Nursing,Blossom Fields Nursing Home,836.76, 13-Dec-2022
794,Revenue,CAHD,South Glos Users in South Glos Homes,Permanent Nursing,Blossom Fields Nursing Home,836.76, 13-Dec-2022
795,Revenue,CAHD,South Glos Users in South Glos Homes,Permanent Nursing,Blossom Fields Nursing Home,836.76, 13-Dec-2022
796,Revenue,CAHD,South Glos Users in South Glos Homes,Permanent Nursing,Blossom Fields Nursing Home,836.76, 13-Dec-2022
797,Revenue,CAHD,South Glos Users in South Glos Homes,Permanent Nursing,Blossom Fields Nursing Home,836.76, 13-Dec-2022
798,Revenue,CAHD,South Glos Users in South Glos Homes,Permanent Nursing,Blossom Fields Nursing Home,836.76, 13-Dec-2022
799,Revenue,CAHD,South Glos Users in South Glos Homes,Permanent Nursing,Blossom Fields Nursing Home,836.76, 13-Dec-2022
800,Revenue,CAHD,South Glos Users in South Glos Homes,Permanent Nursing,Blossom Fields Nursing Home,836.76, 13-Dec-2022
801,Revenue,CAHD,South Glos Users in South Glos Homes,Permanent Nursing,Blossom Fields Nursing Home,836.76, 13-Dec-2022
802,Revenue,CAHD,South Glos Users in South Glos Homes,Permanent Nursing,Blossom Fields Nursing Home,836.76, 13-Dec-2022
803,Revenue,CAHD,South Glos Users in South Glos Homes,Permanent Nursing,Blossom Fields Nursing Home,836.76, 13-Dec-2022
804,Revenue,CAHD,South Glos Users in South Glos Homes,Permanent Nursing,Blossom Fields Nursing Home,836.76, 13-Dec-2022
805,Revenue,CAHD,Central - Commissioned Services,Permanent Residential,Blossom Fields Nursing Home,4028, 13-Dec-2022
806,Revenue,CAHD,Central - Commissioned Services,Permanent Residential,Blossom Fields Nursing Home,3816, 13-Dec-2022
807,Revenue,CAHD,Central - Commissioned Services,Permanent Nursing,Blossom Fields Nursing Home,5431.24, 13-Dec-2022
808,Revenue,CAHD,Central - Commissioned Services,Permanent Nursing,Blossom Fields Nursing Home,4380.04, 13-Dec-2022
809,Revenue,CAHD,Central - Commissioned Services,Permanent Nursing,Blossom Fields Nursing Home,4380.04, 13-Dec-2022
810,Revenue,CAHD,Central - Commissioned Services,Permanent Nursing,Blossom Fields Nursing Home,5078.2, 13-Dec-2022
811,Revenue,CAHD,Central - Commissioned Services,Permanent Nursing,Blossom Fields Nursing Home,5107.84, 13-Dec-2022
812,Revenue,CAHD,Central - Commissioned Services,Permanent Nursing,Blossom Fields Nursing Home,4380.04, 13-Dec-2022
813,Revenue,CAHD,Central - Commissioned Services,Permanent Nursing,Blossom Fields Nursing Home,4600, 13-Dec-2022
814,Revenue,CAHD,Central - Commissioned Services,Permanent Nursing,Blossom Fields Nursing Home,4600, 13-Dec-2022
815,Revenue,CAHD,Central - Commissioned Services,Permanent Nursing,Blossom Fields Nursing Home,5421.92, 13-Dec-2022
816,Revenue,CAHD,Central - Commissioned Services,Permanent Nursing,Blossom Fields Nursing Home,4876, 13-Dec-2022
817,Revenue,CAHD,Central - Commissioned Services,Permanent Nursing,Blossom Fields Nursing Home,4600, 13-Dec-2022
818,Revenue,CAHD,Central - Commissioned Services,Fees & Charges Income - General,Blossom Fields Nursing Home,-978.56, 13-Dec-2022
819,Revenue,CAHD,Central - Commissioned Services,Fees & Charges Income - General,Blossom Fields Nursing Home,-627.8, 13-Dec-2022
820,Revenue,CAHD,Central - Commissioned Services,Fees & Charges Income - General,Blossom Fields Nursing Home,-1241.76, 13-Dec-2022
821,Revenue,CAHD,Central - Commissioned Services,Fees & Charges Income - General,Blossom Fields Nursing Home,-2103.8, 13-Dec-2022
822,Revenue,CAHD,Central - Commissioned Services,Fees & Charges Income - General,Blossom Fields Nursing Home,-486.88, 13-Dec-2022
823,Revenue,CAHD,Central - Commissioned Services,Fees & Charges Income - General,Blossom Fields Nursing Home,-1207.64, 13-Dec-2022
824,Revenue,CAHD,Central - Commissioned Services,Fees & Charges Income - General,Blossom Fields Nursing Home,-1186.12, 13-Dec-2022
825,Revenue,CAHD,Central - Commissioned Services,Fees & Charges Income - General,Blossom Fields Nursing Home,-1365.28, 13-Dec-2022
826,Revenue,CAHD,Central - Commissioned Services,Fees & Charges Income - General,Blossom Fields Nursing Home,-866.68, 13-Dec-2022
827,Revenue,CAHD,South - Commissioned Services,Permanent Nursing,Blossom Fields Nursing Home,4179.64, 13-Dec-2022
828,Revenue,CAHD,South - Commissioned Services,Permanent Nursing,Blossom Fields Nursing Home,4381.2, 13-Dec-2022
829,Revenue,CAHD,South - Commissioned Services,Permanent Nursing,Blossom Fields Nursing Home,4600, 13-Dec-2022
830,Revenue,CAHD,South - Commissioned Services,Permanent Nursing,Blossom Fields Nursing Home,5300, 13-Dec-2022
831,Revenue,CAHD,South - Commissioned Services,Permanent Nursing,Blossom Fields Nursing Home,3816, 13-Dec-2022
832,Revenue,CAHD,South - Commissioned Services,Fees & Charges Income - General,Blossom Fields Nursing Home,-1146.6, 13-Dec-2022
833,Revenue,CAHD,South - Commissioned Services,Fees & Charges Income - General,Blossom Fields Nursing Home,-928.6, 13-Dec-2022
834,Revenue,CAHD,South - Commissioned Services,Fees & Charges Income - General,Blossom Fields Nursing Home,-635.48, 13-Dec-2022
835,Revenue,CAHD,North - Community based support,Permanent Nursing,Blossom Fields Nursing Home,4381.2, 13-Dec-2022
836,Revenue,CAHD,North - Community based support,Fees & Charges Income - General,Blossom Fields Nursing Home,-627.8, 13-Dec-2022
837,Revenue,CAHD,North - S117,Permanent Residential,Blossom Fields Nursing Home,5205.04, 13-Dec-2022
838,Revenue,CAHD,Statemented Support Payments to OLAs,Other L.A.s - General,Blue Coat CE VA Primary School,1292.5, 23-Dec-2022
839,Revenue,CAHD,Central - Commissioned Services,Other Small Contracts,Bluebird Care (South Gloucestershire),60.4, 15-Dec-2022
840,Revenue,CAHD,Central - Commissioned Services,Other Small Contracts,Bluebird Care (South Gloucestershire),694.6, 15-Dec-2022
841,Revenue,CAHD,Central - Commissioned Services,Other Small Contracts,Bluebird Care (South Gloucestershire),143.45, 15-Dec-2022
842,Revenue,CAHD,Central - Commissioned Services,Other Small Contracts,Bluebird Care (South Gloucestershire),22.65, 15-Dec-2022
843,Revenue,CAHD,Central - Commissioned Services,Other Small Contracts,Bluebird Care (South Gloucestershire),1917.7, 15-Dec-2022
844,Revenue,CAHD,Central - Commissioned Services,Other Small Contracts,Bluebird Care (South Gloucestershire),30.2, 15-Dec-2022
845,Revenue,CAHD,Central - Commissioned Services,Other Small Contracts,Bluebird Care (South Gloucestershire),143.45, 15-Dec-2022
846,Revenue,CAHD,Central - Commissioned Services,Other Small Contracts,Bluebird Care (South Gloucestershire),264.25, 15-Dec-2022
847,Revenue,CAHD,Central - Commissioned Services,Other Small Contracts,Bluebird Care (South Gloucestershire),30.2, 15-Dec-2022
848,Revenue,CAHD,Central - Commissioned Services,Other Small Contracts,Bluebird Care (South Gloucestershire),135.9, 15-Dec-2022
849,Revenue,CAHD,Central - Commissioned Services,Other Small Contracts,Bluebird Care (South Gloucestershire),218.95, 15-Dec-2022
850,Revenue,CAHD,Central - Commissioned Services,Other Small Contracts,Bluebird Care (South Gloucestershire),634.2, 15-Dec-2022
851,Revenue,CAHD,Central - Commissioned Services,Other Small Contracts,Bluebird Care (South Gloucestershire),158.55, 15-Dec-2022
852,Revenue,CAHD,Central - Commissioned Services,Other Small Contracts,Bluebird Care (South Gloucestershire),128.35, 15-Dec-2022
853,Revenue,CAHD,Central - Commissioned Services,Other Small Contracts,Bluebird Care (South Gloucestershire),928.65, 15-Dec-2022
854,Revenue,CAHD,Central - Commissioned Services,Other Small Contracts,Bluebird Care (South Gloucestershire),45.3, 15-Dec-2022
855,Revenue,CAHD,Central - Commissioned Services,Other Small Contracts,Bluebird Care (South Gloucestershire),37.75, 15-Dec-2022
856,Revenue,CAHD,Central - Commissioned Services,Other Small Contracts,Bluebird Care (South Gloucestershire),188.75, 15-Dec-2022
857,Revenue,CAHD,Central - Commissioned Services,Other Small Contracts,Bluebird Care (South Gloucestershire),1318.8, 15-Dec-2022
858,Revenue,CAHD,Central - Commissioned Services,Other Small Contracts,Bluebird Care (South Gloucestershire),128.35, 15-Dec-2022
859,Revenue,CAHD,Central - Commissioned Services,Other Small Contracts,Bluebird Care (South Gloucestershire),128.35, 15-Dec-2022
860,Revenue,CAHD,Central - Commissioned Services,Other Small Contracts,Bluebird Care (South Gloucestershire),317.1, 15-Dec-2022
861,Revenue,CAHD,Central - Commissioned Services,Other Small Contracts,Bluebird Care (South Gloucestershire),475.65, 15-Dec-2022
862,Revenue,CAHD,Central - Commissioned Services,Other Small Contracts,Bluebird Care (South Gloucestershire),166.1, 15-Dec-2022
863,Revenue,CAHD,Central - Commissioned Services,Other Small Contracts,Bluebird Care (South Gloucestershire),936.2, 15-Dec-2022
864,Revenue,CAHD,Central - Commissioned Services,Other Small Contracts,Bluebird Care (South Gloucestershire),566.25, 15-Dec-2022
865,Revenue,CAHD,Central - Commissioned Services,Other Small Contracts,Bluebird Care (South Gloucestershire),120.8, 15-Dec-2022
866,Revenue,CAHD,Central - Commissioned Services,Other Small Contracts,Bluebird Care (South Gloucestershire),637, 15-Dec-2022
867,Revenue,CAHD,Central - Commissioned Services,Other Small Contracts,Bluebird Care (South Gloucestershire),90.6, 15-Dec-2022
868,Revenue,CAHD,Central - Commissioned Services,Other Small Contracts,Bluebird Care (South Gloucestershire),120.8, 15-Dec-2022
869,Revenue,CAHD,Central - Commissioned Services,Other Small Contracts,Bluebird Care (South Gloucestershire),543.6, 15-Dec-2022
870,Revenue,CAHD,Central - Commissioned Services,Other Small Contracts,Bluebird Care (South Gloucestershire),377.5, 15-Dec-2022
871,Revenue,CAHD,South - Commissioned Services,Other Small Contracts,Bluebird Care (South Gloucestershire),415.25, 15-Dec-2022
872,Revenue,CAHD,South - Commissioned Services,Other Small Contracts,Bluebird Care (South Gloucestershire),158.55, 15-Dec-2022
873,Revenue,CAHD,South - Commissioned Services,Other Small Contracts,Bluebird Care (South Gloucestershire),362.4, 15-Dec-2022
874,Revenue,CAHD,South - Commissioned Services,Other Small Contracts,Bluebird Care (South Gloucestershire),226.5, 15-Dec-2022
875,Revenue,CAHD,South - Commissioned Services,Other Small Contracts,Bluebird Care (South Gloucestershire),249.15, 15-Dec-2022
876,Revenue,CAHD,South - Commissioned Services,Other Small Contracts,Bluebird Care (South Gloucestershire),249.15, 15-Dec-2022
877,Revenue,CAHD,South - Commissioned Services,Other Small Contracts,Bluebird Care (South Gloucestershire),1318.8, 15-Dec-2022
878,Revenue,CAHD,South - Commissioned Services,Other Small Contracts,Bluebird Care (South Gloucestershire),67.95, 15-Dec-2022
879,Revenue,CAHD,South - Commissioned Services,Other Small Contracts,Bluebird Care (South Gloucestershire),83.05, 15-Dec-2022
880,Revenue,CAHD,South - Commissioned Services,Other Small Contracts,Bluebird Care (South Gloucestershire),90.6, 15-Dec-2022
881,Revenue,CAHD,South - Commissioned Services,Other Small Contracts,Bluebird Care (South Gloucestershire),354.85, 15-Dec-2022
882,Revenue,CAHD,North - Community based support,Other Small Contracts,Bluebird Care (South Gloucestershire),338.8, 15-Dec-2022
883,Revenue,CAHD,North - Community based support,Other Small Contracts,Bluebird Care (South Gloucestershire),75.5, 15-Dec-2022
884,Revenue,CAHD,North - Community based support,Other Small Contracts,Bluebird Care (South Gloucestershire),52.85, 15-Dec-2022
885,Revenue,CAHD,North - Community based support,Other Small Contracts,Bluebird Care (South Gloucestershire),75.5, 15-Dec-2022
886,Revenue,CAHD,North - Community based support,Other Small Contracts,Bluebird Care (South Gloucestershire),1536.92, 15-Dec-2022
887,Revenue,CAHD,North - Community based support,Other Small Contracts,Bluebird Care (South Gloucestershire),135.9, 15-Dec-2022
888,Revenue,CAHD,North - Community based support,Other Small Contracts,Bluebird Care (South Gloucestershire),309.55, 15-Dec-2022
889,Revenue,CAHD,North - Community based support,Other Small Contracts,Bluebird Care (South Gloucestershire),45.3, 15-Dec-2022
890,Revenue,CAHD,North - Community based support,Other Small Contracts,Bluebird Care (South Gloucestershire),128.35, 15-Dec-2022
891,Revenue,CAHD,North - Community based support,Other Small Contracts,Bluebird Care (South Gloucestershire),1701, 15-Dec-2022
892,Revenue,CAHD,Central - Commissioned Services,Other Small Contracts,Bluebird Care (South Gloucestershire),67.95, 15-Dec-2022
893,Revenue,CAHD,Central - Commissioned Services,Other Small Contracts,Bluebird Care (South Gloucestershire),392.6, 15-Dec-2022
894,Revenue,CAHD,Central - Commissioned Services,Other Small Contracts,Bluebird Care (South Gloucestershire),143.45, 15-Dec-2022
895,Revenue,CAHD,Central - Commissioned Services,Other Small Contracts,Bluebird Care (South Gloucestershire),22.65, 15-Dec-2022
896,Revenue,CAHD,Central - Commissioned Services,Other Small Contracts,Bluebird Care (South Gloucestershire),1925.25, 15-Dec-2022
897,Revenue,CAHD,Central - Commissioned Services,Other Small Contracts,Bluebird Care (South Gloucestershire),22.65, 15-Dec-2022
898,Revenue,CAHD,Central - Commissioned Services,Other Small Contracts,Bluebird Care (South Gloucestershire),151, 15-Dec-2022
899,Revenue,CAHD,Central - Commissioned Services,Other Small Contracts,Bluebird Care (South Gloucestershire),271.8, 15-Dec-2022
900,Revenue,CAHD,Central - Commissioned Services,Other Small Contracts,Bluebird Care (South Gloucestershire),30.2, 15-Dec-2022
901,Revenue,CAHD,Central - Commissioned Services,Other Small Contracts,Bluebird Care (South Gloucestershire),135.9, 15-Dec-2022
902,Revenue,CAHD,Central - Commissioned Services,Other Small Contracts,Bluebird Care (South Gloucestershire),196.3, 15-Dec-2022
903,Revenue,CAHD,Central - Commissioned Services,Other Small Contracts,Bluebird Care (South Gloucestershire),656.85, 15-Dec-2022
904,Revenue,CAHD,Central - Commissioned Services,Other Small Contracts,Bluebird Care (South Gloucestershire),158.55, 15-Dec-2022
905,Revenue,CAHD,Central - Commissioned Services,Other Small Contracts,Bluebird Care (South Gloucestershire),120.8, 15-Dec-2022
906,Revenue,CAHD,Central - Commissioned Services,Other Small Contracts,Bluebird Care (South Gloucestershire),936.2, 15-Dec-2022
907,Revenue,CAHD,Central - Commissioned Services,Other Small Contracts,Bluebird Care (South Gloucestershire),45.3, 15-Dec-2022
908,Revenue,CAHD,Central - Commissioned Services,Other Small Contracts,Bluebird Care (South Gloucestershire),37.75, 15-Dec-2022
909,Revenue,CAHD,Central - Commissioned Services,Other Small Contracts,Bluebird Care (South Gloucestershire),196.3, 15-Dec-2022
910,Revenue,CAHD,Central - Commissioned Services,Other Small Contracts,Bluebird Care (South Gloucestershire),1318.8, 15-Dec-2022
911,Revenue,CAHD,Central - Commissioned Services,Other Small Contracts,Bluebird Care (South Gloucestershire),135.9, 15-Dec-2022
912,Revenue,CAHD,Central - Commissioned Services,Other Small Contracts,Bluebird Care (South Gloucestershire),135.9, 15-Dec-2022
913,Revenue,CAHD,Central - Commissioned Services,Other Small Contracts,Bluebird Care (South Gloucestershire),324.65, 15-Dec-2022
914,Revenue,CAHD,Central - Commissioned Services,Other Small Contracts,Bluebird Care (South Gloucestershire),475.65, 15-Dec-2022
915,Revenue,CAHD,Central - Commissioned Services,Other Small Contracts,Bluebird Care (South Gloucestershire),181.2, 15-Dec-2022
916,Revenue,CAHD,Central - Commissioned Services,Other Small Contracts,Bluebird Care (South Gloucestershire),702.15, 15-Dec-2022
917,Revenue,CAHD,Central - Commissioned Services,Other Small Contracts,Bluebird Care (South Gloucestershire),566.25, 15-Dec-2022
918,Revenue,CAHD,Central - Commissioned Services,Other Small Contracts,Bluebird Care (South Gloucestershire),105.7, 15-Dec-2022
919,Revenue,CAHD,Central - Commissioned Services,Other Small Contracts,Bluebird Care (South Gloucestershire),621.9, 15-Dec-2022
920,Revenue,CAHD,Central - Commissioned Services,Other Small Contracts,Bluebird Care (South Gloucestershire),90.6, 15-Dec-2022
921,Revenue,CAHD,Central - Commissioned Services,Other Small Contracts,Bluebird Care (South Gloucestershire),120.8, 15-Dec-2022
922,Revenue,CAHD,Central - Commissioned Services,Other Small Contracts,Bluebird Care (South Gloucestershire),490.75, 15-Dec-2022
923,Revenue,CAHD,Central - Commissioned Services,Other Small Contracts,Bluebird Care (South Gloucestershire),354.85, 15-Dec-2022
924,Revenue,CAHD,South - Commissioned Services,Other Small Contracts,Bluebird Care (South Gloucestershire),392.6, 15-Dec-2022
925,Revenue,CAHD,South - Commissioned Services,Other Small Contracts,Bluebird Care (South Gloucestershire),151, 15-Dec-2022
926,Revenue,CAHD,South - Commissioned Services,Other Small Contracts,Bluebird Care (South Gloucestershire),369.95, 15-Dec-2022
927,Revenue,CAHD,South - Commissioned Services,Other Small Contracts,Bluebird Care (South Gloucestershire),241.6, 15-Dec-2022
928,Revenue,CAHD,South - Commissioned Services,Other Small Contracts,Bluebird Care (South Gloucestershire),309.55, 15-Dec-2022
929,Revenue,CAHD,South - Commissioned Services,Other Small Contracts,Bluebird Care (South Gloucestershire),256.7, 15-Dec-2022
930,Revenue,CAHD,South - Commissioned Services,Other Small Contracts,Bluebird Care (South Gloucestershire),1318.8, 15-Dec-2022
931,Revenue,CAHD,South - Commissioned Services,Other Small Contracts,Bluebird Care (South Gloucestershire),60.4, 15-Dec-2022
932,Revenue,CAHD,South - Commissioned Services,Other Small Contracts,Bluebird Care (South Gloucestershire),60.4, 15-Dec-2022
933,Revenue,CAHD,South - Commissioned Services,Other Small Contracts,Bluebird Care (South Gloucestershire),83.05, 15-Dec-2022
934,Revenue,CAHD,South - Commissioned Services,Other Small Contracts,Bluebird Care (South Gloucestershire),385.05, 15-Dec-2022
935,Revenue,CAHD,North - Community based support,Other Small Contracts,Bluebird Care (South Gloucestershire),338.8, 15-Dec-2022
936,Revenue,CAHD,North - Community based support,Other Small Contracts,Bluebird Care (South Gloucestershire),181.2, 15-Dec-2022
937,Revenue,CAHD,North - Community based support,Other Small Contracts,Bluebird Care (South Gloucestershire),60.4, 15-Dec-2022
938,Revenue,CAHD,North - Community based support,Other Small Contracts,Bluebird Care (South Gloucestershire),60.4, 15-Dec-2022
939,Revenue,CAHD,North - Community based support,Other Small Contracts,Bluebird Care (South Gloucestershire),1529.37, 15-Dec-2022
940,Revenue,CAHD,North - Community based support,Other Small Contracts,Bluebird Care (South Gloucestershire),128.35, 15-Dec-2022
941,Revenue,CAHD,North - Community based support,Other Small Contracts,Bluebird Care (South Gloucestershire),302, 15-Dec-2022
942,Revenue,CAHD,North - Community based support,Other Small Contracts,Bluebird Care (South Gloucestershire),60.4, 15-Dec-2022
943,Revenue,CAHD,North - Community based support,Other Small Contracts,Bluebird Care (South Gloucestershire),135.9, 15-Dec-2022
944,Revenue,CAHD,North - Community based support,Other Small Contracts,Bluebird Care (South Gloucestershire),1701, 15-Dec-2022
945,Revenue,CAHD,Central - Commissioned Services,Other Small Contracts,Bluebird Care (South Gloucestershire),90.6, 15-Dec-2022
946,Revenue,CAHD,Central - Commissioned Services,Other Small Contracts,Bluebird Care (South Gloucestershire),679.5, 15-Dec-2022
947,Revenue,CAHD,Central - Commissioned Services,Other Small Contracts,Bluebird Care (South Gloucestershire),128.35, 15-Dec-2022
948,Revenue,CAHD,Central - Commissioned Services,Other Small Contracts,Bluebird Care (South Gloucestershire),22.65, 15-Dec-2022
949,Revenue,CAHD,Central - Commissioned Services,Other Small Contracts,Bluebird Care (South Gloucestershire),1932.8, 15-Dec-2022
950,Revenue,CAHD,Central - Commissioned Services,Other Small Contracts,Bluebird Care (South Gloucestershire),15.1, 15-Dec-2022
951,Revenue,CAHD,Central - Commissioned Services,Other Small Contracts,Bluebird Care (South Gloucestershire),143.45, 15-Dec-2022
952,Revenue,CAHD,Central - Commissioned Services,Other Small Contracts,Bluebird Care (South Gloucestershire),271.8, 15-Dec-2022
953,Revenue,CAHD,Central - Commissioned Services,Other Small Contracts,Bluebird Care (South Gloucestershire),30.2, 15-Dec-2022
954,Revenue,CAHD,Central - Commissioned Services,Other Small Contracts,Bluebird Care (South Gloucestershire),143.45, 15-Dec-2022
955,Revenue,CAHD,Central - Commissioned Services,Other Small Contracts,Bluebird Care (South Gloucestershire),211.4, 15-Dec-2022
956,Revenue,CAHD,Central - Commissioned Services,Other Small Contracts,Bluebird Care (South Gloucestershire),641.75, 15-Dec-2022
957,Revenue,CAHD,Central - Commissioned Services,Other Small Contracts,Bluebird Care (South Gloucestershire),158.55, 15-Dec-2022
958,Revenue,CAHD,Central - Commissioned Services,Other Small Contracts,Bluebird Care (South Gloucestershire),135.9, 15-Dec-2022
959,Revenue,CAHD,Central - Commissioned Services,Other Small Contracts,Bluebird Care (South Gloucestershire),928.65, 15-Dec-2022
960,Revenue,CAHD,Central - Commissioned Services,Other Small Contracts,Bluebird Care (South Gloucestershire),30.2, 15-Dec-2022
961,Revenue,CAHD,Central - Commissioned Services,Other Small Contracts,Bluebird Care (South Gloucestershire),45.3, 15-Dec-2022
962,Revenue,CAHD,Central - Commissioned Services,Other Small Contracts,Bluebird Care (South Gloucestershire),196.3, 15-Dec-2022
963,Revenue,CAHD,Central - Commissioned Services,Other Small Contracts,Bluebird Care (South Gloucestershire),1318.8, 15-Dec-2022
964,Revenue,CAHD,Central - Commissioned Services,Other Small Contracts,Bluebird Care (South Gloucestershire),135.9, 15-Dec-2022
965,Revenue,CAHD,Central - Commissioned Services,Other Small Contracts,Bluebird Care (South Gloucestershire),135.9, 15-Dec-2022
966,Revenue,CAHD,Central - Commissioned Services,Other Small Contracts,Bluebird Care (South Gloucestershire),324.65, 15-Dec-2022
967,Revenue,CAHD,Central - Commissioned Services,Other Small Contracts,Bluebird Care (South Gloucestershire),483.2, 15-Dec-2022
968,Revenue,CAHD,Central - Commissioned Services,Other Small Contracts,Bluebird Care (South Gloucestershire),173.65, 15-Dec-2022
969,Revenue,CAHD,Central - Commissioned Services,Other Small Contracts,Bluebird Care (South Gloucestershire),626.65, 15-Dec-2022
970,Revenue,CAHD,Central - Commissioned Services,Other Small Contracts,Bluebird Care (South Gloucestershire),634.2, 15-Dec-2022
971,Revenue,CAHD,Central - Commissioned Services,Other Small Contracts,Bluebird Care (South Gloucestershire),120.8, 15-Dec-2022
972,Revenue,CAHD,Central - Commissioned Services,Other Small Contracts,Bluebird Care (South Gloucestershire),576.6, 15-Dec-2022
973,Revenue,CAHD,Central - Commissioned Services,Other Small Contracts,Bluebird Care (South Gloucestershire),83.05, 15-Dec-2022
974,Revenue,CAHD,Central - Commissioned Services,Other Small Contracts,Bluebird Care (South Gloucestershire),120.8, 15-Dec-2022
975,Revenue,CAHD,Central - Commissioned Services,Other Small Contracts,Bluebird Care (South Gloucestershire),498.3, 15-Dec-2022
976,Revenue,CAHD,Central - Commissioned Services,Other Small Contracts,Bluebird Care (South Gloucestershire),354.85, 15-Dec-2022
977,Revenue,CAHD,South - Commissioned Services,Other Small Contracts,Bluebird Care (South Gloucestershire),392.6, 15-Dec-2022
978,Revenue,CAHD,South - Commissioned Services,Other Small Contracts,Bluebird Care (South Gloucestershire),105.7, 15-Dec-2022
979,Revenue,CAHD,South - Commissioned Services,Other Small Contracts,Bluebird Care (South Gloucestershire),415.25, 15-Dec-2022
980,Revenue,CAHD,South - Commissioned Services,Other Small Contracts,Bluebird Care (South Gloucestershire),234.05, 15-Dec-2022
981,Revenue,CAHD,South - Commissioned Services,Other Small Contracts,Bluebird Care (South Gloucestershire),279.35, 15-Dec-2022
982,Revenue,CAHD,South - Commissioned Services,Other Small Contracts,Bluebird Care (South Gloucestershire),234.05, 15-Dec-2022
983,Revenue,CAHD,South - Commissioned Services,Other Small Contracts,Bluebird Care (South Gloucestershire),1318.8, 15-Dec-2022
984,Revenue,CAHD,South - Commissioned Services,Other Small Contracts,Bluebird Care (South Gloucestershire),60.4, 15-Dec-2022
985,Revenue,CAHD,South - Commissioned Services,Other Small Contracts,Bluebird Care (South Gloucestershire),90.6, 15-Dec-2022
986,Revenue,CAHD,South - Commissioned Services,Other Small Contracts,Bluebird Care (South Gloucestershire),113.25, 15-Dec-2022
987,Revenue,CAHD,South - Commissioned Services,Other Small Contracts,Bluebird Care (South Gloucestershire),369.95, 15-Dec-2022
988,Revenue,CAHD,North - Community based support,Other Small Contracts,Bluebird Care (South Gloucestershire),184.8, 15-Dec-2022
989,Revenue,CAHD,North - Community based support,Other Small Contracts,Bluebird Care (South Gloucestershire),196.3, 15-Dec-2022
990,Revenue,CAHD,North - Community based support,Other Small Contracts,Bluebird Care (South Gloucestershire),60.4, 15-Dec-2022
991,Revenue,CAHD,North - Community based support,Other Small Contracts,Bluebird Care (South Gloucestershire),60.4, 15-Dec-2022
992,Revenue,CAHD,North - Community based support,Other Small Contracts,Bluebird Care (South Gloucestershire),1514.27, 15-Dec-2022
993,Revenue,CAHD,North - Community based support,Other Small Contracts,Bluebird Care (South Gloucestershire),135.9, 15-Dec-2022
994,Revenue,CAHD,North - Community based support,Other Small Contracts,Bluebird Care (South Gloucestershire),279.35, 15-Dec-2022
995,Revenue,CAHD,North - Community based support,Other Small Contracts,Bluebird Care (South Gloucestershire),60.4, 15-Dec-2022
996,Revenue,CAHD,North - Community based support,Other Small Contracts,Bluebird Care (South Gloucestershire),128.35, 15-Dec-2022
997,Revenue,CAHD,North - Community based support,Other Small Contracts,Bluebird Care (South Gloucestershire),1701, 15-Dec-2022
998,Revenue,CAHD,Central - Commissioned Services,Other Small Contracts,Bluebird Care (South Gloucestershire),120.8, 15-Dec-2022
999,Revenue,CAHD,Central - Commissioned Services,Other Small Contracts,Bluebird Care (South Gloucestershire),664.4, 15-Dec-2022
1000,Revenue,CAHD,Central - Commissioned Services,Other Small Contracts,Bluebird Care (South Gloucestershire),128.35, 15-Dec-2022
1001,Revenue,CAHD,Central - Commissioned Services,Other Small Contracts,Bluebird Care (South Gloucestershire),22.65, 15-Dec-2022
1002,Revenue,CAHD,Central - Commissioned Services,Other Small Contracts,Bluebird Care (South Gloucestershire),1819.55, 15-Dec-2022
1003,Revenue,CAHD,Central - Commissioned Services,Other Small Contracts,Bluebird Care (South Gloucestershire),135.9, 15-Dec-2022
1004,Revenue,CAHD,Central - Commissioned Services,Other Small Contracts,Bluebird Care (South Gloucestershire),271.8, 15-Dec-2022
1005,Revenue,CAHD,Central - Commissioned Services,Other Small Contracts,Bluebird Care (South Gloucestershire),22.65, 15-Dec-2022
1006,Revenue,CAHD,Central - Commissioned Services,Other Small Contracts,Bluebird Care (South Gloucestershire),52.85, 15-Dec-2022
1007,Revenue,CAHD,Central - Commissioned Services,Other Small Contracts,Bluebird Care (South Gloucestershire),211.4, 15-Dec-2022
1008,Revenue,CAHD,Central - Commissioned Services,Other Small Contracts,Bluebird Care (South Gloucestershire),664.4, 15-Dec-2022
1009,Revenue,CAHD,Central - Commissioned Services,Other Small Contracts,Bluebird Care (South Gloucestershire),158.55, 15-Dec-2022
1010,Revenue,CAHD,Central - Commissioned Services,Other Small Contracts,Bluebird Care (South Gloucestershire),120.8, 15-Dec-2022
1011,Revenue,CAHD,Central - Commissioned Services,Other Small Contracts,Bluebird Care (South Gloucestershire),936.2, 15-Dec-2022
1012,Revenue,CAHD,Central - Commissioned Services,Other Small Contracts,Bluebird Care (South Gloucestershire),30.2, 15-Dec-2022
1013,Revenue,CAHD,Central - Commissioned Services,Other Small Contracts,Bluebird Care (South Gloucestershire),188.75, 15-Dec-2022
1014,Revenue,CAHD,Central - Commissioned Services,Other Small Contracts,Bluebird Care (South Gloucestershire),1318.8, 15-Dec-2022
1015,Revenue,CAHD,Central - Commissioned Services,Other Small Contracts,Bluebird Care (South Gloucestershire),105.7, 15-Dec-2022
1016,Revenue,CAHD,Central - Commissioned Services,Other Small Contracts,Bluebird Care (South Gloucestershire),128.35, 15-Dec-2022
1017,Revenue,CAHD,Central - Commissioned Services,Other Small Contracts,Bluebird Care (South Gloucestershire),324.65, 15-Dec-2022
1018,Revenue,CAHD,Central - Commissioned Services,Other Small Contracts,Bluebird Care (South Gloucestershire),483.2, 15-Dec-2022
1019,Revenue,CAHD,Central - Commissioned Services,Other Small Contracts,Bluebird Care (South Gloucestershire),181.2, 15-Dec-2022
1020,Revenue,CAHD,Central - Commissioned Services,Other Small Contracts,Bluebird Care (South Gloucestershire),604, 15-Dec-2022
1021,Revenue,CAHD,Central - Commissioned Services,Other Small Contracts,Bluebird Care (South Gloucestershire),256.7, 15-Dec-2022
1022,Revenue,CAHD,Central - Commissioned Services,Other Small Contracts,Bluebird Care (South Gloucestershire),98.15, 15-Dec-2022
1023,Revenue,CAHD,Central - Commissioned Services,Other Small Contracts,Bluebird Care (South Gloucestershire),371.35, 15-Dec-2022
1024,Revenue,CAHD,Central - Commissioned Services,Other Small Contracts,Bluebird Care (South Gloucestershire),90.6, 15-Dec-2022
1025,Revenue,CAHD,Central - Commissioned Services,Other Small Contracts,Bluebird Care (South Gloucestershire),120.8, 15-Dec-2022
1026,Revenue,CAHD,Central - Commissioned Services,Other Small Contracts,Bluebird Care (South Gloucestershire),588.9, 15-Dec-2022
1027,Revenue,CAHD,Central - Commissioned Services,Other Small Contracts,Bluebird Care (South Gloucestershire),332.2, 15-Dec-2022
1028,Revenue,CAHD,South - Commissioned Services,Other Small Contracts,Bluebird Care (South Gloucestershire),460.55, 15-Dec-2022
1029,Revenue,CAHD,South - Commissioned Services,Other Small Contracts,Bluebird Care (South Gloucestershire),135.9, 15-Dec-2022
1030,Revenue,CAHD,South - Commissioned Services,Other Small Contracts,Bluebird Care (South Gloucestershire),407.7, 15-Dec-2022
1031,Revenue,CAHD,South - Commissioned Services,Other Small Contracts,Bluebird Care (South Gloucestershire),196.3, 15-Dec-2022
1032,Revenue,CAHD,South - Commissioned Services,Other Small Contracts,Bluebird Care (South Gloucestershire),286.9, 15-Dec-2022
1033,Revenue,CAHD,South - Commissioned Services,Other Small Contracts,Bluebird Care (South Gloucestershire),234.05, 15-Dec-2022
1034,Revenue,CAHD,South - Commissioned Services,Other Small Contracts,Bluebird Care (South Gloucestershire),1318.8, 15-Dec-2022
1035,Revenue,CAHD,South - Commissioned Services,Other Small Contracts,Bluebird Care (South Gloucestershire),60.4, 15-Dec-2022
1036,Revenue,CAHD,South - Commissioned Services,Other Small Contracts,Bluebird Care (South Gloucestershire),75.5, 15-Dec-2022
1037,Revenue,CAHD,South - Commissioned Services,Other Small Contracts,Bluebird Care (South Gloucestershire),120.8, 15-Dec-2022
1038,Revenue,CAHD,South - Commissioned Services,Other Small Contracts,Bluebird Care (South Gloucestershire),354.85, 15-Dec-2022
1039,Revenue,CAHD,North - Community based support,Other Small Contracts,Bluebird Care (South Gloucestershire),338.8, 15-Dec-2022
1040,Revenue,CAHD,North - Community based support,Other Small Contracts,Bluebird Care (South Gloucestershire),75.5, 15-Dec-2022
1041,Revenue,CAHD,North - Community based support,Other Small Contracts,Bluebird Care (South Gloucestershire),60.4, 15-Dec-2022
1042,Revenue,CAHD,North - Community based support,Other Small Contracts,Bluebird Care (South Gloucestershire),60.4, 15-Dec-2022
1043,Revenue,CAHD,North - Community based support,Other Small Contracts,Bluebird Care (South Gloucestershire),1552.02, 15-Dec-2022
1044,Revenue,CAHD,North - Community based support,Other Small Contracts,Bluebird Care (South Gloucestershire),135.9, 15-Dec-2022
1045,Revenue,CAHD,North - Community based support,Other Small Contracts,Bluebird Care (South Gloucestershire),309.55, 15-Dec-2022
1046,Revenue,CAHD,North - Community based support,Other Small Contracts,Bluebird Care (South Gloucestershire),60.4, 15-Dec-2022
1047,Revenue,CAHD,North - Community based support,Other Small Contracts,Bluebird Care (South Gloucestershire),120.8, 15-Dec-2022
1048,Revenue,CAHD,North - Community based support,Other Small Contracts,Bluebird Care (South Gloucestershire),1701, 15-Dec-2022
1049,Revenue,CAHD,Central - Commissioned Services,Other Small Contracts,Bluebird Care (South Gloucestershire),147.63, 01-Dec-2022
1050,Revenue,CAHD,Central - Commissioned Services,Other Small Contracts,Bluebird Care (South Gloucestershire),116.55, 01-Dec-2022
1051,Revenue,CAHD,Central - Commissioned Services,Other Small Contracts,Bluebird Care (South Gloucestershire),784.77, 01-Dec-2022
1052,Revenue,CAHD,Central - Commissioned Services,Other Small Contracts,Bluebird Care (South Gloucestershire),139.86, 01-Dec-2022
1053,Revenue,CAHD,Central - Commissioned Services,Other Small Contracts,Bluebird Care (South Gloucestershire),23.31, 01-Dec-2022
1054,Revenue,CAHD,Central - Commissioned Services,Other Small Contracts,Bluebird Care (South Gloucestershire),1833.72, 01-Dec-2022
1055,Revenue,CAHD,Central - Commissioned Services,Other Small Contracts,Bluebird Care (South Gloucestershire),147.63, 01-Dec-2022
1056,Revenue,CAHD,Central - Commissioned Services,Other Small Contracts,Bluebird Care (South Gloucestershire),287.49, 01-Dec-2022
1057,Revenue,CAHD,Central - Commissioned Services,Other Small Contracts,Bluebird Care (South Gloucestershire),194.25, 01-Dec-2022
1058,Revenue,CAHD,Central - Commissioned Services,Other Small Contracts,Bluebird Care (South Gloucestershire),163.17, 01-Dec-2022
1059,Revenue,CAHD,Central - Commissioned Services,Other Small Contracts,Bluebird Care (South Gloucestershire),101.01, 01-Dec-2022
1060,Revenue,CAHD,Central - Commissioned Services,Other Small Contracts,Bluebird Care (South Gloucestershire),940.17, 01-Dec-2022
1061,Revenue,CAHD,Central - Commissioned Services,Other Small Contracts,Bluebird Care (South Gloucestershire),46.62, 01-Dec-2022
1062,Revenue,CAHD,Central - Commissioned Services,Other Small Contracts,Bluebird Care (South Gloucestershire),520.59, 01-Dec-2022
1063,Revenue,CAHD,Central - Commissioned Services,Other Small Contracts,Bluebird Care (South Gloucestershire),46.62, 01-Dec-2022
1064,Revenue,CAHD,Central - Commissioned Services,Other Small Contracts,Bluebird Care (South Gloucestershire),202.02, 01-Dec-2022
1065,Revenue,CAHD,Central - Commissioned Services,Other Small Contracts,Bluebird Care (South Gloucestershire),1399.44, 01-Dec-2022
1066,Revenue,CAHD,Central - Commissioned Services,Other Small Contracts,Bluebird Care (South Gloucestershire),139.86, 01-Dec-2022
1067,Revenue,CAHD,Central - Commissioned Services,Other Small Contracts,Bluebird Care (South Gloucestershire),442.89, 01-Dec-2022
1068,Revenue,CAHD,Central - Commissioned Services,Other Small Contracts,Bluebird Care (South Gloucestershire),621.6, 01-Dec-2022
1069,Revenue,CAHD,Central - Commissioned Services,Other Small Contracts,Bluebird Care (South Gloucestershire),632.33, 01-Dec-2022
1070,Revenue,CAHD,Central - Commissioned Services,Other Small Contracts,Bluebird Care (South Gloucestershire),93.24, 01-Dec-2022
1071,Revenue,CAHD,Central - Commissioned Services,Other Small Contracts,Bluebird Care (South Gloucestershire),404.04, 01-Dec-2022
1072,Revenue,CAHD,Central - Commissioned Services,Other Small Contracts,Bluebird Care (South Gloucestershire),295.26, 01-Dec-2022
1073,Revenue,CAHD,South - Commissioned Services,Other Small Contracts,Bluebird Care (South Gloucestershire),279.72, 01-Dec-2022
1074,Revenue,CAHD,South - Commissioned Services,Other Small Contracts,Bluebird Care (South Gloucestershire),295.26, 01-Dec-2022
1075,Revenue,CAHD,South - Commissioned Services,Other Small Contracts,Bluebird Care (South Gloucestershire),481.74, 01-Dec-2022
1076,Revenue,CAHD,South - Commissioned Services,Other Small Contracts,Bluebird Care (South Gloucestershire),264.18, 01-Dec-2022
1077,Revenue,CAHD,South - Commissioned Services,Other Small Contracts,Bluebird Care (South Gloucestershire),248.64, 01-Dec-2022
1078,Revenue,CAHD,South - Commissioned Services,Other Small Contracts,Bluebird Care (South Gloucestershire),1399.44, 01-Dec-2022
1079,Revenue,CAHD,South - Commissioned Services,Other Small Contracts,Bluebird Care (South Gloucestershire),62.16, 01-Dec-2022
1080,Revenue,CAHD,South - Commissioned Services,Other Small Contracts,Bluebird Care (South Gloucestershire),124.32, 01-Dec-2022
1081,Revenue,CAHD,South - Commissioned Services,Other Small Contracts,Bluebird Care (South Gloucestershire),54.39, 01-Dec-2022
1082,Revenue,CAHD,South - Commissioned Services,Other Small Contracts,Bluebird Care (South Gloucestershire),365.19, 01-Dec-2022
1083,Revenue,CAHD,North - Community based support,Other Small Contracts,Bluebird Care (South Gloucestershire),279.72, 01-Dec-2022
1084,Revenue,CAHD,North - Community based support,Other Small Contracts,Bluebird Care (South Gloucestershire),458.43, 01-Dec-2022
1085,Revenue,CAHD,North - Community based support,Other Small Contracts,Bluebird Care (South Gloucestershire),202.02, 01-Dec-2022
1086,Revenue,CAHD,North - Community based support,Other Small Contracts,Bluebird Care (South Gloucestershire),62.16, 01-Dec-2022
1087,Revenue,CAHD,North - Community based support,Other Small Contracts,Bluebird Care (South Gloucestershire),1639.26, 01-Dec-2022
1088,Revenue,CAHD,North - Community based support,Other Small Contracts,Bluebird Care (South Gloucestershire),46.62, 01-Dec-2022
1089,Revenue,CAHD,North - Community based support,Other Small Contracts,Bluebird Care (South Gloucestershire),124.32, 01-Dec-2022
1090,Revenue,CAHD,North - Community based support,Other Small Contracts,Bluebird Care (South Gloucestershire),62.16, 01-Dec-2022
1091,Revenue,CAHD,North - Community based support,Other Small Contracts,Bluebird Care (South Gloucestershire),357.42, 01-Dec-2022
1092,Revenue,CAHD,North - Community based support,Other Small Contracts,Bluebird Care (South Gloucestershire),1776.74, 01-Dec-2022
1093,Revenue,CAHD,North - Community based support,Other Small Contracts,Bluebird Care (South Gloucestershire),893.55, 01-Dec-2022
1094,Revenue,CAHD,North - Community based support,Other Small Contracts,Bluebird Care (South Gloucestershire),93.24, 01-Dec-2022
1095,Revenue,CAHD,Central - Commissioned Services,Other Small Contracts,Bluebird Care (South Gloucestershire),93.24, 15-Dec-2022
1096,Revenue,CAHD,Central - Commissioned Services,Other Small Contracts,Bluebird Care (South Gloucestershire),124.32, 15-Dec-2022
1097,Revenue,CAHD,Central - Commissioned Services,Other Small Contracts,Bluebird Care (South Gloucestershire),769.23, 15-Dec-2022
1098,Revenue,CAHD,Central - Commissioned Services,Other Small Contracts,Bluebird Care (South Gloucestershire),139.86, 15-Dec-2022
1099,Revenue,CAHD,Central - Commissioned Services,Other Small Contracts,Bluebird Care (South Gloucestershire),31.08, 15-Dec-2022
1100,Revenue,CAHD,Central - Commissioned Services,Other Small Contracts,Bluebird Care (South Gloucestershire),1787.1, 15-Dec-2022
1101,Revenue,CAHD,Central - Commissioned Services,Other Small Contracts,Bluebird Care (South Gloucestershire),155.4, 15-Dec-2022
1102,Revenue,CAHD,Central - Commissioned Services,Other Small Contracts,Bluebird Care (South Gloucestershire),217.56, 15-Dec-2022
1103,Revenue,CAHD,Central - Commissioned Services,Other Small Contracts,Bluebird Care (South Gloucestershire),178.71, 15-Dec-2022
1104,Revenue,CAHD,Central - Commissioned Services,Other Small Contracts,Bluebird Care (South Gloucestershire),163.17, 15-Dec-2022
1105,Revenue,CAHD,Central - Commissioned Services,Other Small Contracts,Bluebird Care (South Gloucestershire),124.32, 15-Dec-2022
1106,Revenue,CAHD,Central - Commissioned Services,Other Small Contracts,Bluebird Care (South Gloucestershire),947.94, 15-Dec-2022
1107,Revenue,CAHD,Central - Commissioned Services,Other Small Contracts,Bluebird Care (South Gloucestershire),46.62, 15-Dec-2022
1108,Revenue,CAHD,Central - Commissioned Services,Other Small Contracts,Bluebird Care (South Gloucestershire),567.21, 15-Dec-2022
1109,Revenue,CAHD,Central - Commissioned Services,Other Small Contracts,Bluebird Care (South Gloucestershire),31.08, 15-Dec-2022
1110,Revenue,CAHD,Central - Commissioned Services,Other Small Contracts,Bluebird Care (South Gloucestershire),202.02, 15-Dec-2022
1111,Revenue,CAHD,Central - Commissioned Services,Other Small Contracts,Bluebird Care (South Gloucestershire),1399.44, 15-Dec-2022
1112,Revenue,CAHD,Central - Commissioned Services,Other Small Contracts,Bluebird Care (South Gloucestershire),124.32, 15-Dec-2022
1113,Revenue,CAHD,Central - Commissioned Services,Other Small Contracts,Bluebird Care (South Gloucestershire),442.89, 15-Dec-2022
1114,Revenue,CAHD,Central - Commissioned Services,Other Small Contracts,Bluebird Care (South Gloucestershire),644.91, 15-Dec-2022
1115,Revenue,CAHD,Central - Commissioned Services,Other Small Contracts,Bluebird Care (South Gloucestershire),632.33, 15-Dec-2022
1116,Revenue,CAHD,Central - Commissioned Services,Other Small Contracts,Bluebird Care (South Gloucestershire),101.01, 15-Dec-2022
1117,Revenue,CAHD,Central - Commissioned Services,Other Small Contracts,Bluebird Care (South Gloucestershire),404.04, 15-Dec-2022
1118,Revenue,CAHD,Central - Commissioned Services,Other Small Contracts,Bluebird Care (South Gloucestershire),372.96, 15-Dec-2022
1119,Revenue,CAHD,South - Commissioned Services,Other Small Contracts,Bluebird Care (South Gloucestershire),404.04, 15-Dec-2022
1120,Revenue,CAHD,South - Commissioned Services,Other Small Contracts,Bluebird Care (South Gloucestershire),303.03, 15-Dec-2022
1121,Revenue,CAHD,South - Commissioned Services,Other Small Contracts,Bluebird Care (South Gloucestershire),551.67, 15-Dec-2022
1122,Revenue,CAHD,South - Commissioned Services,Other Small Contracts,Bluebird Care (South Gloucestershire),279.72, 15-Dec-2022
1123,Revenue,CAHD,South - Commissioned Services,Other Small Contracts,Bluebird Care (South Gloucestershire),279.72, 15-Dec-2022
1124,Revenue,CAHD,South - Commissioned Services,Other Small Contracts,Bluebird Care (South Gloucestershire),1399.44, 15-Dec-2022
1125,Revenue,CAHD,South - Commissioned Services,Other Small Contracts,Bluebird Care (South Gloucestershire),62.16, 15-Dec-2022
1126,Revenue,CAHD,South - Commissioned Services,Other Small Contracts,Bluebird Care (South Gloucestershire),124.32, 15-Dec-2022
1127,Revenue,CAHD,South - Commissioned Services,Other Small Contracts,Bluebird Care (South Gloucestershire),62.16, 15-Dec-2022
1128,Revenue,CAHD,South - Commissioned Services,Other Small Contracts,Bluebird Care (South Gloucestershire),372.96, 15-Dec-2022
1129,Revenue,CAHD,North - Community based support,Other Small Contracts,Bluebird Care (South Gloucestershire),334.11, 15-Dec-2022
1130,Revenue,CAHD,North - Community based support,Other Small Contracts,Bluebird Care (South Gloucestershire),466.2, 15-Dec-2022
1131,Revenue,CAHD,North - Community based support,Other Small Contracts,Bluebird Care (South Gloucestershire),147.63, 15-Dec-2022
1132,Revenue,CAHD,North - Community based support,Other Small Contracts,Bluebird Care (South Gloucestershire),62.16, 15-Dec-2022
1133,Revenue,CAHD,North - Community based support,Other Small Contracts,Bluebird Care (South Gloucestershire),1670.34, 15-Dec-2022
1134,Revenue,CAHD,North - Community based support,Other Small Contracts,Bluebird Care (South Gloucestershire),46.62, 15-Dec-2022
1135,Revenue,CAHD,North - Community based support,Other Small Contracts,Bluebird Care (South Gloucestershire),139.86, 15-Dec-2022
1136,Revenue,CAHD,North - Community based support,Other Small Contracts,Bluebird Care (South Gloucestershire),62.16, 15-Dec-2022
1137,Revenue,CAHD,North - Community based support,Other Small Contracts,Bluebird Care (South Gloucestershire),372.96, 15-Dec-2022
1138,Revenue,CAHD,North - Community based support,Other Small Contracts,Bluebird Care (South Gloucestershire),1750.84, 15-Dec-2022
1139,Revenue,CAHD,North - Community based support,Other Small Contracts,Bluebird Care (South Gloucestershire),862.47, 15-Dec-2022
1140,Revenue,CAHD,North - Community based support,Other Small Contracts,Bluebird Care (South Gloucestershire),93.24, 15-Dec-2022
1141,Revenue,CAHD,Central - Commissioned Services,Other Small Contracts,Bluebird Care (South Gloucestershire),124.32, 19-Dec-2022
1142,Revenue,CAHD,Central - Commissioned Services,Other Small Contracts,Bluebird Care (South Gloucestershire),116.55, 19-Dec-2022
1143,Revenue,CAHD,Central - Commissioned Services,Other Small Contracts,Bluebird Care (South Gloucestershire),777, 19-Dec-2022
1144,Revenue,CAHD,Central - Commissioned Services,Other Small Contracts,Bluebird Care (South Gloucestershire),132.09, 19-Dec-2022
1145,Revenue,CAHD,Central - Commissioned Services,Other Small Contracts,Bluebird Care (South Gloucestershire),31.08, 19-Dec-2022
1146,Revenue,CAHD,Central - Commissioned Services,Other Small Contracts,Bluebird Care (South Gloucestershire),1825.95, 19-Dec-2022
1147,Revenue,CAHD,Central - Commissioned Services,Other Small Contracts,Bluebird Care (South Gloucestershire),155.4, 19-Dec-2022
1148,Revenue,CAHD,Central - Commissioned Services,Other Small Contracts,Bluebird Care (South Gloucestershire),240.87, 19-Dec-2022
1149,Revenue,CAHD,Central - Commissioned Services,Other Small Contracts,Bluebird Care (South Gloucestershire),209.79, 19-Dec-2022
1150,Revenue,CAHD,Central - Commissioned Services,Other Small Contracts,Bluebird Care (South Gloucestershire),163.17, 19-Dec-2022
1151,Revenue,CAHD,Central - Commissioned Services,Other Small Contracts,Bluebird Care (South Gloucestershire),116.55, 19-Dec-2022
1152,Revenue,CAHD,Central - Commissioned Services,Other Small Contracts,Bluebird Care (South Gloucestershire),955.71, 19-Dec-2022
1153,Revenue,CAHD,Central - Commissioned Services,Other Small Contracts,Bluebird Care (South Gloucestershire),31.08, 19-Dec-2022
1154,Revenue,CAHD,Central - Commissioned Services,Other Small Contracts,Bluebird Care (South Gloucestershire),543.9, 19-Dec-2022
1155,Revenue,CAHD,Central - Commissioned Services,Other Small Contracts,Bluebird Care (South Gloucestershire),46.62, 19-Dec-2022
1156,Revenue,CAHD,Central - Commissioned Services,Other Small Contracts,Bluebird Care (South Gloucestershire),202.02, 19-Dec-2022
1157,Revenue,CAHD,Central - Commissioned Services,Other Small Contracts,Bluebird Care (South Gloucestershire),1399.44, 19-Dec-2022
1158,Revenue,CAHD,Central - Commissioned Services,Other Small Contracts,Bluebird Care (South Gloucestershire),139.86, 19-Dec-2022
1159,Revenue,CAHD,Central - Commissioned Services,Other Small Contracts,Bluebird Care (South Gloucestershire),442.89, 19-Dec-2022
1160,Revenue,CAHD,Central - Commissioned Services,Other Small Contracts,Bluebird Care (South Gloucestershire),644.91, 19-Dec-2022
1161,Revenue,CAHD,Central - Commissioned Services,Other Small Contracts,Bluebird Care (South Gloucestershire),647.87, 19-Dec-2022
1162,Revenue,CAHD,Central - Commissioned Services,Other Small Contracts,Bluebird Care (South Gloucestershire),77.7, 19-Dec-2022
1163,Revenue,CAHD,Central - Commissioned Services,Other Small Contracts,Bluebird Care (South Gloucestershire),404.04, 19-Dec-2022
1164,Revenue,CAHD,Central - Commissioned Services,Other Small Contracts,Bluebird Care (South Gloucestershire),372.96, 19-Dec-2022
1165,Revenue,CAHD,South - Commissioned Services,Other Small Contracts,Bluebird Care (South Gloucestershire),481.74, 19-Dec-2022
1166,Revenue,CAHD,South - Commissioned Services,Other Small Contracts,Bluebird Care (South Gloucestershire),310.8, 19-Dec-2022
1167,Revenue,CAHD,South - Commissioned Services,Other Small Contracts,Bluebird Care (South Gloucestershire),481.74, 19-Dec-2022
1168,Revenue,CAHD,South - Commissioned Services,Other Small Contracts,Bluebird Care (South Gloucestershire),271.95, 19-Dec-2022
1169,Revenue,CAHD,South - Commissioned Services,Other Small Contracts,Bluebird Care (South Gloucestershire),271.95, 19-Dec-2022
1170,Revenue,CAHD,South - Commissioned Services,Other Small Contracts,Bluebird Care (South Gloucestershire),1399.44, 19-Dec-2022
1171,Revenue,CAHD,South - Commissioned Services,Other Small Contracts,Bluebird Care (South Gloucestershire),62.16, 19-Dec-2022
1172,Revenue,CAHD,South - Commissioned Services,Other Small Contracts,Bluebird Care (South Gloucestershire),116.55, 19-Dec-2022
1173,Revenue,CAHD,South - Commissioned Services,Other Small Contracts,Bluebird Care (South Gloucestershire),62.16, 19-Dec-2022
1174,Revenue,CAHD,South - Commissioned Services,Other Small Contracts,Bluebird Care (South Gloucestershire),380.73, 19-Dec-2022
1175,Revenue,CAHD,North - Community based support,Other Small Contracts,Bluebird Care (South Gloucestershire),217.56, 19-Dec-2022
1176,Revenue,CAHD,North - Community based support,Other Small Contracts,Bluebird Care (South Gloucestershire),194.25, 19-Dec-2022
1177,Revenue,CAHD,North - Community based support,Other Small Contracts,Bluebird Care (South Gloucestershire),54.39, 19-Dec-2022
1178,Revenue,CAHD,North - Community based support,Other Small Contracts,Bluebird Care (South Gloucestershire),1615.95, 19-Dec-2022
1179,Revenue,CAHD,North - Community based support,Other Small Contracts,Bluebird Care (South Gloucestershire),38.85, 19-Dec-2022
1180,Revenue,CAHD,North - Community based support,Other Small Contracts,Bluebird Care (South Gloucestershire),139.86, 19-Dec-2022
1181,Revenue,CAHD,North - Community based support,Other Small Contracts,Bluebird Care (South Gloucestershire),38.85, 19-Dec-2022
1182,Revenue,CAHD,North - Community based support,Other Small Contracts,Bluebird Care (South Gloucestershire),349.65, 19-Dec-2022
1183,Revenue,CAHD,North - Community based support,Other Small Contracts,Bluebird Care (South Gloucestershire),1750.84, 19-Dec-2022
1184,Revenue,CAHD,North - Community based support,Other Small Contracts,Bluebird Care (South Gloucestershire),862.47, 19-Dec-2022
1185,Revenue,CAHD,North - Community based support,Other Small Contracts,Bluebird Care (South Gloucestershire),93.24, 19-Dec-2022
1186,Revenue,CAHD,Central - Commissioned Services,Other Small Contracts,Bluebird Care (South Gloucestershire),139.86, 22-Dec-2022
1187,Revenue,CAHD,Central - Commissioned Services,Other Small Contracts,Bluebird Care (South Gloucestershire),116.55, 22-Dec-2022
1188,Revenue,CAHD,Central - Commissioned Services,Other Small Contracts,Bluebird Care (South Gloucestershire),777, 22-Dec-2022
1189,Revenue,CAHD,Central - Commissioned Services,Other Small Contracts,Bluebird Care (South Gloucestershire),139.86, 22-Dec-2022
1190,Revenue,CAHD,Central - Commissioned Services,Other Small Contracts,Bluebird Care (South Gloucestershire),23.31, 22-Dec-2022
1191,Revenue,CAHD,Central - Commissioned Services,Other Small Contracts,Bluebird Care (South Gloucestershire),1849.26, 22-Dec-2022
1192,Revenue,CAHD,Central - Commissioned Services,Other Small Contracts,Bluebird Care (South Gloucestershire),124.32, 22-Dec-2022
1193,Revenue,CAHD,Central - Commissioned Services,Other Small Contracts,Bluebird Care (South Gloucestershire),170.94, 22-Dec-2022
1194,Revenue,CAHD,Central - Commissioned Services,Other Small Contracts,Bluebird Care (South Gloucestershire),202.02, 22-Dec-2022
1195,Revenue,CAHD,Central - Commissioned Services,Other Small Contracts,Bluebird Care (South Gloucestershire),163.17, 22-Dec-2022
1196,Revenue,CAHD,Central - Commissioned Services,Other Small Contracts,Bluebird Care (South Gloucestershire),124.32, 22-Dec-2022
1197,Revenue,CAHD,Central - Commissioned Services,Other Small Contracts,Bluebird Care (South Gloucestershire),940.17, 22-Dec-2022
1198,Revenue,CAHD,Central - Commissioned Services,Other Small Contracts,Bluebird Care (South Gloucestershire),46.62, 22-Dec-2022
1199,Revenue,CAHD,Central - Commissioned Services,Other Small Contracts,Bluebird Care (South Gloucestershire),559.44, 22-Dec-2022
1200,Revenue,CAHD,Central - Commissioned Services,Other Small Contracts,Bluebird Care (South Gloucestershire),46.62, 22-Dec-2022
1201,Revenue,CAHD,Central - Commissioned Services,Other Small Contracts,Bluebird Care (South Gloucestershire),194.25, 22-Dec-2022
1202,Revenue,CAHD,Central - Commissioned Services,Other Small Contracts,Bluebird Care (South Gloucestershire),1399.44, 22-Dec-2022
1203,Revenue,CAHD,Central - Commissioned Services,Other Small Contracts,Bluebird Care (South Gloucestershire),139.86, 22-Dec-2022
1204,Revenue,CAHD,Central - Commissioned Services,Other Small Contracts,Bluebird Care (South Gloucestershire),427.35, 22-Dec-2022
1205,Revenue,CAHD,Central - Commissioned Services,Other Small Contracts,Bluebird Care (South Gloucestershire),644.91, 22-Dec-2022
1206,Revenue,CAHD,Central - Commissioned Services,Other Small Contracts,Bluebird Care (South Gloucestershire),640.1, 22-Dec-2022
1207,Revenue,CAHD,Central - Commissioned Services,Other Small Contracts,Bluebird Care (South Gloucestershire),85.47, 22-Dec-2022
1208,Revenue,CAHD,Central - Commissioned Services,Other Small Contracts,Bluebird Care (South Gloucestershire),334.11, 22-Dec-2022
1209,Revenue,CAHD,Central - Commissioned Services,Other Small Contracts,Bluebird Care (South Gloucestershire),334.11, 22-Dec-2022
1210,Revenue,CAHD,South - Commissioned Services,Other Small Contracts,Bluebird Care (South Gloucestershire),497.28, 22-Dec-2022
1211,Revenue,CAHD,South - Commissioned Services,Other Small Contracts,Bluebird Care (South Gloucestershire),287.49, 22-Dec-2022
1212,Revenue,CAHD,South - Commissioned Services,Other Small Contracts,Bluebird Care (South Gloucestershire),505.05, 22-Dec-2022
1213,Revenue,CAHD,South - Commissioned Services,Other Small Contracts,Bluebird Care (South Gloucestershire),264.18, 22-Dec-2022
1214,Revenue,CAHD,South - Commissioned Services,Other Small Contracts,Bluebird Care (South Gloucestershire),264.18, 22-Dec-2022
1215,Revenue,CAHD,South - Commissioned Services,Other Small Contracts,Bluebird Care (South Gloucestershire),1399.44, 22-Dec-2022
1216,Revenue,CAHD,South - Commissioned Services,Other Small Contracts,Bluebird Care (South Gloucestershire),62.16, 22-Dec-2022
1217,Revenue,CAHD,South - Commissioned Services,Other Small Contracts,Bluebird Care (South Gloucestershire),124.32, 22-Dec-2022
1218,Revenue,CAHD,South - Commissioned Services,Other Small Contracts,Bluebird Care (South Gloucestershire),62.16, 22-Dec-2022
1219,Revenue,CAHD,South - Commissioned Services,Other Small Contracts,Bluebird Care (South Gloucestershire),380.73, 22-Dec-2022
1220,Revenue,CAHD,North - Community based support,Other Small Contracts,Bluebird Care (South Gloucestershire),326.34, 22-Dec-2022
1221,Revenue,CAHD,North - Community based support,Other Small Contracts,Bluebird Care (South Gloucestershire),381.44, 22-Dec-2022
1222,Revenue,CAHD,North - Community based support,Other Small Contracts,Bluebird Care (South Gloucestershire),186.48, 22-Dec-2022
1223,Revenue,CAHD,North - Community based support,Other Small Contracts,Bluebird Care (South Gloucestershire),23.31, 22-Dec-2022
1224,Revenue,CAHD,North - Community based support,Other Small Contracts,Bluebird Care (South Gloucestershire),1693.65, 22-Dec-2022
1225,Revenue,CAHD,North - Community based support,Other Small Contracts,Bluebird Care (South Gloucestershire),38.85, 22-Dec-2022
1226,Revenue,CAHD,North - Community based support,Other Small Contracts,Bluebird Care (South Gloucestershire),132.09, 22-Dec-2022
1227,Revenue,CAHD,North - Community based support,Other Small Contracts,Bluebird Care (South Gloucestershire),62.16, 22-Dec-2022
1228,Revenue,CAHD,North - Community based support,Other Small Contracts,Bluebird Care (South Gloucestershire),310.8, 22-Dec-2022
1229,Revenue,CAHD,North - Community based support,Other Small Contracts,Bluebird Care (South Gloucestershire),1750.84, 22-Dec-2022
1230,Revenue,CAHD,North - Community based support,Other Small Contracts,Bluebird Care (South Gloucestershire),901.32, 22-Dec-2022
1231,Revenue,CAHD,North - Community based support,Other Small Contracts,Bluebird Care (South Gloucestershire),62.16, 22-Dec-2022
1232,Revenue,CAHD,CSC - Asylum Seekers - Unaccompanied,Independent Living,Blueline Healthcare Solutions Ltd T/A Blueline Car,4207, 23-Dec-2022
1233,Revenue,CAHD,CSC - Asylum Seekers - Unaccompanied,Independent Living,Blueline Healthcare Solutions Ltd T/A Blueline Car,4207, 23-Dec-2022
1234,Revenue,CAHD,CSC - Asylum Seekers - Unaccompanied,Independent Living,Blueline Healthcare Solutions Ltd T/A Blueline Car,4207, 23-Dec-2022
1235,Revenue,CAHD,CSC - Asylum Seekers - Unaccompanied,Independent Living,Blueline Healthcare Solutions Ltd T/A Blueline Car,4207, 23-Dec-2022
1236,Revenue,CAHD,CSC - Asylum Seekers - Unaccompanied,Independent Living,Blueline Healthcare Solutions Ltd T/A Blueline Car,4207, 23-Dec-2022
1237,Revenue,CAHD,CSC - Asylum Seekers - Unaccompanied,Independent Living,Blueline Healthcare Solutions Ltd T/A Blueline Car,4207, 23-Dec-2022
1238,Revenue,CAHD,CSC - Asylum Seekers - Unaccompanied,Independent Living,Blueline Healthcare Solutions Ltd T/A Blueline Car,4207, 23-Dec-2022
1239,Revenue,CAHD,CSC - Asylum Seekers - Unaccompanied,Independent Living,Blueline Healthcare Solutions Ltd T/A Blueline Car,4207, 23-Dec-2022
1240,Revenue,CAHD,CSC - Asylum Seekers - Unaccompanied,Independent Living,Blueline Healthcare Solutions Ltd T/A Blueline Car,4207, 23-Dec-2022
1241,Revenue,CAHD,CSC - Vinney Green Secure Unit,R & M by Departments,Bob Ritchie Limited,476, 15-Dec-2022
1242,Revenue,CAHD,Contain Outbreak Mgmt Fund,Personal Needs of Clients,Borderlands (South West) Ltd,1511.27, 19-Dec-2022
1243,Revenue,CAHD,Ukranian Refugees,Other Small Contracts,Individual,599.19, 15-Dec-2022
1244,Revenue,CAHD,North - Community based support,Permanent Residential,Bradbury House,6768.6, 13-Dec-2022
1245,Revenue,CAHD,S28A cases,Fees & Charges Income - General,Bradbury House,-438.8, 13-Dec-2022
1246,Revenue,CAHD,Central - Commissioned Services,Permanent Residential,Bradbury House,11342.8, 13-Dec-2022
1247,Revenue,CAHD,North - S117,Permanent Residential,Bradbury House,14640.32, 13-Dec-2022
1248,Revenue,CAHD,Alexandra Way,"Provisions (Food, etc)",Brake Bros,548.59, 21-Dec-2022
1249,Revenue,CAHD,Alexandra Way,"Provisions (Food, etc)",Brake Bros,546.11, 21-Dec-2022
1250,Revenue,CAHD,Alexandra Way,"Provisions (Food, etc)",Brake Bros,629.2, 21-Dec-2022
1251,Revenue,CAHD,Alexandra Way,"Provisions (Food, etc)",Brake Bros,668.06, 21-Dec-2022
1252,Revenue,CAHD,Alexandra Way,"Provisions (Food, etc)",Brake Bros,528.96, 21-Dec-2022
1253,Revenue,CAHD,Alexandra Way,"Provisions (Food, etc)",Brake Bros,507.06, 21-Dec-2022
1254,Revenue,CAHD,Alexandra Way,"Provisions (Food, etc)",Brake Bros,715.23, 21-Dec-2022
1255,Revenue,CAHD,Alexandra Way,"Provisions (Food, etc)",Brake Bros,503.31, 22-Dec-2022
1256,Revenue,CAHD,Alexandra Way,"Provisions (Food, etc)",Brake Bros,536.97, 22-Dec-2022
1257,Revenue,CAHD,Alexandra Way,"Provisions (Food, etc)",Brake Bros,812.16, 21-Dec-2022
1258,Revenue,CAHD,Alexandra Way,"Provisions (Food, etc)",Brake Bros,831.66, 22-Dec-2022
1259,Revenue,CAHD,Alexandra Way,"Provisions (Food, etc)",Brake Bros,587.15, 22-Dec-2022
1260,Revenue,CAHD,Alexandra Way,"Provisions (Food, etc)",Brake Bros,771.28, 22-Dec-2022
1261,Revenue,CAHD,Alexandra Way,"Provisions (Food, etc)",Brake Bros,601.72, 22-Dec-2022
1262,Revenue,CAHD,Alexandra Way,"Provisions (Food, etc)",Brake Bros,545.59, 22-Dec-2022
1263,Revenue,CAHD,Alexandra Way,"Provisions (Food, etc)",Brake Bros,842.58, 22-Dec-2022
1264,Revenue,CAHD,CSC - Residential Placements,Permanent Residential,Branas ISAF Ltd,21214.29, 07-Dec-2022
1265,Revenue,CAHD,CSC - Residential Placements,Permanent Residential,Branas ISAF Ltd,21921.43, 14-Dec-2022
1266,Revenue,CAHD,Social Lettings Agency,Rent,Individual,822.73, 23-Dec-2022
1267,Revenue,CAHD,Social Lettings Agency,Fees & Charges Income - General,Individual,-102.8, 23-Dec-2022
1268,Revenue,CAHD,Social Lettings Agency,Rent,Individual,947.4, 08-Dec-2022
1269,Revenue,CAHD,Social Lettings Agency,Fees & Charges Income - General,Individual,-75.8, 08-Dec-2022
1270,Revenue,CAHD,Placements OLA Special Schools and RB,Other L.A.s - General,Briarwood School,2774.72, 23-Dec-2022
1271,Revenue,CAHD,Placements OLA Special Schools and RB,Other L.A.s - General,Briarwood School,1981.43, 23-Dec-2022
1272,Revenue,CAHD,Placements OLA Special Schools and RB,Other L.A.s - General,Briarwood School,792.41, 23-Dec-2022
1273,Revenue,CAHD,North - Community based support,Permanent Residential,Bridge House Care Home,3286, 13-Dec-2022
1274,Revenue,CAHD,North - Community based support,Permanent Residential,Bridge House Care Home,3440, 13-Dec-2022
1275,Revenue,CAHD,North - Community based support,Permanent Residential,Bridge House Care Home,3088.32, 13-Dec-2022
1276,Revenue,CAHD,North - Community based support,Permanent Nursing,Bridge House Care Home,3360, 13-Dec-2022
1277,Revenue,CAHD,North - Community based support,Fees & Charges Income - General,Bridge House Care Home,-627.8, 13-Dec-2022
1278,Revenue,CAHD,North - Community based support,Fees & Charges Income - General,Bridge House Care Home,-650.88, 13-Dec-2022
1279,Revenue,CAHD,North - Community based support,Fees & Charges Income - General,Bridge House Care Home,-651.64, 13-Dec-2022
1280,Revenue,CAHD,North - Community based support,Fees & Charges Income - General,Bridge House Care Home,-1679.52, 13-Dec-2022
1281,Revenue,CAHD,North - Community based support,Day Care / Social Activities,Bridge House Care Home,720, 13-Dec-2022
1282,Revenue,CAHD,North - Community based support,Permanent Residential,Bridgwater Court Care Home,10773.64, 13-Dec-2022
1283,Revenue,CAHD,Mental Health and Community Engagement,Grants to Voluntary Bodies,Bristol & Avon Chinese Womens Group,500, 20-Dec-2022
1284,Revenue,CAHD,Community Support - North,Preventative Assistance,Bristol Ambulance EMS Limited,2258, 09-Dec-2022
1285,Revenue,CAHD,Older People`s Commissioned Se,Grants to Voluntary Bodies,Bristol Area Stroke Foundation,23534.25, 20-Dec-2022
1286,Revenue,CAHD,Statemented Support Payments to OLAs,Other L.A.s - General,Bristol Cathedral Choir School,942.58, 23-Dec-2022
1287,Revenue,CAHD,Statemented Support Payments to OLAs,Other L.A.s - General,Bristol Cathedral Choir School,880.08, 23-Dec-2022
1288,Revenue,CAHD,Schools Specific Grant Income,Other Public Bodies,Bristol Cathedral Choir School,550, 20-Dec-2022
1289,Revenue,CAHD,Statemented Support Payments to OLAs,Other L.A.s - General,Bristol Cathedral Choir School,978.57, 23-Dec-2022
1290,Revenue,CAHD,Statemented Support Payments to OLAs,Other L.A.s - General,Bristol City Council Schools General,897.42, 23-Dec-2022
1291,Revenue,CAHD,Contain Outbreak Mgmt Fund,Personal Needs of Clients,Bristol MIND,1511.28, 12-Dec-2022
1292,Revenue,CAHD,Post 16 High Needs Placements,Other Private Contractors,Bristol Plastering Academy Ltd,4935, 16-Dec-2022
1293,Revenue,CAHD,Pupil Premium Pilot - Post 16,Educational Materials,Bristol Tuition Limited,2500, 23-Dec-2022
1294,Revenue,CAHD,Other Alternative Provision Services,Other Private Contractors,Bristol Tutors Ltd,616, 16-Dec-2022
1295,Revenue,CAHD,Statemented Support Payments to OLAs,Other L.A.s - General,Broadlands Academy,835.17, 23-Dec-2022
1296,Revenue,CAHD,North - Community based support,Permanent Residential,Brockhills Farm,3200, 13-Dec-2022
1297,Revenue,CAHD,North - Community based support,Fees & Charges Income - General,Brockhills Farm,-658.96, 13-Dec-2022
1298,Revenue,CAHD,Supporting People Programme,Grants to Voluntary Bodies,Bromford  :  Merlin Housing Society,2824.17, 01-Dec-2022
1299,Revenue,CAHD,Supporting People Programme,Grants to Voluntary Bodies,Bromford  :  Merlin Housing Society,23628.83, 01-Dec-2022
1300,Revenue,CAHD,Supporting People Programme,Grants to Voluntary Bodies,Bromford  :  Merlin Housing Society,1146.92, 01-Dec-2022
1301,Revenue,CAHD,Ukranian Refugees,Rent,Bromford  :  Merlin Housing Society,634.04, 29-Dec-2022
1302,Revenue,CAHD,Homelessness Contingency,Other Supplies & Services,Bromford  :  Merlin Housing Society,514.42, 29-Dec-2022
1303,Revenue,CAHD,Pathway 1 - Re-Ablement Home Care,Other Small Contracts,Brunelcare,7625, 19-Dec-2022
1304,Revenue,CAHD,Central - Commissioned Services,Other Small Contracts,Brunelcare,84.7, 05-Dec-2022
1305,Revenue,CAHD,Central - Commissioned Services,Other Small Contracts,Brunelcare,96.8, 05-Dec-2022
1306,Revenue,CAHD,Central - Commissioned Services,Other Small Contracts,Brunelcare,356.95, 05-Dec-2022
1307,Revenue,CAHD,South - Commissioned Services,Other Small Contracts,Brunelcare,199.65, 05-Dec-2022
1308,Revenue,CAHD,South - Commissioned Services,Other Small Contracts,Brunelcare,60.5, 05-Dec-2022
1309,Revenue,CAHD,South - Commissioned Services,Other Small Contracts,Brunelcare,169.4, 05-Dec-2022
1310,Revenue,CAHD,South - Commissioned Services,Other Small Contracts,Brunelcare,181.5, 05-Dec-2022
1311,Revenue,CAHD,South - Commissioned Services,Other Small Contracts,Brunelcare,375.1, 05-Dec-2022
1312,Revenue,CAHD,South - Commissioned Services,Other Small Contracts,Brunelcare,211.75, 05-Dec-2022
1313,Revenue,CAHD,South - Commissioned Services,Other Small Contracts,Brunelcare,127.05, 05-Dec-2022
1314,Revenue,CAHD,South - Commissioned Services,Other Small Contracts,Brunelcare,834.9, 05-Dec-2022
1315,Revenue,CAHD,South - Commissioned Services,Other Small Contracts,Brunelcare,169.4, 05-Dec-2022
1316,Revenue,CAHD,South - Commissioned Services,Other Small Contracts,Brunelcare,302.5, 05-Dec-2022
1317,Revenue,CAHD,South - Commissioned Services,Other Small Contracts,Brunelcare,102.85, 05-Dec-2022
1318,Revenue,CAHD,South - Commissioned Services,Other Small Contracts,Brunelcare,78.65, 05-Dec-2022
1319,Revenue,CAHD,South - Commissioned Services,Other Small Contracts,Brunelcare,133.1, 05-Dec-2022
1320,Revenue,CAHD,South - Commissioned Services,Other Small Contracts,Brunelcare,248.05, 05-Dec-2022
1321,Revenue,CAHD,South - Commissioned Services,Other Small Contracts,Brunelcare,90.75, 05-Dec-2022
1322,Revenue,CAHD,South - Commissioned Services,Other Small Contracts,Brunelcare,181.5, 05-Dec-2022
1323,Revenue,CAHD,South - Commissioned Services,Other Small Contracts,Brunelcare,865.15, 05-Dec-2022
1324,Revenue,CAHD,South - Commissioned Services,Other Small Contracts,Brunelcare,514.25, 05-Dec-2022
1325,Revenue,CAHD,South - Commissioned Services,Other Small Contracts,Brunelcare,24.2, 05-Dec-2022
1326,Revenue,CAHD,South - Commissioned Services,Other Small Contracts,Brunelcare,193.6, 05-Dec-2022
1327,Revenue,CAHD,South - Commissioned Services,Other Small Contracts,Brunelcare,229.9, 05-Dec-2022
1328,Revenue,CAHD,South - Commissioned Services,Other Small Contracts,Brunelcare,242, 05-Dec-2022
1329,Revenue,CAHD,South - Commissioned Services,Other Small Contracts,Brunelcare,64.06, 05-Dec-2022
1330,Revenue,CAHD,South - Commissioned Services,Other Small Contracts,Brunelcare,72.6, 05-Dec-2022
1331,Revenue,CAHD,South - Commissioned Services,Other Small Contracts,Brunelcare,369.05, 05-Dec-2022
1332,Revenue,CAHD,South - Commissioned Services,Other Small Contracts,Brunelcare,48.4, 05-Dec-2022
1333,Revenue,CAHD,South - Commissioned Services,Other Small Contracts,Brunelcare,84.7, 05-Dec-2022
1334,Revenue,CAHD,South - Commissioned Services,Other Small Contracts,Brunelcare,393.25, 05-Dec-2022
1335,Revenue,CAHD,South - Commissioned Services,Other Small Contracts,Brunelcare,127.05, 05-Dec-2022
1336,Revenue,CAHD,South - Commissioned Services,Other Small Contracts,Brunelcare,169.4, 05-Dec-2022
1337,Revenue,CAHD,South - Commissioned Services,Other Small Contracts,Brunelcare,169.4, 05-Dec-2022
1338,Revenue,CAHD,South - Commissioned Services,Other Small Contracts,Brunelcare,42.35, 05-Dec-2022
1339,Revenue,CAHD,South - Commissioned Services,Other Small Contracts,Brunelcare,60.5, 05-Dec-2022
1340,Revenue,CAHD,South - Commissioned Services,Other Small Contracts,Brunelcare,151.25, 05-Dec-2022
1341,Revenue,CAHD,South - Commissioned Services,Other Small Contracts,Brunelcare,66.55, 05-Dec-2022
1342,Revenue,CAHD,South - Commissioned Services,Other Small Contracts,Brunelcare,121, 05-Dec-2022
1343,Revenue,CAHD,South - Commissioned Services,Other Small Contracts,Brunelcare,169.4, 05-Dec-2022
1344,Revenue,CAHD,South - Commissioned Services,Other Small Contracts,Brunelcare,72.6, 05-Dec-2022
1345,Revenue,CAHD,South - Commissioned Services,Other Small Contracts,Brunelcare,48.4, 05-Dec-2022
1346,Revenue,CAHD,South - Commissioned Services,Other Small Contracts,Brunelcare,266.2, 05-Dec-2022
1347,Revenue,CAHD,South - Commissioned Services,Other Small Contracts,Brunelcare,96.8, 05-Dec-2022
1348,Revenue,CAHD,South - Commissioned Services,Other Small Contracts,Brunelcare,114.95, 05-Dec-2022
1349,Revenue,CAHD,South - Commissioned Services,Other Small Contracts,Brunelcare,223.85, 05-Dec-2022
1350,Revenue,CAHD,South - Commissioned Services,Other Small Contracts,Brunelcare,248.05, 05-Dec-2022
1351,Revenue,CAHD,South - Commissioned Services,Other Small Contracts,Brunelcare,223.85, 05-Dec-2022
1352,Revenue,CAHD,South - Commissioned Services,Other Small Contracts,Brunelcare,205.7, 05-Dec-2022
1353,Revenue,CAHD,South - Commissioned Services,Other Small Contracts,Brunelcare,229.9, 05-Dec-2022
1354,Revenue,CAHD,South - Commissioned Services,Other Small Contracts,Brunelcare,387.2, 05-Dec-2022
1355,Revenue,CAHD,South - Commissioned Services,Other Small Contracts,Brunelcare,30.25, 05-Dec-2022
1356,Revenue,CAHD,South - Commissioned Services,Other Small Contracts,Brunelcare,344.85, 05-Dec-2022
1357,Revenue,CAHD,South - Commissioned Services,Other Small Contracts,Brunelcare,508.2, 05-Dec-2022
1358,Revenue,CAHD,South - Commissioned Services,Other Small Contracts,Brunelcare,169.4, 05-Dec-2022
1359,Revenue,CAHD,South - Commissioned Services,Other Small Contracts,Brunelcare,508.2, 05-Dec-2022
1360,Revenue,CAHD,South - Commissioned Services,Other Small Contracts,Brunelcare,96.8, 05-Dec-2022
1361,Revenue,CAHD,South - Commissioned Services,Mentoring,Brunelcare,84.7, 05-Dec-2022
1362,Revenue,CAHD,South - Commissioned Services,Mentoring,Brunelcare,48.4, 05-Dec-2022
1363,Revenue,CAHD,South - Commissioned Services,Mentoring,Brunelcare,36.3, 05-Dec-2022
1364,Revenue,CAHD,South - Commissioned Services,Mentoring,Brunelcare,72.6, 05-Dec-2022
1365,Revenue,CAHD,South - Commissioned Services,Mentoring,Brunelcare,42.35, 05-Dec-2022
1366,Revenue,CAHD,North - Community based support,Other Small Contracts,Brunelcare,423.5, 05-Dec-2022
1367,Revenue,CAHD,Central - Commissioned Services,Other Small Contracts,Brunelcare,169.4, 28-Dec-2022
1368,Revenue,CAHD,Central - Commissioned Services,Other Small Contracts,Brunelcare,193.6, 28-Dec-2022
1369,Revenue,CAHD,Central - Commissioned Services,Other Small Contracts,Brunelcare,592.9, 28-Dec-2022
1370,Revenue,CAHD,South - Commissioned Services,Other Small Contracts,Brunelcare,411.4, 28-Dec-2022
1371,Revenue,CAHD,South - Commissioned Services,Other Small Contracts,Brunelcare,121, 28-Dec-2022
1372,Revenue,CAHD,South - Commissioned Services,Other Small Contracts,Brunelcare,344.85, 28-Dec-2022
1373,Revenue,CAHD,South - Commissioned Services,Other Small Contracts,Brunelcare,344.85, 28-Dec-2022
1374,Revenue,CAHD,South - Commissioned Services,Other Small Contracts,Brunelcare,774.4, 28-Dec-2022
1375,Revenue,CAHD,South - Commissioned Services,Other Small Contracts,Brunelcare,429.55, 28-Dec-2022
1376,Revenue,CAHD,South - Commissioned Services,Other Small Contracts,Brunelcare,272.25, 28-Dec-2022
1377,Revenue,CAHD,South - Commissioned Services,Other Small Contracts,Brunelcare,1748.45, 28-Dec-2022
1378,Revenue,CAHD,South - Commissioned Services,Other Small Contracts,Brunelcare,326.7, 28-Dec-2022
1379,Revenue,CAHD,South - Commissioned Services,Other Small Contracts,Brunelcare,562.65, 28-Dec-2022
1380,Revenue,CAHD,South - Commissioned Services,Other Small Contracts,Brunelcare,205.7, 28-Dec-2022
1381,Revenue,CAHD,South - Commissioned Services,Other Small Contracts,Brunelcare,151.25, 28-Dec-2022
1382,Revenue,CAHD,South - Commissioned Services,Other Small Contracts,Brunelcare,254.1, 28-Dec-2022
1383,Revenue,CAHD,South - Commissioned Services,Other Small Contracts,Brunelcare,229.9, 28-Dec-2022
1384,Revenue,CAHD,South - Commissioned Services,Other Small Contracts,Brunelcare,193.6, 28-Dec-2022
1385,Revenue,CAHD,South - Commissioned Services,Other Small Contracts,Brunelcare,435.6, 28-Dec-2022
1386,Revenue,CAHD,South - Commissioned Services,Other Small Contracts,Brunelcare,1808.95, 28-Dec-2022
1387,Revenue,CAHD,South - Commissioned Services,Other Small Contracts,Brunelcare,1034.55, 28-Dec-2022
1388,Revenue,CAHD,South - Commissioned Services,Other Small Contracts,Brunelcare,48.4, 28-Dec-2022
1389,Revenue,CAHD,South - Commissioned Services,Other Small Contracts,Brunelcare,399.3, 28-Dec-2022
1390,Revenue,CAHD,South - Commissioned Services,Other Small Contracts,Brunelcare,471.9, 28-Dec-2022
1391,Revenue,CAHD,South - Commissioned Services,Other Small Contracts,Brunelcare,514.25, 28-Dec-2022
1392,Revenue,CAHD,South - Commissioned Services,Other Small Contracts,Brunelcare,64.06, 28-Dec-2022
1393,Revenue,CAHD,South - Commissioned Services,Other Small Contracts,Brunelcare,145.2, 28-Dec-2022
1394,Revenue,CAHD,South - Commissioned Services,Other Small Contracts,Brunelcare,774.4, 28-Dec-2022
1395,Revenue,CAHD,South - Commissioned Services,Other Small Contracts,Brunelcare,96.8, 28-Dec-2022
1396,Revenue,CAHD,South - Commissioned Services,Other Small Contracts,Brunelcare,169.4, 28-Dec-2022
1397,Revenue,CAHD,South - Commissioned Services,Other Small Contracts,Brunelcare,822.8, 28-Dec-2022
1398,Revenue,CAHD,South - Commissioned Services,Other Small Contracts,Brunelcare,242, 28-Dec-2022
1399,Revenue,CAHD,South - Commissioned Services,Other Small Contracts,Brunelcare,338.8, 28-Dec-2022
1400,Revenue,CAHD,South - Commissioned Services,Other Small Contracts,Brunelcare,290.4, 28-Dec-2022
1401,Revenue,CAHD,South - Commissioned Services,Other Small Contracts,Brunelcare,60.5, 28-Dec-2022
1402,Revenue,CAHD,South - Commissioned Services,Other Small Contracts,Brunelcare,114.95, 28-Dec-2022
1403,Revenue,CAHD,South - Commissioned Services,Other Small Contracts,Brunelcare,320.65, 28-Dec-2022
1404,Revenue,CAHD,South - Commissioned Services,Other Small Contracts,Brunelcare,121, 28-Dec-2022
1405,Revenue,CAHD,South - Commissioned Services,Other Small Contracts,Brunelcare,187.55, 28-Dec-2022
1406,Revenue,CAHD,South - Commissioned Services,Other Small Contracts,Brunelcare,350.9, 28-Dec-2022
1407,Revenue,CAHD,South - Commissioned Services,Other Small Contracts,Brunelcare,139.15, 28-Dec-2022
1408,Revenue,CAHD,South - Commissioned Services,Other Small Contracts,Brunelcare,96.8, 28-Dec-2022
1409,Revenue,CAHD,South - Commissioned Services,Other Small Contracts,Brunelcare,484, 28-Dec-2022
1410,Revenue,CAHD,South - Commissioned Services,Other Small Contracts,Brunelcare,320.65, 28-Dec-2022
1411,Revenue,CAHD,South - Commissioned Services,Other Small Contracts,Brunelcare,193.6, 28-Dec-2022
1412,Revenue,CAHD,South - Commissioned Services,Other Small Contracts,Brunelcare,520.3, 28-Dec-2022
1413,Revenue,CAHD,South - Commissioned Services,Other Small Contracts,Brunelcare,393.25, 28-Dec-2022
1414,Revenue,CAHD,South - Commissioned Services,Other Small Contracts,Brunelcare,484, 28-Dec-2022
1415,Revenue,CAHD,South - Commissioned Services,Other Small Contracts,Brunelcare,429.55, 28-Dec-2022
1416,Revenue,CAHD,South - Commissioned Services,Other Small Contracts,Brunelcare,459.8, 28-Dec-2022
1417,Revenue,CAHD,South - Commissioned Services,Other Small Contracts,Brunelcare,435.6, 28-Dec-2022
1418,Revenue,CAHD,South - Commissioned Services,Other Small Contracts,Brunelcare,780.45, 28-Dec-2022
1419,Revenue,CAHD,South - Commissioned Services,Other Small Contracts,Brunelcare,677.6, 28-Dec-2022
1420,Revenue,CAHD,South - Commissioned Services,Other Small Contracts,Brunelcare,1004.3, 28-Dec-2022
1421,Revenue,CAHD,South - Commissioned Services,Other Small Contracts,Brunelcare,338.8, 28-Dec-2022
1422,Revenue,CAHD,South - Commissioned Services,Other Small Contracts,Brunelcare,72.6, 28-Dec-2022
1423,Revenue,CAHD,South - Commissioned Services,Mentoring,Brunelcare,90.75, 28-Dec-2022
1424,Revenue,CAHD,South - Commissioned Services,Mentoring,Brunelcare,96.8, 28-Dec-2022
1425,Revenue,CAHD,South - Commissioned Services,Mentoring,Brunelcare,90.75, 28-Dec-2022
1426,Revenue,CAHD,South - Commissioned Services,Mentoring,Brunelcare,96.8, 28-Dec-2022
1427,Revenue,CAHD,South - Commissioned Services,Mentoring,Brunelcare,145.2, 28-Dec-2022
1428,Revenue,CAHD,South - Commissioned Services,Mentoring,Brunelcare,48.4, 28-Dec-2022
1429,Revenue,CAHD,North - Community based support,Other Small Contracts,Brunelcare,853.05, 28-Dec-2022
1430,Revenue,CAHD,North - S117,Permanent Residential,Buckland Care,3600, 13-Dec-2022
1431,Revenue,CAHD,Alexandra Way,Mechanical & Electrical Maintenance,BWS Standfast Fire & Security Systems,662, 14-Dec-2022
1432,Revenue,CAHD,CSC - Agency Fostering,Foster Parent Allowances,By the Bridge Ltd,3321.34, 01-Dec-2022
1433,Revenue,CAHD,Social Lettings Agency,Rent,Individual,947.4, 13-Dec-2022
1434,Revenue,CAHD,Social Lettings Agency,Fees & Charges Income - General,Individual,-94.74, 13-Dec-2022
1435,Revenue,CAHD,CSC - Special Guardianship Orders,Xmas / Birthday Allowances,Individual,185.2, 09-Dec-2022
1436,Revenue,CAHD,CSC - Special Guardianship Orders,Special Payments,Individual,185.2, 09-Dec-2022
1437,Revenue,CAHD,CSC - Special Guardianship Orders,Band 1 Foster Care,Individual,170, 09-Dec-2022
1438,Revenue,CAHD,High Risk Group Funding,Other Public Bodies,Cabot Learning Federation,5460, 19-Dec-2022
1439,Revenue,CAHD,High Risk Group Funding,Other Public Bodies,Cabot Learning Federation,2244, 19-Dec-2022
1440,Revenue,CAHD,High Risk Group Funding,Other Public Bodies,Cabot Learning Federation,1610, 19-Dec-2022
1441,Revenue,CAHD,Schools Specific Grant Income,Other Public Bodies,Cabot Learning Federation,550, 20-Dec-2022
1442,Revenue,CAHD,Schools Specific Grant Income,Other Public Bodies,Cabot Learning Federation,550, 20-Dec-2022
1443,Revenue,CAHD,Statemented Support Academies,Other Public Bodies,Cabot Learning Federation,896.5, 23-Dec-2022
1444,Revenue,CAHD,Statemented Support Academies,Other Public Bodies,Cabot Learning Federation,3586, 23-Dec-2022
1445,Revenue,CAHD,Statemented Support Academies,Other Public Bodies,Cabot Learning Federation,1012.67, 23-Dec-2022
1446,Revenue,CAHD,Statemented Support Academies,Other Public Bodies,Cabot Learning Federation,740, 23-Dec-2022
1447,Revenue,CAHD,Statemented Support Academies,Other Public Bodies,Cabot Learning Federation,740, 23-Dec-2022
1448,Revenue,CAHD,Statemented Support Academies,Other Public Bodies,Cabot Learning Federation,740, 23-Dec-2022
1449,Revenue,CAHD,Statemented Support Academies,Other Public Bodies,Cabot Learning Federation,740, 23-Dec-2022
1450,Revenue,CAHD,Statemented Support Academies,Other Public Bodies,Cabot Learning Federation,740, 23-Dec-2022
1451,Revenue,CAHD,Statemented Support Academies,Other Public Bodies,Cabot Learning Federation,740, 23-Dec-2022
1452,Revenue,CAHD,Statemented Support Academies,Other Public Bodies,Cabot Learning Federation,896.5, 23-Dec-2022
1453,Revenue,CAHD,Statemented Support Academies,Other Public Bodies,Cabot Learning Federation,740, 23-Dec-2022
1454,Revenue,CAHD,Statemented Support Academies,Other Public Bodies,Cabot Learning Federation,740, 23-Dec-2022
1455,Revenue,CAHD,Academy Resource Base Funding,Other Public Bodies,Cabot Learning Federation,5945.24, 23-Dec-2022
1456,Revenue,CAHD,Academy Resource Base Funding,Other Public Bodies,Cabot Learning Federation,1186.23, 23-Dec-2022
1457,Revenue,CAHD,Academy Resource Base Funding,Other Public Bodies,Cabot Learning Federation,949.05, 23-Dec-2022
1458,Revenue,CAHD,Academy Resource Base Funding,Other Public Bodies,Cabot Learning Federation,535.32, 23-Dec-2022
1459,Revenue,CAHD,Academy Resource Base Funding,Other Public Bodies,Cabot Learning Federation,949.05, 23-Dec-2022
1460,Revenue,CAHD,Academy Resource Base Funding,Other Public Bodies,Cabot Learning Federation,535.32, 23-Dec-2022
1461,Revenue,CAHD,Academy Resource Base Funding,Other Public Bodies,Cabot Learning Federation,949.05, 23-Dec-2022
1462,Revenue,CAHD,Academy Resource Base Funding,Other Public Bodies,Cabot Learning Federation,949.05, 23-Dec-2022
1463,Revenue,CAHD,Academy Resource Base Funding,Other Public Bodies,Cabot Learning Federation,1186.23, 23-Dec-2022
1464,Revenue,CAHD,Academy Resource Base Funding,Other Public Bodies,Cabot Learning Federation,535.32, 23-Dec-2022
1465,Revenue,CAHD,Academy Resource Base Funding,Other Public Bodies,Cabot Learning Federation,1186.23, 23-Dec-2022
1466,Revenue,CAHD,Academy Resource Base Funding,Other Public Bodies,Cabot Learning Federation,949.05, 23-Dec-2022
1467,Revenue,CAHD,Academy Resource Base Funding,Other Public Bodies,Cabot Learning Federation,949.05, 23-Dec-2022
1468,Revenue,CAHD,Academy Resource Base Funding,Other Public Bodies,Cabot Learning Federation,535.32, 23-Dec-2022
1469,Revenue,CAHD,Academy Resource Base Funding,Other Public Bodies,Cabot Learning Federation,1186.23, 23-Dec-2022
1470,Revenue,CAHD,Academy Resource Base Funding,Other Public Bodies,Cabot Learning Federation,1186.23, 23-Dec-2022
1471,Revenue,CAHD,Academy Resource Base Funding,Other Public Bodies,Cabot Learning Federation,949.05, 23-Dec-2022
1472,Revenue,CAHD,Academy Resource Base Funding,Other Public Bodies,Cabot Learning Federation,949.05, 23-Dec-2022
1473,Revenue,CAHD,Academy Resource Base Funding,Other Public Bodies,Cabot Learning Federation,949.05, 23-Dec-2022
1474,Revenue,CAHD,Academy Resource Base Funding,Other Public Bodies,Cabot Learning Federation,535.32, 23-Dec-2022
1475,Revenue,CAHD,Academy Resource Base Funding,Other Public Bodies,Cabot Learning Federation,1186.23, 23-Dec-2022
1476,Revenue,CAHD,Academy Resource Base Funding,Other Public Bodies,Cabot Learning Federation,949.05, 23-Dec-2022
1477,Revenue,CAHD,Academy Resource Base Funding,Other Public Bodies,Cabot Learning Federation,1186.23, 23-Dec-2022
1478,Revenue,CAHD,Academy Resource Base Funding,Other Public Bodies,Cabot Learning Federation,949.05, 23-Dec-2022
1479,Revenue,CAHD,Academy Resource Base Funding,Other Public Bodies,Cabot Learning Federation,949.05, 23-Dec-2022
1480,Revenue,CAHD,Academy Resource Base Funding,Other Public Bodies,Cabot Learning Federation,949.05, 23-Dec-2022
1481,Revenue,CAHD,Academy Resource Base Funding,Other Public Bodies,Cabot Learning Federation,57727.08, 23-Dec-2022
1482,Revenue,CAHD,Statemented Support Payments to OLAs,Other L.A.s - General,Cabot Learning Federation,561.13, 23-Dec-2022
1483,Revenue,CAHD,Statemented Support Payments to OLAs,Other L.A.s - General,Cabot Learning Federation,1944.17, 23-Dec-2022
1484,Revenue,CAHD,Statemented Support Academies,Other Public Bodies,Cabot Learning Federation,896.5, 23-Dec-2022
1485,Revenue,CAHD,Statemented Support Academies,Other Public Bodies,Cabot Learning Federation,740, 23-Dec-2022
1486,Revenue,CAHD,Statemented Support Academies,Other Public Bodies,Cabot Learning Federation,896.5, 23-Dec-2022
1487,Revenue,CAHD,Schools Specific Grant Income,Other Public Bodies,Cabot Learning Federation,550, 20-Dec-2022
1488,Revenue,CAHD,Schools Specific Grant Income,Other Public Bodies,Cabot Learning Federation,550, 20-Dec-2022
1489,Revenue,CAHD,Schools Specific Grant Income,Other Public Bodies,Cabot Learning Federation,550, 20-Dec-2022
1490,Revenue,CAHD,Schools Specific Grant Income,Other Public Bodies,Cabot Learning Federation,550, 20-Dec-2022
1491,Revenue,CAHD,Schools Specific Grant Income,Other Public Bodies,Cabot Learning Federation,550, 20-Dec-2022
1492,Revenue,CAHD,Schools Specific Grant Income,Other Public Bodies,Cabot Learning Federation,550, 20-Dec-2022
1493,Revenue,CAHD,Schools Specific Grant Income,Other Public Bodies,Cabot Learning Federation,5000, 20-Dec-2022
1494,Revenue,CAHD,Schools Specific Grant Income,Other Public Bodies,Cabot Learning Federation,550, 20-Dec-2022
1495,Revenue,CAHD,LAC Teaching Staff,Other Public Bodies,Cabot Learning Federation,2400, 16-Dec-2022
1496,Revenue,CAHD,Schools Specific Grant Income,Other Public Bodies,Cabot Learning Federation,550, 20-Dec-2022
1497,Revenue,CAHD,Schools Specific Grant Income,Other Public Bodies,Cabot Learning Federation,550, 20-Dec-2022
1498,Revenue,CAHD,Schools Specific Grant Income,Other Public Bodies,Cabot Learning Federation,550, 20-Dec-2022
1499,Revenue,CAHD,Statemented Support Academies,Other Public Bodies,Cabot Learning Federation,740, 23-Dec-2022
1500,Revenue,CAHD,Statemented Support Academies,Other Public Bodies,Cabot Learning Federation,896.5, 23-Dec-2022
1501,Revenue,CAHD,Statemented Support Academies,Other Public Bodies,Cabot Learning Federation,740, 23-Dec-2022
1502,Revenue,CAHD,Statemented Support Academies,Other Public Bodies,Cabot Learning Federation,896.5, 23-Dec-2022
1503,Revenue,CAHD,Statemented Support Academies,Other Public Bodies,Cabot Learning Federation,740, 23-Dec-2022
1504,Revenue,CAHD,Statemented Support Academies,Other Public Bodies,Cabot Learning Federation,740, 23-Dec-2022
1505,Revenue,CAHD,Statemented Support Payments to OLAs,Other L.A.s - General,Cabot Learning Federation,1062.33, 23-Dec-2022
1506,Revenue,CAHD,Statemented Support Payments to OLAs,Other L.A.s - General,Cabot Learning Federation,740, 23-Dec-2022
1507,Revenue,CAHD,Statemented Support Payments to OLAs,Other L.A.s - General,Cabot Learning Federation,809.75, 23-Dec-2022
1508,Revenue,CAHD,Statemented Support Payments to OLAs,Other L.A.s - General,Cabot Learning Federation,5985, 23-Dec-2022
1509,Revenue,CAHD,Statemented Support Academies,Other Public Bodies,Cabot Learning Federation,740, 23-Dec-2022
1510,Revenue,CAHD,Statemented Support Academies,Other Public Bodies,Cabot Learning Federation,740, 23-Dec-2022
1511,Revenue,CAHD,Statemented Support Academies,Other Public Bodies,Cabot Learning Federation,740, 23-Dec-2022
1512,Revenue,CAHD,Statemented Support Payments to OLAs,Other L.A.s - General,Cabot Learning Federation,665.33, 23-Dec-2022
1513,Revenue,CAHD,Central - Commissioned Services,Permanent Nursing,Caernarvon House,4163.24, 13-Dec-2022
1514,Revenue,CAHD,Central - Commissioned Services,Fees & Charges Income - General,Caernarvon House,0, 13-Dec-2022
1515,Revenue,CAHD,South - Commissioned Services,Permanent Nursing,Caernarvon House,5000, 13-Dec-2022
1516,Revenue,CAHD,South - Commissioned Services,Permanent Nursing,Caernarvon House,5114.28, 13-Dec-2022
1517,Revenue,CAHD,South - Commissioned Services,Permanent Nursing,Caernarvon House,5516, 13-Dec-2022
1518,Revenue,CAHD,South - Commissioned Services,Permanent Nursing,Caernarvon House,11623, 13-Dec-2022
1519,Revenue,CAHD,South - Commissioned Services,Permanent Nursing,Caernarvon House,3079.88, 13-Dec-2022
1520,Revenue,CAHD,South - Commissioned Services,Fees & Charges Income - General,Caernarvon House,-1267.84, 13-Dec-2022
1521,Revenue,CAHD,South - Commissioned Services,Fees & Charges Income - General,Caernarvon House,-603.48, 13-Dec-2022
1522,Revenue,CAHD,South - Commissioned Services,Fees & Charges Income - General,Caernarvon House,-2842.11, 13-Dec-2022
1523,Revenue,CAHD,South - Commissioned Services,Fees & Charges Income - General,Caernarvon House,-773.6, 13-Dec-2022
1524,Revenue,CAHD,North - Community based support,Permanent Nursing,Caernarvon House,6107, 13-Dec-2022
1525,Revenue,CAHD,North - Community based support,Permanent Nursing,Caernarvon House,4901.16, 13-Dec-2022
1526,Revenue,CAHD,North - Community based support,Permanent Nursing,Caernarvon House,444.84, 13-Dec-2022
1527,Revenue,CAHD,North - Community based support,Permanent Nursing,Caernarvon House,3474.32, 13-Dec-2022
1528,Revenue,CAHD,North - Community based support,Fees & Charges Income - General,Caernarvon House,-695.06, 13-Dec-2022
1529,Revenue,CAHD,North - Community based support,Fees & Charges Income - General,Caernarvon House,-627.8, 13-Dec-2022
1530,Revenue,CAHD,North - Community based support,Fees & Charges Income - General,Caernarvon House,-1036.92, 13-Dec-2022
1531,Revenue,CAHD,South - S117,Permanent Nursing,Caernarvon House,5114.28, 13-Dec-2022
1532,Revenue,CAHD,North - S117,Permanent Nursing,Caernarvon House,-2669.04, 13-Dec-2022
1533,Revenue,CAHD,Independent Special Placements - Pre 16,Other Private Contractors,Calder House School,6825, 08-Dec-2022
1534,Revenue,CAHD,Post 16 High Needs Placements,Other Private Contractors,Cambian Whinfell School Limited,70255.48, 08-Dec-2022
1535,Revenue,CAHD,Post 16 High Needs Placements,Other Private Contractors,Cambian Whinfell School Limited,68728.19, 22-Dec-2022
1536,Revenue,CAHD,Central - Commissioned Services,Respite Planned - Residential,Campania Care Home,3800, 13-Dec-2022
1537,Revenue,CAHD,North - Community based support,Supported Living,Camphill Communities Thornbury Limited,3322.16, 19-Dec-2022
1538,Revenue,CAHD,MH Purchasing - Younger,Permanent Residential,Canonbury Residential Home,3400, 13-Dec-2022
1539,Revenue,CAHD,Schools Specific Grant Income,Educational Materials,Cardiff and Vale Tutors,571.9, 13-Dec-2022
1540,Revenue,CAHD,Central - Commissioned Services,Other Small Contracts,Care 1st Homecare,3031.78, 05-Dec-2022
1541,Revenue,CAHD,North - Community based support,Other Small Contracts,Care 1st Homecare,1520.75, 05-Dec-2022
1542,Revenue,CAHD,North - Community based support,Other Small Contracts,Care 1st Homecare,1575.69, 05-Dec-2022
1543,Revenue,CAHD,Central - Commissioned Services,Other Small Contracts,Care 1st Homecare,6285.28, 19-Dec-2022
1544,Revenue,CAHD,North - Community based support,Other Small Contracts,Care 1st Homecare,3057.45, 19-Dec-2022
1545,Revenue,CAHD,North - Community based support,Other Small Contracts,Care 1st Homecare,3140.48, 19-Dec-2022
1546,Revenue,CAHD,Central - Commissioned Services,Other Small Contracts,Care 1st Homecare,3214.94, 28-Dec-2022
1547,Revenue,CAHD,North - Community based support,Other Small Contracts,Care 1st Homecare,1526, 28-Dec-2022
1548,Revenue,CAHD,North - Community based support,Other Small Contracts,Care 1st Homecare,1570.24, 28-Dec-2022
1549,Revenue,CAHD,North - Community based support,Respite Care,Care Horizons,0, 13-Dec-2022
1550,Revenue,CAHD,North - Community based support,Respite Care,Care Horizons,0, 13-Dec-2022
1551,Revenue,CAHD,North - Community based support,Supported Living,Care Horizons,5727.08, 13-Dec-2022
1552,Revenue,CAHD,North - Community based support,Supported Living,Care Horizons,5727.08, 13-Dec-2022
1553,Revenue,CAHD,Central - Commissioned Services,Other Small Contracts,Care Horizons,384.48, 19-Dec-2022
1554,Revenue,CAHD,Central - Commissioned Services,Other Small Contracts,Care Horizons,149.52, 19-Dec-2022
1555,Revenue,CAHD,Central - Commissioned Services,Other Small Contracts,Care Horizons,3493.02, 19-Dec-2022
1556,Revenue,CAHD,Central - Commissioned Services,Other Small Contracts,Care Horizons,213.6, 19-Dec-2022
1557,Revenue,CAHD,Central - Commissioned Services,Other Small Contracts,Care Horizons,85.44, 19-Dec-2022
1558,Revenue,CAHD,Central - Commissioned Services,Other Small Contracts,Care Horizons,170.88, 19-Dec-2022
1559,Revenue,CAHD,Central - Commissioned Services,Other Small Contracts,Care Horizons,85.44, 19-Dec-2022
1560,Revenue,CAHD,Central - Commissioned Services,Mentoring,Care Horizons,128.16, 19-Dec-2022
1561,Revenue,CAHD,South - Commissioned Services,Other Small Contracts,Care Horizons,368.46, 19-Dec-2022
1562,Revenue,CAHD,South - Commissioned Services,Other Small Contracts,Care Horizons,106.8, 19-Dec-2022
1563,Revenue,CAHD,South - Commissioned Services,Mentoring,Care Horizons,85.44, 19-Dec-2022
1564,Revenue,CAHD,North - Community based support,Other Small Contracts,Care Horizons,256.32, 19-Dec-2022
1565,Revenue,CAHD,North - Community based support,Other Small Contracts,Care Horizons,213.6, 19-Dec-2022
1566,Revenue,CAHD,North - Community based support,Other Small Contracts,Care Horizons,320.4, 19-Dec-2022
1567,Revenue,CAHD,North - Community based support,Other Small Contracts,Care Horizons,2979.2, 19-Dec-2022
1568,Revenue,CAHD,North - Community based support,Other Small Contracts,Care Horizons,128.16, 19-Dec-2022
1569,Revenue,CAHD,North - S117,Other Small Contracts,Care Horizons,0, 19-Dec-2022
1570,Revenue,CAHD,Younger MH non-res purchasing,Other Small Contracts,Care Horizons,106.8, 19-Dec-2022
1571,Revenue,CAHD,Younger MH non-res purchasing,Other Small Contracts,Care Horizons,128.16, 19-Dec-2022
1572,Revenue,CAHD,Central - Commissioned Services,Other Small Contracts,Care Horizons,384.48, 19-Dec-2022
1573,Revenue,CAHD,Central - Commissioned Services,Other Small Contracts,Care Horizons,149.52, 19-Dec-2022
1574,Revenue,CAHD,Central - Commissioned Services,Other Small Contracts,Care Horizons,3487.68, 19-Dec-2022
1575,Revenue,CAHD,Central - Commissioned Services,Other Small Contracts,Care Horizons,170.88, 19-Dec-2022
1576,Revenue,CAHD,Central - Commissioned Services,Other Small Contracts,Care Horizons,85.44, 19-Dec-2022
1577,Revenue,CAHD,Central - Commissioned Services,Other Small Contracts,Care Horizons,170.88, 19-Dec-2022
1578,Revenue,CAHD,Central - Commissioned Services,Other Small Contracts,Care Horizons,85.44, 19-Dec-2022
1579,Revenue,CAHD,Central - Commissioned Services,Mentoring,Care Horizons,128.16, 19-Dec-2022
1580,Revenue,CAHD,South - Commissioned Services,Other Small Contracts,Care Horizons,405.84, 19-Dec-2022
1581,Revenue,CAHD,South - Commissioned Services,Other Small Contracts,Care Horizons,106.8, 19-Dec-2022
1582,Revenue,CAHD,South - Commissioned Services,Mentoring,Care Horizons,138.84, 19-Dec-2022
1583,Revenue,CAHD,North - Community based support,Other Small Contracts,Care Horizons,267, 19-Dec-2022
1584,Revenue,CAHD,North - Community based support,Other Small Contracts,Care Horizons,213.6, 19-Dec-2022
1585,Revenue,CAHD,North - Community based support,Other Small Contracts,Care Horizons,320.4, 19-Dec-2022
1586,Revenue,CAHD,North - Community based support,Other Small Contracts,Care Horizons,2979.2, 19-Dec-2022
1587,Revenue,CAHD,North - Community based support,Other Small Contracts,Care Horizons,128.16, 19-Dec-2022
1588,Revenue,CAHD,North - S117,Other Small Contracts,Care Horizons,0, 19-Dec-2022
1589,Revenue,CAHD,Younger MH non-res purchasing,Other Small Contracts,Care Horizons,106.8, 19-Dec-2022
1590,Revenue,CAHD,Younger MH non-res purchasing,Other Small Contracts,Care Horizons,128.16, 19-Dec-2022
1591,Revenue,CAHD,Central - Commissioned Services,Other Small Contracts,Care Horizons,384.48, 28-Dec-2022
1592,Revenue,CAHD,Central - Commissioned Services,Other Small Contracts,Care Horizons,149.52, 28-Dec-2022
1593,Revenue,CAHD,Central - Commissioned Services,Other Small Contracts,Care Horizons,3493.02, 28-Dec-2022
1594,Revenue,CAHD,Central - Commissioned Services,Other Small Contracts,Care Horizons,170.88, 28-Dec-2022
1595,Revenue,CAHD,Central - Commissioned Services,Other Small Contracts,Care Horizons,85.44, 28-Dec-2022
1596,Revenue,CAHD,Central - Commissioned Services,Other Small Contracts,Care Horizons,170.88, 28-Dec-2022
1597,Revenue,CAHD,Central - Commissioned Services,Other Small Contracts,Care Horizons,85.44, 28-Dec-2022
1598,Revenue,CAHD,Central - Commissioned Services,Mentoring,Care Horizons,128.16, 28-Dec-2022
1599,Revenue,CAHD,South - Commissioned Services,Other Small Contracts,Care Horizons,405.84, 28-Dec-2022
1600,Revenue,CAHD,South - Commissioned Services,Other Small Contracts,Care Horizons,106.8, 28-Dec-2022
1601,Revenue,CAHD,South - Commissioned Services,Mentoring,Care Horizons,85.44, 28-Dec-2022
1602,Revenue,CAHD,North - Community based support,Other Small Contracts,Care Horizons,256.32, 28-Dec-2022
1603,Revenue,CAHD,North - Community based support,Other Small Contracts,Care Horizons,213.6, 28-Dec-2022
1604,Revenue,CAHD,North - Community based support,Other Small Contracts,Care Horizons,320.4, 28-Dec-2022
1605,Revenue,CAHD,North - Community based support,Other Small Contracts,Care Horizons,2979.2, 28-Dec-2022
1606,Revenue,CAHD,North - Community based support,Other Small Contracts,Care Horizons,128.16, 28-Dec-2022
1607,Revenue,CAHD,North - S117,Other Small Contracts,Care Horizons,0, 28-Dec-2022
1608,Revenue,CAHD,Younger MH non-res purchasing,Other Small Contracts,Care Horizons,101.46, 28-Dec-2022
1609,Revenue,CAHD,Younger MH non-res purchasing,Other Small Contracts,Care Horizons,128.16, 28-Dec-2022
1610,Revenue,CAHD,Central - Commissioned Services,Other Small Contracts,Care Horizons,384.48, 28-Dec-2022
1611,Revenue,CAHD,Central - Commissioned Services,Other Small Contracts,Care Horizons,149.52, 28-Dec-2022
1612,Revenue,CAHD,Central - Commissioned Services,Other Small Contracts,Care Horizons,3498.36, 28-Dec-2022
1613,Revenue,CAHD,Central - Commissioned Services,Other Small Contracts,Care Horizons,170.88, 28-Dec-2022
1614,Revenue,CAHD,Central - Commissioned Services,Other Small Contracts,Care Horizons,85.44, 28-Dec-2022
1615,Revenue,CAHD,Central - Commissioned Services,Other Small Contracts,Care Horizons,170.88, 28-Dec-2022
1616,Revenue,CAHD,Central - Commissioned Services,Other Small Contracts,Care Horizons,85.44, 28-Dec-2022
1617,Revenue,CAHD,Central - Commissioned Services,Mentoring,Care Horizons,128.16, 28-Dec-2022
1618,Revenue,CAHD,South - Commissioned Services,Other Small Contracts,Care Horizons,405.84, 28-Dec-2022
1619,Revenue,CAHD,South - Commissioned Services,Other Small Contracts,Care Horizons,160.2, 28-Dec-2022
1620,Revenue,CAHD,South - Commissioned Services,Mentoring,Care Horizons,170.88, 28-Dec-2022
1621,Revenue,CAHD,North - Community based support,Other Small Contracts,Care Horizons,256.32, 28-Dec-2022
1622,Revenue,CAHD,North - Community based support,Other Small Contracts,Care Horizons,213.6, 28-Dec-2022
1623,Revenue,CAHD,North - Community based support,Other Small Contracts,Care Horizons,320.4, 28-Dec-2022
1624,Revenue,CAHD,North - Community based support,Other Small Contracts,Care Horizons,2979.2, 28-Dec-2022
1625,Revenue,CAHD,North - Community based support,Other Small Contracts,Care Horizons,128.16, 28-Dec-2022
1626,Revenue,CAHD,North - S117,Other Small Contracts,Care Horizons,128.16, 28-Dec-2022
1627,Revenue,CAHD,Younger MH non-res purchasing,Other Small Contracts,Care Horizons,106.8, 28-Dec-2022
1628,Revenue,CAHD,Younger MH non-res purchasing,Other Small Contracts,Care Horizons,0, 28-Dec-2022
1629,Revenue,CAHD,South - Commissioned Services,Other Small Contracts,Care Unite Ltd t/a Home Instead Senior Care,850.08, 05-Dec-2022
1630,Revenue,CAHD,South - Commissioned Services,Other Small Contracts,Care Unite Ltd t/a Home Instead Senior Care,516.12, 05-Dec-2022
1631,Revenue,CAHD,South - Commissioned Services,Other Small Contracts,Care Unite Ltd t/a Home Instead Senior Care,819.72, 05-Dec-2022
1632,Revenue,CAHD,South - Commissioned Services,Other Small Contracts,Care Unite Ltd t/a Home Instead Senior Care,850.08, 05-Dec-2022
1633,Revenue,CAHD,South - Commissioned Services,Other Small Contracts,Care Unite Ltd t/a Home Instead Senior Care,242.88, 05-Dec-2022
1634,Revenue,CAHD,South - Commissioned Services,Other Small Contracts,Care Unite Ltd t/a Home Instead Senior Care,728.64, 05-Dec-2022
1635,Revenue,CAHD,South - Commissioned Services,Other Small Contracts,Care Unite Ltd t/a Home Instead Senior Care,850.08, 22-Dec-2022
1636,Revenue,CAHD,South - Commissioned Services,Other Small Contracts,Care Unite Ltd t/a Home Instead Senior Care,1123.32, 22-Dec-2022
1637,Revenue,CAHD,South - Commissioned Services,Other Small Contracts,Care Unite Ltd t/a Home Instead Senior Care,850.08, 22-Dec-2022
1638,Revenue,CAHD,South - Commissioned Services,Other Small Contracts,Care Unite Ltd t/a Home Instead Senior Care,850.08, 22-Dec-2022
1639,Revenue,CAHD,South - Commissioned Services,Other Small Contracts,Care Unite Ltd t/a Home Instead Senior Care,728.64, 22-Dec-2022
1640,Revenue,CAHD,South - Commissioned Services,Other Small Contracts,Care Unite Ltd t/a Home Instead Senior Care,850.08, 01-Dec-2022
1641,Revenue,CAHD,South - Commissioned Services,Other Small Contracts,Care Unite Ltd t/a Home Instead Senior Care,546.48, 01-Dec-2022
1642,Revenue,CAHD,South - Commissioned Services,Other Small Contracts,Care Unite Ltd t/a Home Instead Senior Care,850.08, 28-Dec-2022
1643,Revenue,CAHD,South - Commissioned Services,Other Small Contracts,Carepride Ltd,9869.34, 22-Dec-2022
1644,Revenue,CAHD,SLA Grants - Support Serv,Grants to Voluntary Bodies,Carers Support Centre,12275, 20-Dec-2022
1645,Revenue,CAHD,SLA Grants - Support Serv,Grants to Voluntary Bodies,Carers Support Centre,25275, 20-Dec-2022
1646,Revenue,CAHD,Mental Health and Community Engagement,Other Small Contracts,Carers Support Centre,60477, 20-Dec-2022
1647,Revenue,CAHD,CSC - Care Leavers Independent Living,Adults - Family Support,Caring for Communities and People,3767.14, 09-Dec-2022
1648,Revenue,CAHD,Supporting People Programme,Grants to Voluntary Bodies,Caring for Communities and People,12501.83, 02-Dec-2022
1649,Revenue,CAHD,CSC - Care Leavers Support Costs,Furniture & Fittings Loose,Carpets of Yate Limited,1765, 29-Dec-2022
1650,Revenue,CAHD,Schools Specific Grant Income,Other Public Bodies,Castle School Education Trust,550, 20-Dec-2022
1651,Revenue,CAHD,Statemented Support Academies,Other Public Bodies,Castle School Education Trust,740, 23-Dec-2022
1652,Revenue,CAHD,Statemented Support Academies,Other Public Bodies,Castle School Education Trust,740, 23-Dec-2022
1653,Revenue,CAHD,Statemented Support Academies,Other Public Bodies,Castle School Education Trust,740, 23-Dec-2022
1654,Revenue,CAHD,Statemented Support Academies,Other Public Bodies,Castle School Education Trust,740, 23-Dec-2022
1655,Revenue,CAHD,Statemented Support Academies,Other Public Bodies,Castle School Education Trust,740, 23-Dec-2022
1656,Revenue,CAHD,Statemented Support Academies,Other Public Bodies,Castle School Education Trust,740, 23-Dec-2022
1657,Revenue,CAHD,Statemented Support Academies,Other Public Bodies,Castle School Education Trust,740, 23-Dec-2022
1658,Revenue,CAHD,Statemented Support Academies,Other Public Bodies,Castle School Education Trust,896.5, 23-Dec-2022
1659,Revenue,CAHD,Statemented Support Academies,Other Public Bodies,Castle School Education Trust,740, 23-Dec-2022
1660,Revenue,CAHD,High Risk Group Funding,Other Public Bodies,Castle School Education Trust,2268, 22-Dec-2022
1661,Revenue,CAHD,Schools Specific Grant Income,Other Public Bodies,Castle School Education Trust,550, 20-Dec-2022
1662,Revenue,CAHD,Schools Specific Grant Income,Other Public Bodies,Castle School Education Trust,550, 20-Dec-2022
1663,Revenue,CAHD,Schools Specific Grant Income,Other Public Bodies,Castle School Education Trust,550, 20-Dec-2022
1664,Revenue,CAHD,Schools Specific Grant Income,Other Public Bodies,Castle School Education Trust,550, 20-Dec-2022
1665,Revenue,CAHD,Schools Specific Grant Income,Other Public Bodies,Castle School Education Trust,550, 20-Dec-2022
1666,Revenue,CAHD,Statemented Support Academies,Other Public Bodies,Castle School Education Trust,740, 23-Dec-2022
1667,Revenue,CAHD,Statemented Support Academies,Other Public Bodies,Castle School Education Trust,1012.67, 23-Dec-2022
1668,Revenue,CAHD,Statemented Support Academies,Other Public Bodies,Castle School Education Trust,740, 23-Dec-2022
1669,Revenue,CAHD,Statemented Support Academies,Other Public Bodies,Castle School Education Trust,896.5, 23-Dec-2022
1670,Revenue,CAHD,Academy Resource Base Funding,Other Public Bodies,Castle School Education Trust,1698.64, 23-Dec-2022
1671,Revenue,CAHD,Academy Resource Base Funding,Other Public Bodies,Castle School Education Trust,1186.23, 23-Dec-2022
1672,Revenue,CAHD,Academy Resource Base Funding,Other Public Bodies,Castle School Education Trust,949.05, 23-Dec-2022
1673,Revenue,CAHD,Academy Resource Base Funding,Other Public Bodies,Castle School Education Trust,1186.23, 23-Dec-2022
1674,Revenue,CAHD,Academy Resource Base Funding,Other Public Bodies,Castle School Education Trust,1186.23, 23-Dec-2022
1675,Revenue,CAHD,Academy Resource Base Funding,Other Public Bodies,Castle School Education Trust,1186.23, 23-Dec-2022
1676,Revenue,CAHD,Academy Resource Base Funding,Other Public Bodies,Castle School Education Trust,949.05, 23-Dec-2022
1677,Revenue,CAHD,Academy Resource Base Funding,Other Public Bodies,Castle School Education Trust,1186.23, 23-Dec-2022
1678,Revenue,CAHD,Academy Resource Base Funding,Other Public Bodies,Castle School Education Trust,1186.23, 23-Dec-2022
1679,Revenue,CAHD,Academy Resource Base Funding,Other Public Bodies,Castle School Education Trust,1186.23, 23-Dec-2022
1680,Revenue,CAHD,Academy Resource Base Funding,Other Public Bodies,Castle School Education Trust,949.05, 23-Dec-2022
1681,Revenue,CAHD,Academy Resource Base Funding,Other Public Bodies,Castle School Education Trust,1186.23, 23-Dec-2022
1682,Revenue,CAHD,Academy Resource Base Funding,Other Public Bodies,Castle School Education Trust,1186.23, 23-Dec-2022
1683,Revenue,CAHD,Academy Resource Base Funding,Other Public Bodies,Castle School Education Trust,1186.23, 23-Dec-2022
1684,Revenue,CAHD,Academy Resource Base Funding,Other Public Bodies,Castle School Education Trust,949.05, 23-Dec-2022
1685,Revenue,CAHD,Academy Resource Base Funding,Other Public Bodies,Castle School Education Trust,1186.23, 23-Dec-2022
1686,Revenue,CAHD,Academy Resource Base Funding,Other Public Bodies,Castle School Education Trust,1186.23, 23-Dec-2022
1687,Revenue,CAHD,Academy Resource Base Funding,Other Public Bodies,Castle School Education Trust,1186.23, 23-Dec-2022
1688,Revenue,CAHD,Academy Resource Base Funding,Other Public Bodies,Castle School Education Trust,49918.14, 23-Dec-2022
1689,Revenue,CAHD,Schools Specific Grant Income,Other Public Bodies,Castle School Education Trust,550, 20-Dec-2022
1690,Revenue,CAHD,Statemented Support Academies,Other Public Bodies,Castle School Education Trust,896.5, 23-Dec-2022
1691,Revenue,CAHD,Statemented Support Academies,Other Public Bodies,Castle School Education Trust,1012.67, 23-Dec-2022
1692,Revenue,CAHD,Statemented Support Academies,Other Public Bodies,Castle School Education Trust,740, 23-Dec-2022
1693,Revenue,CAHD,LAC Teaching Staff,Other Public Bodies,Castle School Education Trust,1000, 16-Dec-2022
1694,Revenue,CAHD,Schools Specific Grant Income,Other Public Bodies,Castle School Education Trust,550, 20-Dec-2022
1695,Revenue,CAHD,Schools Specific Grant Income,Other Public Bodies,Castle School Education Trust,550, 20-Dec-2022
1696,Revenue,CAHD,Schools Specific Grant Income,Other Public Bodies,Castle School Education Trust,550, 20-Dec-2022
1697,Revenue,CAHD,Statemented Support Academies,Other Public Bodies,Castle School Education Trust,1012.67, 23-Dec-2022
1698,Revenue,CAHD,Parent Partnership & Disagreement Resolutions,Fees - General,Castle School Educational Academy Trust,6636, 02-Dec-2022
1699,Revenue,CAHD,Statemented Support Academies,Other Public Bodies,Castle School Educational Academy Trust,1012.67, 23-Dec-2022
1700,Revenue,CAHD,Statemented Support Academies,Other Public Bodies,Castle School Educational Academy Trust,896.5, 23-Dec-2022
1701,Revenue,CAHD,Statemented Support Academies,Other Public Bodies,Castle School Educational Academy Trust,740, 23-Dec-2022
1702,Revenue,CAHD,Statemented Support Academies,Other Public Bodies,Castle School Educational Academy Trust,740, 23-Dec-2022
1703,Revenue,CAHD,Statemented Support Academies,Other Public Bodies,Castle School Educational Academy Trust,740, 23-Dec-2022
1704,Revenue,CAHD,Statemented Support Academies,Other Public Bodies,Castle School Educational Academy Trust,1012.67, 23-Dec-2022
1705,Revenue,CAHD,Statemented Support Academies,Other Public Bodies,Castle School Educational Academy Trust,896.5, 23-Dec-2022
1706,Revenue,CAHD,LAC Teaching Staff,Other Public Bodies,Castle School Educational Academy Trust,800, 16-Dec-2022
1707,Revenue,CAHD,CSC - Legal Fees,Legal Fees,Cater Walsh Reporting Limited,574.75, 28-Dec-2022
1708,Revenue,CAHD,CSC - Legal Fees,Legal Fees,Cater Walsh Reporting Limited,863.5, 28-Dec-2022
1709,Revenue,CAHD,Social Lettings Agency,Rent,Individual,658.3, 01-Dec-2022
1710,Revenue,CAHD,Social Lettings Agency,Fees & Charges Income - General,Individual,-52.66, 01-Dec-2022
1711,Revenue,CAHD,Social Lettings Agency,Rent,Individual,658.3, 29-Dec-2022
1712,Revenue,CAHD,Social Lettings Agency,Fees & Charges Income - General,Individual,-52.66, 29-Dec-2022
1713,Revenue,CAHD,CSC - Care Leavers Support Costs,Training Expenses,Individual,635, 02-Dec-2022
1714,Revenue,CAHD,18-25 Year Olds,Day Care / Social Activities,Causeway House,4744.8, 13-Dec-2022
1715,Revenue,CAHD,Central - Commissioned Services,Day Care / Social Activities,Causeway House,3925.4, 13-Dec-2022
1716,Revenue,CAHD,Central - Commissioned Services,Day Care / Social Activities,Causeway House,4182.6, 13-Dec-2022
1717,Revenue,CAHD,South - Commissioned Services,Day Care / Social Activities,Causeway House,5646, 13-Dec-2022
1718,Revenue,CAHD,North - Community based support,Day Care / Social Activities,Causeway House,5165.8, 13-Dec-2022
1719,Revenue,CAHD,North - Community based support,Day Care / Social Activities,Causeway House,610.8, 13-Dec-2022
1720,Revenue,CAHD,North - Community based support,Day Care / Social Activities,Causeway House,3467.4, 13-Dec-2022
1721,Revenue,CAHD,North - Community based support,Day Care / Social Activities,Causeway House,3384.6, 13-Dec-2022
1722,Revenue,CAHD,South - Commissioned Services,Permanent Residential,Cavendish Care Home,4098.48, 13-Dec-2022
1723,Revenue,CAHD,North - S117,Permanent Residential,Cavendish Care Home,2459.12, 13-Dec-2022
1724,Revenue,CAHD,Jointly Funded H&SC Packages,Permanent Residential,Cavendish Care Home,1639.4, 13-Dec-2022
1725,Revenue,CAHD,Central - Commissioned Services,Permanent Nursing,Cedar Court Care Home,4000, 13-Dec-2022
1726,Revenue,CAHD,Central - Commissioned Services,Fees & Charges Income - General,Cedar Court Care Home,-404.12, 13-Dec-2022
1727,Revenue,CAHD,CSC - Asylum Seekers - Unaccompanied,Adults - Family Support,Centrepeacehomes Ltd,872.75, 12-Dec-2022
1728,Revenue,CAHD,CSC - Asylum Seekers - Unaccompanied,Adults - Family Support,Centrepeacehomes Ltd,1886.55, 12-Dec-2022
1729,Revenue,CAHD,CSC - Asylum Seekers - Unaccompanied,Adults - Family Support,Centrepeacehomes Ltd,723.16, 16-Dec-2022
1730,Revenue,CAHD,CSC - Care Leavers Independent Living,Adults - Family Support,Centrepeacehomes Ltd,10000, 09-Dec-2022
1731,Revenue,CAHD,CSC - Care Leavers Independent Living,Independent Living,Centrepeacehomes Ltd,21500, 15-Dec-2022
1732,Revenue,CAHD,Central - Commissioned Services,Permanent Residential,Challenge House,2452.44, 13-Dec-2022
1733,Revenue,CAHD,Central - Commissioned Services,Permanent Residential,Challenge House,2819.84, 13-Dec-2022
